{"text_format":"1","workbook":"xlsx","n_sheets":14,"sheets":["FrontPage","Sjekkliste noter","N_Ubesv.","N_Ja","N_Nei","N_IA","sjekkliste_noter_matrix","meta_data","Sjekkliste formelle forhold","sjekkliste_formelle_matrix","F_Ubesv.","F_Ja","F_Nei","F_IA"],"not_rendered":{"charts":0,"images":55,"macros":1,"external_links":0,"defined_names":0,"comments":0,"pivot_tables":0},"unopened":[],"bounds":{"document_bytes":16777216,"sheet_cells":100000,"rows_first":2000,"rows_last":500,"rows_between":2000,"halvings":0,"cell_chars":16384,"cell_head_chars":4096},"cells_cut":0,"cells_raw":0,"read":"whole","date_system":"1900"}

{"sheet":"FrontPage","index":0,"n_rows":53,"n_cols":14,"rows_kept":53,"cut":false,"hidden":false,"merged":[[52,0,52,4],[11,0,11,5],[0,0,0,5],[15,0,15,5],[1,1,1,5],[2,1,2,5],[3,1,3,5],[4,1,4,5],[33,0,33,5],[28,0,28,3],[49,0,49,3]]}
["Sjekkliste årsregnskap små foretak",null,null,null,null,null,null,null,null,null,null,null,null,"Kommentarer - skal ikke være med i endelig versjon:"]
["Selskap"]
["År",2024,null,null,null,null,null,null,null,null,null,null,null,"Felt for utført/review skal være med i GR-versjonen, ikke i PwC-versjonen til Aura"]
["Utfylt",null,null,null,null,null,null,null,null,null,null,null,null,"Skal være med i GR-versjonen, ikke i PwC-versjonen til Aura"]
["Review"]
[]
[]
[null,"Ubesvart","Ja","Nei","IA","Sum"]
["Noter",{"$f":"F9-SUM(C9:E9)","v":31},{"$f":"_xlfn.AGGREGATE(3,5,'Sjekkliste noter'!E7:E164)","v":0},{"$f":"_xlfn.AGGREGATE(3,5,'Sjekkliste noter'!F7:F164)","v":0},{"$f":"_xlfn.AGGREGATE(3,5,'Sjekkliste noter'!G7:G164)+(F9-_xlfn.AGGREGATE(2,5,'Sjekkliste noter'!A7:A164))","v":52},{"$f":"_xlfn.AGGREGATE(2,4,'Sjekkliste noter'!A7:A164)","v":83}]
["Formelle forhold",{"$f":"F10-SUM(C10:E10)","v":24},{"$f":"_xlfn.AGGREGATE(3,5,'Sjekkliste formelle forhold'!E9:E75)","v":0},{"$f":"_xlfn.AGGREGATE(3,5,'Sjekkliste formelle forhold'!F9:F75)","v":0},{"$f":"_xlfn.AGGREGATE(3,5,'Sjekkliste formelle forhold'!G8:G75)+(F10-_xlfn.AGGREGATE(2,5,'Sjekkliste formelle forhold'!A8:A75))","v":12},{"$f":"_xlfn.AGGREGATE(2,4,'Sjekkliste formelle forhold'!A8:A75)","v":36}]
[]
[]
[]
["Ønsker du å bruke full sjekkliste, eller kun å kontrollere endringer i regelverk fra tidligere år og utvalgte risikoområder i virksomheten?",null,null,null,null,null,null,null,null,null,null,null,"F0/E0"]
[]
["Veiledning for bruk av full sjekkliste:\nSjekklisten kan spisses sånn at den kun omfatter forhold som er relevante for den aktuelle virksomheten. ",null,null,null,null,null,null,null,null,null,null,null,null,"Den del som gjelder policy skal flyttes opp i rad før valg om full eller endring"]
[]
["Full sjekkliste"]
["Har selskapet ansatte?",null,null,null,null,null,null,null,null,null,null,null,"F1"]
["Driver selskapet med forskning og utvikling?",null,null,null,null,null,null,null,null,null,null,null,"F3"]
["Er selskapet et datterselskap?",null,null,null,null,null,null,null,null,null,null,null,"F5"]
["Avlegger selskapet konsernregnskap?",null,null,null,null,null,null,null,null,null,null,null,"F6"]
["Er selskapet et samvirkeforetak?"]
["Har selskapet bokført goodwill?"]
[]
[]
["Har foretaket aksjer i:",null,null,null,null,null,null,null,null,null,null,null,"F16-F19","Det skal inn et spørsmål til (det skal være mulig å trykke for et eller flere alternativer):\nHar foretaket aksjer i: \n- Datterselskap\n- Tilknyttet selskap\n- Felleskontrollert virksomhet\n- Andre aksjer og andeler\n"]
[]
["Huk av dersom selskapet er:"]
[]
[]
[]
[]
["Veiledning for bruk av endringssjekkliste:\nVed avkryssing i listen nedenfor velger du de deler av sjekklisten som er relevante for det temaet du krysser av for. Du får da opp alle sjekkpunkter i regelverket som er aktuelle for det temaet du har valgt."]
[]
["Endringssjekkliste"]
["Er policy for bruk av endringssjekkliste fulgt?"]
[]
["Angi siste år for gjennomgang av full sjekkliste"]
[]
["Har det vært endringer i foretaket, eller er det spesifikke områder som kan ha økt risiko for feil, som man ønsker å kontrollere?"]
["Skal du kontrollere noteopplysninger som er pliktige ihht rskl § 7-1, 3.ledd?"]
["Driftsmidler",null,null,null,null,null,null,null,null,null,null,null,"E1"]
["Investeringer i datterselskaper",null,null,null,null,null,null,null,null,null,null,null,"E2"]
["Investeringer i tilknyttede selskaper",null,null,null,null,null,null,null,null,null,null,null,"E3"]
["Investeringer i felleskontrollert virksomhet",null,null,null,null,null,null,null,null,null,null,null,"E4"]
["Fordringer, gjeld, garantiforpliktelser",null,null,null,null,null,null,null,null,null,null,null,"E5"]
["Har selskapet endret noen regnskapsprinsipper?",null,null,null,null,null,null,null,null,null,null,null,"E8"]
[]
["Huk av dersom selskapet er:"]
[]
["Annet (må spesifiseres nedenfor, og du må selv velge manuelt de deler av sjekklisten du ønsker å ta inn)",null,null,null,null,null,null,null,null,null,null,null,null,"Her skal det ikke være noen spesiell koding, her må man hente fram aktuelle tema manuelt selv"]
["Skriv inn evt tekst her"]

{"sheet":"Sjekkliste noter","index":1,"n_rows":164,"n_cols":11,"rows_kept":164,"cut":false,"hidden":false,"merged":[[88,3,90,3],[88,4,90,4],[88,5,90,5],[88,6,90,6],[88,7,90,7],[85,4,86,4],[85,5,86,5],[85,6,86,6],[85,7,86,7],[87,4,87,7],[71,5,72,5],[111,4,112,4],[111,5,112,5],[111,6,112,6],[111,7,112,7],[71,6,72,6],[71,7,72,7],[73,4,74,4],[73,5,74,5],[73,6,74,6],[73,7,74,7],[94,4,94,7],[83,4,83,7],[84,4,84,7],[98,4,99,7],[103,4,104,4],[103,5,104,5],[103,6,104,6],[103,7,104,7],[106,4,107,4],[106,5,107,5],[106,6,107,6],[106,7,107,7],[108,4,109,4],[113,0,114,0],[113,1,114,1],[111,0,112,0],[111,1,112,1],[123,0,124,0],[123,1,124,1],[108,6,109,6],[108,7,109,7],[116,0,117,0],[116,1,117,1],[116,4,117,4],[116,5,117,5],[123,4,124,4],[123,5,124,5],[123,6,124,6],[123,7,124,7],[116,6,117,6],[116,7,117,7],[113,4,114,4],[113,5,114,5],[113,6,114,6],[113,7,114,7],[108,5,109,5],[85,0,86,0],[85,1,86,1],[88,0,90,0],[88,1,90,1],[103,0,104,0],[103,1,104,1],[108,0,109,0],[108,1,109,1],[106,0,107,0],[106,1,107,1],[51,1,52,1],[65,1,66,1],[59,1,60,1],[43,0,44,0],[43,1,44,1],[43,4,44,4],[73,0,74,0],[73,1,74,1],[71,0,72,0],[71,1,72,1],[71,4,72,4],[43,5,44,5],[43,6,44,6],[43,7,44,7],[27,0,28,0],[27,1,28,1],[27,4,28,4],[27,5,28,5],[27,6,28,6],[27,7,28,7],[36,4,36,7],[129,0,130,0],[129,1,130,1],[129,4,130,4],[129,5,130,5],[129,6,130,6],[129,7,130,7],[17,0,18,0],[17,1,18,1],[17,4,18,4],[17,5,18,5],[17,6,18,6],[17,7,18,7],[23,0,24,0],[23,1,24,1],[23,4,24,4],[23,5,24,5],[23,6,24,6],[23,7,24,7],[20,0,22,0],[20,1,22,1],[20,4,22,4],[20,5,22,5],[20,6,22,6],[20,7,22,7]]}
["Noteopplysninger - små foretak",null,null,"Utfylt:",{"$f":"+FrontPage!B4","v":0}]
["Klient:",{"$f":"+FrontPage!B2","v":0},null,"Review:",{"$f":"+FrontPage!B5","v":0},null,null,null,null,"Ikke besvart:",{"$f":"FrontPage!B9","v":31}]
["År:",{"$f":"FrontPage!B3","v":2024},null,null,null,null,null,null,null,"Ja-svar:",{"$f":"FrontPage!C9","v":0}]
["Enkelte selskaper har tilleggskrav ihht regnskapsloven eller forskrifter til regnskapsloven, disse fremgår nederst i denne sjekklisten. ",null,null,null,null,null,null,null,null,"Nei-svar:",{"$f":"FrontPage!D9","v":0}]
[null,null,null,null,"Fyll ut med \"X\"",null,null,null,null,"IA-svar:",{"$f":"FrontPage!E9","v":52}]
[null,"Spørsmål","Ref. ","Ekskludering:","Ja","Nei","I/A","Kommentar",null,"Sum:",{"$f":"SUM(K2:K5)","v":83}]
["Plikt til utarbeidelse"]
[null,"Notekravene nedenfor skal som utgangspunkt alltid tas med, men kan utelates dersom de ikke er av betydning for å bedømme selskapets stilling og resultat. Disse kan tas bort fra sjekklisten ved å bruke ”hide/show” funksjonen.","rskl § 7-1, 1. ledd"]
[null,"Enkelte notekrav er imidlertid pliktige, og kan aldri utelates. ","rskl § 7-1, 3. ledd"]
[null,"Det kan også være aktuelt å gi andre/ytterligere opplysninger enn de som dekkes av kravene ovenfor. Ytterligere opplysninger må gis dersom de er nødvendige for å bedømme selskapets stilling og resultat.\nSmå foretak som ikke utarbeider konsernregnskap kan unnlate å gi slike tilleggsopplysninger om forhold knyttet til konsernets stilling og resultat.","rskl § 7-1, 2. ledd"]
[null,"Det skal gis tilleggsopplysninger hvis anvendelsen av bestemmelsene i regnskapsloven ikke er tiltrekkelig for å gi et rettvisende bilde av den regnskapspliktiges eiendeler, gjeld, finansielle stilling og resultat.","rskl § 7-1, 4. ledd"]
[null,"Krav om å gi tilleggsinformasjon må ses i lys av definisjonen av vesentlig informasjon i regnskapsloven § 1-10:\n«En opplysning er vesentlig dersom utelatelsen eller feil i slike opplysninger med rimelighet kan forventes å påvirke beslutninger som brukere tar på grunnlag av foretakets årsregnskap. Enkeltposters vesentlighet skal vurderes i sammenheng med andre tilsvarende poster.»\nEt årsregnskap som inneholder noteopplysninger i samsvar med minimumskravene i regnskapsloven vil ikke alltid dekke informasjonsbehovet til regnkapsbrukerne. Det vil derfor i mange tilfeller være behov for å gi tilleggsinformasjon i årsregnskapet. Hva slags tilleggsinformasjon som vil påvirke beslutninger som tas av brukerne av regnskapet er situasjonsavhengig.","NRS 8 kap. 8"]
[null,"Iflg rskl § 3-2a, 2. ledd skal bestemmelsene i rskl kap. 4 til 7 i særlige unntakstilfeller fravikes, dersom dette er nødvendig for å gi et rettvisende bilde av den regnskapspliktiges eiendeler og gjeld, finansielle stilling og resultat. Ethvert slikt fravik skal angis og begrunnes konkret og fullstendig med opplysningen om betydningen fraviket har for den regnskapspliktiges og konsernets eiendeler og gjeld, finansielle stilling og resultat.","rskl § 7-1, 6. ledd"]
[null,"Kravet om å gi et rettvisende bilde er likevel ikke til hinder for å anvende forenklingsreglene for små foretak. Anvendelsen av forenklingsreglene vil således i seg selv ikke utløse noen vurdering opp mot kravet om å gi et rettvisende bilde, og dermed heller ingen plikt til å fravike forenklingsregelen eller gi angivelse i noter som nevnt ovenfor.","NRS 8 pkt 2.1.4"]
["Noterekkefølge",null,null,null,null,null,null,null,null,{"$f":"IF(F16<>\"\",\"Du har satt X for at forholdet ikke er avklart. Gi en nærmere foklaring i kommentarfeltet.\",\"\")","v":""}]
[1,"Har noteopplysningene for poster i balanse og resultatregnskap samme rekkefølge som postene i oppstillingen for balanse og resultatregnskap?\n\nVanligvis presenteres resultatregnskapet først i årsregnskapet, og det er derfor naturlig å starte nummereringen av notene i resultatregnskapet. Det er ikke krav om å dele opp noter som er knyttet til flere regnskapsposter.\nNoter som ikke vedrører resultatregnskapet og balansen, for eksempel om anvendte regnskapsprinsipper (dersom disse presenteres samlet) og usikkerhet om fortsatt drift, kan presenteres før eller etter notene til resultatregnskapet og balansen.","rskl § 7-1a\n\n"]
["Regnskapsprinsipper",null,null,null,null,null,null,null,null,{"$f":"IF(F18<>\"\",\"Du har satt X for at forholdet ikke er avklart. Gi en nærmere foklaring i kommentarfeltet.\",\"\")","v":""}]
[{"$f":"+A16+1","v":2},"Er det gitt opplysninger om anvendte regnskapsprinsipper?","rskl § 7-35\n\n"]
[null,null,"NRS  8 pkt 8.2"]
[null,"Det anbefales å gi tilleggsopplysning om at årsregnskapet er satt opp i samsvar med god regnskapsskikk for små foretak. "]
[{"$f":"+A18+1","v":3},"Dersom sammenligningstallene er omarbeidet, er det opplyst om?","NRS 8 pkt 7.3.3",null,null,null,null,null,null,{"$f":"IF(F21<>\"\",\"Du har satt X for at forholdet ikke er avklart. Gi en nærmere foklaring i kommentarfeltet.\",\"\")","v":""}]
[null,null,"rskl § 7-35",null,null,null,null,null,null,""]
[null,null,"NRS 8 pkt 3.3.2.",null,null,null,null,null,null,""]
[{"$f":"+A21+1","v":4},"Dersom sammenligningstallene i regnskapet er omarbeidet, er omarbeidingen forklart?","rskl § 7-35\n",null,null,null,null,null,null,""]
[null,null,"NRS 8 pkt 3.3.2.",null,null,null,null,null,null,""]
[{"$f":"+A24+1","v":5},"Er alle de regnskapsprinsipper som er omtalt i notene aktuelle og sentrale for selskapet?","NRS  8 pkt 8.2",null,null,null,null,null,null,""]
["Goodwill"]
[{"$f":"+A26+1","v":6},"Er det gitt følgende opplysninger vedr. goodwill:\n• Anskaffelseskost","rskl § 7-39\n",null,null,null,null,null,null,{"$f":"IF(F28<>\"\",\"Du har satt X for at forholdet ikke er avklart. Gi en nærmere foklaring i kommentarfeltet.\",\"\")","v":""}]
[null,null,"NRS 8 pkt \n 4.3.1.3.4 "]
[{"$f":"+A28+1","v":7},"• Tilgang og avgang i løpet av regnskapsåret",null,null,null,null,null,null,null,{"$f":"IF(F30<>\"\",\"Du har satt X for at forholdet ikke er avklart. Gi en nærmere foklaring i kommentarfeltet.\",\"\")","v":""}]
[{"$f":"+A30+1","v":8},"• Samlede avskrivninger og nedskrivninger, og",null,null,null,null,null,null,null,""]
[{"$f":"+A31+1","v":9},"• Avskrivninger og nedskrivninger  i regnskapsåret",null,null,null,null,null,null,null,""]
[{"$f":"+A32+1","v":10},"Er det opplyst om økonomisk levetid og valg av avskrivningsplan?","rskl § 7-39\n",null,null,null,null,null,null,""]
[{"$f":"+A33+1","v":11},"Er balanseført goodwill spesifisert for hvert enkelt virksomhetskjøp?","rskl § 7-39\n",null,null,null,null,null,null,""]
[{"$f":"+A34+1","v":12},"Er avskrivningsplan for goodwill som er lengre enn fem år begrunnet?\n\nEn slik begrunnelse må ha et saklig innhold som faktisk begrunner levetiden. En noteopplysning som angir at ledelsen forventer en levetid som overstiger fem år, uten at det gis opplysninger om fakta og omstendigheter som ligger til grunn for denne  forventningen, vil ikke være tilstrekkelig.","rskl § 7-39\n\nNRS 8 pkt 4.3.1.3.4\n",null,null,null,null,null,null,""]
["Utvikling av rettigheter"]
[null,"For mange immaterielle eiendeler er det ikke mulig å konstatere når de ikke lenger eksisterer. Slike immaterielle eiendeler bør føres ut av noten når de er fullt avskrevet og det ikke er klart at den immaterielle eiendelen fortsatt eksisterer","NRS 8 pkt\n 4.3.1.1.4"]
[{"$f":"+A35+1","v":13},"Er det gitt følgende opplysninger vedr. balanseførte utgifter til utvikling:\n• anskaffelseskost med spesifikasjon av balanseførte lånekostnader knyttet til egentilvirkede anleggsmidler,","rskl § 7-39\n"]
[{"$f":"+A38+1","v":14},"• tilgang og avgang i løpet av regnskapsåret,"]
[15,"• samlede avskrivninger, nedskrivninger og reverseringer av nedskrivninger, og"]
[16,"• avskrivninger, nedskrivninger og reverseringer av nedskrivninger i regnskapsåret"]
[17,"Er det opplyst om økonomisk levetid og valg av avskrivningsplan?"]
["Varige driftsmidler"]
[{"$f":"+A42+1","v":18},"Er det gitt følgende opplysninger for varige driftsmidler:\n• anskaffelseskost med spesifikasjon av balanseførte lånekostnader knyttet til egentilvirkede anleggsmidler,","rskl § 7-39\n",null,null,null,null,null,null,{"$f":"IF(F44<>\"\",\"Du har satt X for at forholdet ikke er avklart. Gi en nærmere foklaring i kommentarfeltet.\",\"\")","v":""}]
[null,null,"NRS 8\n4.3.2.5"]
[{"$f":"+A44+1","v":19},"• tilgang og avgang i løpet av regnskapsåret,",null,null,null,null,null,null,null,{"$f":"IF(F46<>\"\",\"Du har satt X for at forholdet ikke er avklart. Gi en nærmere foklaring i kommentarfeltet.\",\"\")","v":""}]
[{"$f":"+A46+1","v":20},"• samlede avskrivninger, nedskrivninger og reversering av nedskrivninger, og",null,null,null,null,null,null,null,{"$f":"IF(F47<>\"\",\"Du har satt X for at forholdet ikke er avklart. Gi en nærmere foklaring i kommentarfeltet.\",\"\")","v":""}]
[{"$f":"+A47+1","v":21},"• avskrivninger, nedskrivninger og reversering av nedskrivninger i regnskapsåret.",null,null,null,null,null,null,null,{"$f":"IF(F48<>\"\",\"Du har satt X for at forholdet ikke er avklart. Gi en nærmere foklaring i kommentarfeltet.\",\"\")","v":""}]
["Investering i datterselskap"]
[{"$f":"+A48+1","v":22},"Dersom det ikke utarbeides konsernregnskap, er det opplyst om transaksjoner med datterselskaper og interngevinst på disse?","rskl § 7-36, 4. ledd",null,null,null,null,null,null,{"$f":"IF(F50<>\"\",\"Du har satt X for at forholdet ikke er avklart. Gi en nærmere foklaring i kommentarfeltet.\",\"\")","v":""}]
["Investering i datterselskap bokført etter EK-metoden"]
[null,"Hvis investeringer i datterselskap regnskapsføres etter egenkapitalmetoden gjelder NRS 17 Virksomhetskjøp og konsernregnskap. Det er også utvidede notekrav i regnskapsloven. ","NRS 8\n4.3.3.1.4\n"]
[null,null,"rskl § 7-36"]
[{"$f":"+A50+1","v":23},"For datterselskap som regnskapsføres etter egenkapitalmetoden, er det opplyst om anskaffelseskost og balanseført egenkapital på anskaffelsestidspunktet?",null,null,null,null,null,null,null,{"$f":"IF(F54<>\"\",\"Du har satt X for at forholdet ikke er avklart. Gi en nærmere foklaring i kommentarfeltet.\",\"\")","v":""}]
[{"$f":"+A54+1","v":24},"For datterselskap som regnskapsføres etter egenkapitalmetoden, er det for hver investering opplyst om inngående balanse, inntektsført resultat, andre endringer i løpet av året og utgående balanse?",null,null,null,null,null,null,null,{"$f":"IF(F55<>\"\",\"Du har satt X for at forholdet ikke er avklart. Gi en nærmere foklaring i kommentarfeltet.\",\"\")","v":""}]
[{"$f":"+A55+1","v":25},"For datterselskap som regnskapsføres etter egenkapitalmetoden, er det opplyst om merverdier og goodwill samt avskrivninger av merverdier og goodwill?",null,null,null,null,null,null,null,{"$f":"IF(F56<>\"\",\"Du har satt X for at forholdet ikke er avklart. Gi en nærmere foklaring i kommentarfeltet.\",\"\")","v":""}]
[null,"For små foretak som utarbeider konsernregnskap gjelder også følgende punker:","rskl § 7-36"]
[{"$f":"+A56+1","v":26},"Dersom datterselskap er utelatt fra konsolideringen ihht rskl § 3-8, er dette opplyst og begrunnet?",null,null,null,null,null,null,null,{"$f":"IF(F58<>\"\",\"Du har satt X for at forholdet ikke er avklart. Gi en nærmere foklaring i kommentarfeltet.\",\"\")","v":""}]
["Investering i tilknyttet selskap"]
[null,"Hvis investeringer i tilknyttet selskap regnskapsføres etter egenkapitalmetoden gjelder NRS (F) om investering i tilknyttet selskap og deltakelse i felles kontrollert virksomhet. Det er også utvidede notekrav i regnskapsloven. ","NRS 8\n4.3.3.2.4\n"]
[null,null,"rskl § 7-36"]
[{"$f":"+A58+1","v":27},"For tilknyttet selskap som regnskapsføres etter egenkapitalmetoden, er det opplyst om anskaffelseskost og balanseført egenkapital på anskaffelsestidspunktet?",null,null,null,null,null,null,null,{"$f":"IF(F62<>\"\",\"Du har satt X for at forholdet ikke er avklart. Gi en nærmere foklaring i kommentarfeltet.\",\"\")","v":""}]
[{"$f":"+A62+1","v":28},"For tilknyttet selskap som regnskapsføres etter egenkapitalmetoden, er det for hver investering opplyst om inngående balanse, inntektsført resultat, andre endringer i løpet av året og utgående balanse?",null,null,null,null,null,null,null,{"$f":"IF(F63<>\"\",\"Du har satt X for at forholdet ikke er avklart. Gi en nærmere foklaring i kommentarfeltet.\",\"\")","v":""}]
[{"$f":"+A63+1","v":29},"For tilknyttet selskap som regnskapsføres etter egenkapitalmetoden, er det opplyst om merverdier og goodwill samt avskrivninger av merverdier og goodwill?",null,null,null,null,null,null,null,{"$f":"IF(F64<>\"\",\"Du har satt X for at forholdet ikke er avklart. Gi en nærmere foklaring i kommentarfeltet.\",\"\")","v":""}]
["Deltakelse i felleskontrollert virksomhet"]
[null,"Hvis deltakelse i felles kontrollert virksomhet regnskapsføres etter egenkapitalmetoden eller bruttometoden, gjelder NRS (F) om investering i tilknyttet selskap og deltakelse i felles kontrollert virksomhet. \nDet er utvidede notekrav for investeringer som regnskapsføres etter egenkapitalmetoden:","NRS 8\n4.3.3.3.4\n"]
[null,null,"rskl § 7-36"]
[{"$f":"+A64+1","v":30},"For felleskontrollert virksomhet som regnskapsføres etter egenkapitalmetoden, er det opplyst om anskaffelseskost og balanseført egenkapital på anskaffelsestidspunktet?",null,null,null,null,null,null,null,{"$f":"IF(F68<>\"\",\"Du har satt X for at forholdet ikke er avklart. Gi en nærmere foklaring i kommentarfeltet.\",\"\")","v":""}]
[{"$f":"+A68+1","v":31},"For felleskontrollert virksomhet som regnskapsføres etter egenkapitalmetoden, er det for hver investering opplyst om inngående balanse, inntektsført resultat, andre endringer i løpet av året og utgående balanse?",null,null,null,null,null,null,null,{"$f":"IF(F69<>\"\",\"Du har satt X for at forholdet ikke er avklart. Gi en nærmere foklaring i kommentarfeltet.\",\"\")","v":""}]
[{"$f":"+A69+1","v":32},"For felleskontrollert virksomhet som regnskapsføres etter egenkapitalmetoden, er det opplyst om merverdier og goodwill samt avskrivninger av merverdier og goodwill?",null,null,null,null,null,null,null,{"$f":"IF(F70<>\"\",\"Du har satt X for at forholdet ikke er avklart. Gi en nærmere foklaring i kommentarfeltet.\",\"\")","v":""}]
["Egne aksjer (pliktig)"]
[{"$f":"+A70+1","v":33},"Dersom selskapet har en beholdning av egne aksjer etter aksjeloven kapittel 9, er det opplyst om antallet, aksjenes pålydende verdi og den andel aksjene utgjør av aksjekapitalen?","rskl § 7-42\n",null,null,null,null,null,null,{"$f":"IF(F72<>\"\",\"Du har satt X for at forholdet ikke er avklart. Gi en nærmere foklaring i kommentarfeltet.\",\"\")","v":""}]
[null,null,"NRS 8 pkt 8.6",null,null,null,null,null,null,{"$f":"IF(F73<>\"\",\"Du har satt X for at forholdet ikke er avklart. Gi en nærmere foklaring i kommentarfeltet.\",\"\")","v":""}]
[{"$f":"+A72+1","v":34},"Dersom det har vært endringer i beholdning av egne aksjer og datterselskapenes beholdning av aksjer i morselskapet i løpet av regnskapsåret, er det minst opplyst om følgende:\n• bakgrunn for erverv som har funnet sted\n• antall aksjer som er ervervet, vederlag for disse og den andel de utgjør av aksjekapitalen\n• antall aksjer som er avhendet, vederlaget for disse og den andel de utgjør av aksjekapitalen?","rskl § 7-42\n",null,null,null,null,null,null,{"$f":"IF(F74<>\"\",\"Du har satt X for at forholdet ikke er avklart. Gi en nærmere foklaring i kommentarfeltet.\",\"\")","v":""}]
[null,null,"NRS 8 pkt 8.6",null,null,null,null,null,null,{"$f":"IF(F75<>\"\",\"Du har satt X for at forholdet ikke er avklart. Gi en nærmere foklaring i kommentarfeltet.\",\"\")","v":""}]
["Samvirkeforetaket som har medlemskapitalkonti (pliktig)"]
[{"$f":"+A74+1","v":35},"For samvirkeforetak som har medlemskapitalkonti i samsvar med lov om samvirkeforetak § 29:\n- Er det gitt opplysninger om årets utbetaling og avsetning?","rskl § 7-42",null,null,null,null,null,null,{"$f":"IF(F77<>\"\",\"Du har satt X for at forholdet ikke er avklart. Gi en nærmere foklaring i kommentarfeltet.\",\"\")","v":""}]
[{"$f":"+A77+1","v":36},"- Er det opplyst om eventuelle vedtektsbestemmelser og årsmøtevedtak eller forslag til vedtak knyttet til medlemskapitalkonti? ","rskl § 7-42",null,null,null,null,null,null,{"$f":"IF(F78<>\"\",\"Du har satt X for at forholdet ikke er avklart. Gi en nærmere foklaring i kommentarfeltet.\",\"\")","v":""}]
["Kortsiktige investeringer, ombyttbare finansielle aksjer mv."]
[{"$f":"+A78+1","v":37},"Er det for hver kategori av markedsbaserte finansielle instrumenter og varederivater som er vurdert etter hovedregelen om virkelig verdi i rskl § 5-8 (markedsverdiprinsippet), gitt følgende informasjon:\n•  Virkelig verdi\n•  Periodens resultatførte verdiendring\n•  Vesentlige opplysninger som ligger til grunn for vurderingen","rskl § 7-37",null,null,null,null,null,null,{"$f":"IF(F80<>\"\",\"Du har satt X for at forholdet ikke er avklart. Gi en nærmere foklaring i kommentarfeltet.\",\"\")","v":""}]
[{"$f":"+A80+1","v":38},"Er det gitt opplysninger om egenskaper ved og omfang av finansielle derivater som er vurdert til virkelig verdi etter rskl § 5-8 (markedsverdiprinsippet), fordelt på klasser av derivater?","rskl  § 7-37a",null,null,null,null,null,null,{"$f":"IF(F81<>\"\",\"Du har satt X for at forholdet ikke er avklart. Gi en nærmere foklaring i kommentarfeltet.\",\"\")","v":""}]
[{"$f":"+A81+1","v":39},"Omfatter opplysningene over vesentlige betingelser og forhold som kan påvirke beløpsstørrelse, tidfesting og usikkerhet ved framtidige kontantstrømmer?","rskl § 7-37a",null,null,null,null,null,null,{"$f":"IF(F82<>\"\",\"Du har satt X for at forholdet ikke er avklart. Gi en nærmere foklaring i kommentarfeltet.\",\"\")","v":""}]
["Fordringer, gjeld, garantiforpliktelser"]
[null,"De ordinære notekravene til gjeld og fordringer gjelder også for mellomværende med foretak i samme konsern, tilknyttet selskap og felleskontrollert virksomhet. I konsernforhold har man ofte ikke avtalt noen avdragsplan, det kan derfor være vanskelig å opplyse om fordringer som forfaller senere enn et år og gjeld som forfaller senere enn 5 år. I slike tilfeller bør det opplyses at avdragsplan ikke er avtalt."]
[null,"Fordringer"]
[{"$f":"+A82+1","v":40},"Er det opplyst om hvor stor del av den regnskapspliktiges fordringer som forfaller senere enn ett år etter regnskapsårets slutt?","rskl § 7-40",null,null,null,null,null,null,{"$f":"IF(F86<>\"\",\"Du har satt X for at forholdet ikke er avklart. Gi en nærmere foklaring i kommentarfeltet.\",\"\")","v":""}]
[null,null,"NRS 8 pkt 8.4",null,null,null,null,null,null,{"$f":"IF(F87<>\"\",\"Du har satt X for at forholdet ikke er avklart. Gi en nærmere foklaring i kommentarfeltet.\",\"\")","v":""}]
[null,"Gjeld"]
[{"$f":"+A86+1","v":41},"Er det opplyst om hvor stor del av den regnskapspliktig gjeld som forfaller til betaling mer enn fem år etter regnskapsårets slutt?","rskl § 7-40\n\n",null,null,null,null,null,null,{"$f":"IF(F89<>\"\",\"Du har satt X for at forholdet ikke er avklart. Gi en nærmere foklaring i kommentarfeltet.\",\"\")","v":""}]
[null,null,"NRS 8 pkt 8.4",null,null,null,null,null,null,""]
[null,null,"NRS 8 pkt 6.1.2.2",null,null,null,null,null,null,""]
[{"$f":"+A89+1","v":42},"Er det opplyst om hvor stor del av den regnskapspliktiges gjeld som er sikret ved pant eller lignende sikkerhet i den regnskapspliktiges eiendeler?",null,null,null,null,null,null,null,""]
[{"$f":"+A92+1","v":43},"Dersom det er stillet sikkerhet for gjeld som ikke er balanseført, er det gitt opplysninger om følgende:\n• hvor stor del av gjelden som er sikret ved pant","NRS 8 pkt 6.1.2.2",null,null,null,null,null,null,""]
[{"$f":"+A93+1","v":44},"Er det opplyst om balanseført verdi av de pantsatte eiendeler?",null,null,null,null,null,null,null,""]
[null,"Garantiforpliktelser","rskl § 7-40",null,null,null,null,null,null,""]
[{"$f":"+A94+1","v":45},"Er det opplyst om summen av garantiforpliktelser som ikke er regnskapsført?","NRS 8 pkt 8.4",null,null,null,null,null,null,""]
[{"$f":"+A96+1","v":46},"Er det opplyst særskilt dersom slik garantiforpliktelse er sikret ved pant?",null,null,null,null,null,null,null,""]
["Mellomværende med foretak i samme konsern, tilknyttet selskap og felles kontrollert virksomhet"]
[null,"De ordinære opplysningskravene til gjeld og fordringer gjelder også for mellomværende med foretak i samme konsern, tilknyttet selskap og felleskontrollert virksomhet. I konsernforhold har man ofte ikke avtalt noen avdragsplan, det kan derfor være vanskelig å opplyse om fordringer som forfaller senere enn et år og gjeld som forfaller senere enn 5 år. I slike tilfeller bør det opplyses at avdragsplan ikke er avtalt."]
[null,"I tillegg til de ordinære kravene vedrørende fordringer og gjeld, er det ytterligere opplysningskrav vedrørende mellomværende med foretak i samme konsern, tilknyttede selskap og felleskontrollert virksomhet."]
[{"$f":"+A97+1","v":47},"I små foretak som er morselskap, men som ikke avgir konsernregnskap, er det opplyst om transaksjoner med datterselskaper og interngevinst på disse?","rskl § 7-36, 4. ledd",null,null,null,null,null,null,{"$f":"IF(F101<>\"\",\"Du har satt X for at forholdet ikke er avklart. Gi en nærmere foklaring i kommentarfeltet.\",\"\")","v":""}]
[{"$f":"+A101+1","v":48},"Er det opplyst om det samlede beløp for henholdsvis fordringer, annen langsiktig gjeld og kortsiktig gjeld som gjelder foretak i samme konsern, tilknyttet selskap og felleskontrollert virksomhet? ","rskl § 7-36, 5. ledd",null,null,null,null,null,null,{"$f":"IF(F102<>\"\",\"Du har satt X for at forholdet ikke er avklart. Gi en nærmere foklaring i kommentarfeltet.\",\"\")","v":""}]
[{"$f":"+A102+1","v":49},"Er det vist tilsvarende tall fra foregående årsregnskap? ","rskl § 7-36, 5. ledd",null,null,null,null,null,null,{"$f":"IF(F103<>\"\",\"Du har satt X for at forholdet ikke er avklart. Gi en nærmere foklaring i kommentarfeltet.\",\"\")","v":""}]
[{"$f":"+A103+1","v":50},"Er det opplyst om samlet forpliktelse i form av pantstillelse, annen sikkerhetsstillelse og garantier til fordel for foretak i samme konsern? ","rskl § 7-36, 6. ledd\n",null,null,null,null,null,null,{"$f":"IF(F104<>\"\",\"Du har satt X for at forholdet ikke er avklart. Gi en nærmere foklaring i kommentarfeltet.\",\"\")","v":""}]
[null,null,"NRS 8 pkt 8.4",null,null,null,null,null,null,{"$f":"IF(F105<>\"\",\"Du har satt X for at forholdet ikke er avklart. Gi en nærmere foklaring i kommentarfeltet.\",\"\")","v":""}]
["Spesifisering av poster i resultatregnskapet"]
[{"$f":"+A104+1","v":51},"Er eventuelle poster i oppstillingsplanen for resultatregnskapet som er slått sammen spesifisert?","rskl § 7-38",null,null,null,null,null,null,{"$f":"IF(F107<>\"\",\"Du har satt X for at forholdet ikke er avklart. Gi en nærmere foklaring i kommentarfeltet.\",\"\")","v":""}]
[null,null,"NRS 8 pkt 8.3",null,null,null,null,null,null,{"$f":"IF(F108<>\"\",\"Du har satt X for at forholdet ikke er avklart. Gi en nærmere foklaring i kommentarfeltet.\",\"\")","v":""}]
[{"$f":"+A107+1","v":52},"Er tilsvarende sammenligningstall utarbeidet? ","rskl § 7-38",null,null,null,null,null,null,{"$f":"IF(F109<>\"\",\"Du har satt X for at forholdet ikke er avklart. Gi en nærmere foklaring i kommentarfeltet.\",\"\")","v":""}]
[null,null,"og 6-6",null,null,null,null,null,null,{"$f":"IF(F110<>\"\",\"Du har satt X for at forholdet ikke er avklart. Gi en nærmere foklaring i kommentarfeltet.\",\"\")","v":""}]
["Spesifisering av lønnskostnader"]
[{"$f":"+A109+1","v":53},"Er lønnskostnader spesifisert på lønninger, folketrygdavgift, regnskapsførte pensjonskostnader og andre ytelser?","rskl § 7-38\n",null,null,null,null,null,null,{"$f":"IF(F112<>\"\",\"Du har satt X for at forholdet ikke er avklart. Gi en nærmere foklaring i kommentarfeltet.\",\"\")","v":""}]
[null,null,"NRS 8 pkt 8.3",null,null,null,null,null,null,{"$f":"IF(F113<>\"\",\"Du har satt X for at forholdet ikke er avklart. Gi en nærmere foklaring i kommentarfeltet.\",\"\")","v":""}]
[{"$f":"+A112+1","v":54},"Er tilsvarende sammenligningstall utarbeidet?","rskl §§ 7-38 \n",null,null,null,null,null,null,{"$f":"IF(F114<>\"\",\"Du har satt X for at forholdet ikke er avklart. Gi en nærmere foklaring i kommentarfeltet.\",\"\")","v":""}]
[null,null,"og  6-6",null,null,null,null,null,null,{"$f":"IF(F115<>\"\",\"Du har satt X for at forholdet ikke er avklart. Gi en nærmere foklaring i kommentarfeltet.\",\"\")","v":""}]
["Sysselsatte årsverk (pliktig)"]
[{"$f":"+A114+1","v":55}," Er det opplyst om antall sysselsatte årsverk i regnskapsåret?","rskl § 7-43\n",null,null,null,null,null,null,{"$f":"IF(F117<>\"\",\"Du har satt X for at forholdet ikke er avklart. Gi en nærmere foklaring i kommentarfeltet.\",\"\")","v":""}]
[null,null,"NRS 8 pkt 8. 7",null,null,null,null,null,null,{"$f":"IF(F118<>\"\",\"Du har satt X for at forholdet ikke er avklart. Gi en nærmere foklaring i kommentarfeltet.\",\"\")","v":""}]
[{"$f":"+A117+1","v":56},"Dersom det ikke har vært ansatte, er dette opplyst?","NRS 8 pkt 8.7",null,null,null,null,null,null,{"$f":"IF(F119<>\"\",\"Du har satt X for at forholdet ikke er avklart. Gi en nærmere foklaring i kommentarfeltet.\",\"\")","v":""}]
["Lån og sikkerhetsstillelse til ledende personer, aksjeeiere mv. (pliktig)"]
[{"$f":"+A119+1","v":57},"Er det opplyst om samlet lån til og samlet sikkerhetsstillelse til fordel for medlemmer av styret og andre administrasjons-, ledelses- eller kontrollorgan, med angivelse av rentesats, hovedvilkår og eventuelle tilbakebetalte, avskrevne eller frafalte beløp?","rskl § 7-45\n\n",null,null,null,null,null,null,{"$f":"IF(F121<>\"\",\"Du har satt X for at forholdet ikke er avklart. Gi en nærmere foklaring i kommentarfeltet.\",\"\")","v":""}]
[null,"Medlemmer av annet administrasjons-, ledelses- eller kontrollorgan kan for eksempel være daglige ledere. ","NRS 8 pkt 4.3.3.6.3"]
["Datterselskaper"]
[{"$f":"+A121+1","v":58},"Har regnskapspliktig som er datterselskap opplyst om foretaksnavn og forretningskontor for morselskap som utarbeider konsernregnskap der den regnskapspliktige inngår i konsolideringen?","rskl § 7-36 1.ledd\n",null,null,null,null,null,null,{"$f":"IF(F124<>\"\",\"Du har satt X for at forholdet ikke er avklart. Gi en nærmere foklaring i kommentarfeltet.\",\"\")","v":""}]
[null,null,"NRS 8 pkt 8.5",null,null,null,null,null,null,{"$f":"IF(F125<>\"\",\"Du har satt X for at forholdet ikke er avklart. Gi en nærmere foklaring i kommentarfeltet.\",\"\")","v":""}]
["Særlige poster"]
[{"$f":"+A124+1","v":59},"Er det gitt noteopplysninger som forklarer arten av postene som er presentert som særlige poster i resultatregnskapet, samt hva som er grunnlaget for presentasjon på egen linje?","NRS 8 pkt 7.3.3"]
[null,"Opplysninger gitt i samsvar med dette punktet anses dekkende for opplysninger om ekstraordinære inntekter og kostnader som kreves av regnskapsloven § 7-41."]
["Fortsatt drift"]
[{"$f":"+A127+1","v":60},"Dersom det er usikkerhet om fortsatt drift, er det opplyst om usikkerheten?","rskl § 7-46",null,null,null,null,null,null,{"$f":"IF(F130<>\"\",\"Du har satt X for at forholdet ikke er avklart. Gi en nærmere foklaring i kommentarfeltet.\",\"\")","v":""}]
[null,null,"NRS 8 pkt 8.10"]
["Avvikling"]
[null,"Foretaket skal ikke basere regnskapet på forutsetningen om fortsatt drift hvis det, innen regnskapet avlegges av styret, blir vedtatt en intensjon om å likvidere foretaket eller innstille driften, eller fortsatt drift ikke er noe realistisk alternativ. I så fall skal det  utarbeides et avviklingsregnskap.","NRS 8 pkt 8.10"]
[{"$f":"+A130+1","v":61},"I slike tilfeller som beskrevet ovenfor, angis noteopplysningene om anvendte regnskapsprinsipper at forutsetningen om fortsatt drift ikke er lagt til grunn og at eiedeler og gjeld vurderes til virkelig verdi ved avvikling, jf. rskl § 7-35 og § 4-5?",null,null,null,null,null,null,null,{"$f":"IF(F134<>\"\",\"Du har satt X for at forholdet ikke er avklart. Gi en nærmere foklaring i kommentarfeltet.\",\"\")","v":""}]
["Tilleggskrav for borettslag"]
[null,"Tilleggssjekklisten gjelder for borettslag som er pålagt å følge forskrift om årsregnskap og årsberetning for borettslag (årsregnf 2005-06-30 nr.745).  Tilleggsopplysninger i noter til årsregnskapet skal gis i samsvar med regnskapsloven kapittel 7 og minimum inneholde punktene som er listet opp nedenfor. Opplysningene kan utelates når de ikke er av betydning for å bedømme den regnskapspliktiges stilling og resultat. ","Forskrift om årsregnskap og årsberetning for borettslag § 5"]
[{"$f":"+A134+1","v":62},"Er det opplyst om disponible midler i samsvar med § 2 dersom opplysningene ikke er gitt i en egen regnskapsoppstilling?",null,null,null,null,null,null,null,{"$f":"IF(F137<>\"\",\"Du har satt X for at forholdet ikke er avklart. Gi en nærmere foklaring i kommentarfeltet.\",\"\")","v":""}]
[{"$f":"+A137+1","v":63},"Er det opplyst om honorar til forretningsfører, dersom dette ikke er spesifisert på egen linje i resultatregnskapet? ",null,null,null,null,null,null,null,""]
[64,"Er det opplyst om aksjer og andeler i selskaper hvor borettslagets eierandel er over 10 prosent eller investeringen utgjør mer enn 50 prosent av borettslagets egenkapital med slik spesifikasjon?\n• For aksjer: Angivelse av selskapets navn og aksjekapital, antall aksjer, pålydende og balanseført verdi. \n• For andeler og andre investeringer: Opplysninger om selskapets navn og andelens størrelse samt om hvordan dets resultat og stilling kommer til uttrykk i borettslagets årsregnskap. ",null,null,null,null,null,null,null,""]
[65,"Er det opplyst om eventuelle øremerkede bankinnskudd, som ikke er opplyst gjennom spesifikasjon i balansen? ",null,null,null,null,null,null,null,""]
[66,"Er det opplyst om leie av anleggsmidler der leieavtalen er av vesentlig betydning for borettslagets drift? \nDet skal gis opplysninger om hvilke anleggsmidler avtalen omfatter, avtalens varighet, om eventuell rett for virksomheten til å overta anleggsmidlene, samt om den årlige leie.",null,null,null,null,null,null,null,""]
[67,"Er det opplyst om spesifikasjon av poster som gjelder vedlikehold og påkostning? \nEventuell vedlikeholdsavsetning skal spesifiseres særskilt, herunder regnskapsmessig behandling av avsetningen. ",null,null,null,null,null,null,null,""]
[68,"Er det opplyst om anskaffelseskostnad og anskaffelsesår, basert på ferdigstillelsesdato, for hver post i balansen som gjelder varige driftsmidler? ",null,null,null,null,null,null,null,""]
[69,"Er opplysninger om anleggsmidler etter regnskapsloven § 7-12 og § 7-39 første og annet ledd, spesifisert for hvert enkelt anleggsmiddel eller gruppe av anleggsmidler?",null,null,null,null,null,null,null,""]
[70,"Er det for hver post under langsiktig gjeld opplyst om rente- og avdragsbetingelser, løpetid og eventuelle andre betingelser av vesentlig betydning for regnskapsbrukerne? \n",null,null,null,null,null,null,null,""]
[71,"Dersom det er foretatt individuell nedbetaling av gjeld, er det opplyst om dette?",null,null,null,null,null,null,null,""]
[72,"For borettslag som har ulik prosentvis fordeling av fellesgjeld, er det også gitt en oversikt over hvordan fellesgjelden er fordelt på de ulike borettslagsandelene?",null,null,null,null,null,null,null,""]
[73,"Dersom avdragene på fellesgjelden i henhold til nedbetalingsplan er beregnet å øke i fremtiden, er det opplyst om hvilket beløp felleskostnadene vil øke med for hver borettslagsandel, basert på gjeldende nedbetalingsplan?",null,null,null,null,null,null,null,""]
[74,"Dersom eiendelenes balanseførte verdi er lavere enn balanseført verdi av gjelden, er det nærmere opplysninger med angivelse av om virkelig verdi av eiendelene antas å være høyere enn balanseført verdi av gjelden? ",null,null,null,null,null,null,null,""]
["Tilleggskrav for eiendomsmeglere"]
[null,"Tilleggssjekklisten gjelder for eiendomsmeglere og andre som er pålagt å følge forskrift om årsregnskap m.m. for eiendomsmeglere (årsregnf.1999-10-14 nr.1084).  ","Forskrift om årsregnskap for eiendomsmeglere § 3"]
[{"$f":"+A149+1","v":75},"Er det opplyst om hvor mye foretaket oppbevarer av midler som tilhører klientene (klientmidler), samt om størrelsen på foretakets klientansvar (klientgjeld)? ",null,null,null,null,null,null,null,{"$f":"IF(F152<>\"\",\"Du har satt X for at forholdet ikke er avklart. Gi en nærmere foklaring i kommentarfeltet.\",\"\")","v":""}]
[{"$f":"+A152+1","v":76},"Dersom klientmidler ikke fullt ut dekker klientansvaret, er underdekningen forklart? \nTilsvarende gjelder dersom innestående på konto for klientmidler overstiger klientansvaret.",null,null,null,null,null,null,null,{"$f":"IF(F153<>\"\",\"Du har satt X for at forholdet ikke er avklart. Gi en nærmere foklaring i kommentarfeltet.\",\"\")","v":""}]
["Tilleggskrav for inkassovirksomhet"]
[null,"Tilleggssjekklisten gjelder for inkassovirksomhet som er pålagt å følge forskrift om årsregnskap m.m. for inkassovirksomhet (årsregnf. 1999-05-28 nr.655).  ","Forskrift om årsregnskap for inkassovirksomhet kap 4"]
[{"$f":"+A153+1","v":77},"Opplyses det under regnskapssprinsipper om hovedprinsipper for inntektsføring av inkassosaker, herunder prinsippene for beregning av opptjent fortjeneste, fullføringsgraden og grunnlaget for gruppevurdering?","§ 4-1",null,null,null,null,null,null,{"$f":"IF(F156<>\"\",\"Du har satt X for at forholdet ikke er avklart. Gi en nærmere foklaring i kommentarfeltet.\",\"\")","v":""}]
[{"$f":"+A156+1","v":78},"Er det opplyst om avsetninger til tap fordelt på de enkelte poster i balansen?","§ 4-2",null,null,null,null,null,null,{"$f":"IF(F157<>\"\",\"Du har satt X for at forholdet ikke er avklart. Gi en nærmere foklaring i kommentarfeltet.\",\"\")","v":""}]
[{"$f":"+A157+1","v":79},"Har de opplyst om hvor mye foretaket oppbevarer av midler som tilhører klientene (klientmidler), samt om størrelsen på foretakets klientansvar (klientgjeld)? \nDersom klientmidlene ikke fullt ut dekker klientansvaret skal underdekningen forklares. Tilsvarende gjelder dersom midler innestående på konto for klientmidler overstiger klientansvaret.","§ 4-3",null,null,null,null,null,null,{"$f":"IF(F158<>\"\",\"Du har satt X for at forholdet ikke er avklart. Gi en nærmere foklaring i kommentarfeltet.\",\"\")","v":""}]
["Tilleggskrav for barnehage"]
[null,"Tilleggsspørsmålene gjelder for private barnehager som er pålagt å være et selvstendig rettssubjekt etter barnehageloven § 7a første ledd","Økonomiforskrift til barnehageloven § 4"]
[{"$f":"+A158+1","v":80},"Ved eventuell tilleggsvirksomhet, er avdelingsregnskap oppgitt i note?","§ 4"]
[{"$f":"+A161+1","v":81},"Er interne transaksjoner mellom avdelingene og hvordan felleskostnadene er fordelt oppgitt i note til årsregnskapet?","§ 4"]
[{"$f":"+A162+1","v":82},"Ved handel med eieren, eierens nærstående eller selskap i samme konsern, har barnehagen i note til årsregnskapet spesifisert hvem barnehagen har handlet med, hvilke varer og tjenester som er kjøpt og totalbeløpene for de ulike varene og tjenestene?","§ 4"]
[{"$f":"+A163+1","v":83},"Dersom barnehagen ikke har hatt handel med eieren, eierens nærstående eller selskap i samme konsern, er dette positivt opplyst om?","§ 4"]

{"sheet":"N_Ubesv.","index":2,"n_rows":61,"n_cols":9,"rows_kept":61,"cut":false,"hidden":true,"merged":[]}
["Ikke besvart","Spørsmål",{"$f":"+FrontPage!B3","v":2024},"Kommentar",null,null,{"$f":"+FrontPage!B2","v":0},{"$f":"+FrontPage!B3","v":2024},"Kommentarer"]
[1,"Har noteopplysningene for poster i balanse og resultatregnskap samme rekkefølge som postene i oppstillingen for balanse og resultatregnskap?"]
[2,"Er det gitt opplysninger om anvendte regnskapsprinsipper?"]
[3,"Dersom sammenligningstallene er omarbeidet, er det opplyst om?"]
[4,"Dersom sammenligningstallene i regnskapet er omarbeidet, er omarbeidingen forklart?"]
[5,"Er alle de regnskapsprinsipper som er omtalt i notene aktuelle og sentrale for selskapet?"]
[6,"Er det gitt følgende opplysninger vedr. goodwill:\n• Anskaffelseskost med spesifikasjon av balanseførte lånekostnader knyttet til egentilvirkede anleggsmidler"]
[7,"• Tilgang og avgang i løpet av regnskapsåret"]
[8,"• Samlede avskrivninger og nedskrivninger, og"]
[9,"• Avskrivninger og nedskrivninger  i regnskapsåret"]
[10,"Er det opplyst om økonomisk levetid og valg av avskrivningsplan?"]
[11,"Er balanseført goodwill spesifisert for hvert enkelt virksomhetskjøp?"]
[12,"Er avskrivningsplan for goodwill som er lengre enn fem år begrunnet?"]
[13,"Er det gitt følgende opplysninger vedr. balanseførte utgifter til utvikling:\n• anskaffelseskost med spesifikasjon av balanseførte lånekostnader knyttet til egentilvirkede anleggsmidler,"]
[14,"• tilgang og avgang i løpet av regnskapsåret,"]
[15,"• samlede avskrivninger, nedskrivninger og reverseringer av nedskrivninger, og"]
[16,"• avskrivninger, nedskrivninger og reverseringer av nedskrivninger i regnskapsåret"]
[17,"Er det opplyst om økonomisk levetid og valg av avskrivningsplan?"]
[18,"Er det gitt følgende opplysninger for varige driftsmidler:\n• anskaffelseskost med spesifikasjon av balanseførte lånekostnader knyttet til egentilvirkede anleggsmidler,"]
[19,"• tilgang og avgang i løpet av regnskapsåret,"]
[20,"• samlede avskrivninger, nedskrivninger og reversering av nedskrivninger, og"]
[21,"• avskrivninger, nedskrivninger og reversering av nedskrivninger i regnskapsåret."]
[22,"Dersom det ikke utarbeides konsernregnskap, er det opplyst om transaksjoner med datterselskaper og interngevinst på disse?"]
[23,"For datterselskap som regnskapsføres etter egenkapitalmetoden, er det opplyst om anskaffelseskost og balanseført egenkapital på anskaffelsestidspunktet?"]
[24,"For datterselskap som regnskapsføres etter egenkapitalmetoden, er det for hver investering opplyst om inngående balanse, inntektsført resultat, andre endringer i løpet av året og utgående balanse?"]
[25,"For datterselskap som regnskapsføres etter egenkapitalmetoden, er det opplyst om merverdier og goodwill samt avskrivninger av merverdier og goodwill?"]
[26,"Dersom datterselskap er utelatt fra konsolideringen ihht rskl § 3-8, er dette opplyst og begrunnet?"]
[27,"For tilknyttet selskap som regnskapsføres etter egenkapitalmetoden, er det opplyst om anskaffelseskost og balanseført egenkapital på anskaffelsestidspunktet?"]
[28,"For tilknyttet selskap som regnskapsføres etter egenkapitalmetoden, er det for hver investering opplyst om inngående balanse, inntektsført resultat, andre endringer i løpet av året og utgående balanse?"]
[29,"For tilknyttet selskap som regnskapsføres etter egenkapitalmetoden, er det opplyst om merverdier og goodwill samt avskrivninger av merverdier og goodwill?"]
[30,"For felleskontrollert virksomhet som regnskapsføres etter egenkapitalmetoden, er det opplyst om anskaffelseskost og balanseført egenkapital på anskaffelsestidspunktet?"]
[31,"For felleskontrollert virksomhet som regnskapsføres etter egenkapitalmetoden, er det for hver investering opplyst om inngående balanse, inntektsført resultat, andre endringer i løpet av året og utgående balanse?"]
[32,"For felleskontrollert virksomhet som regnskapsføres etter egenkapitalmetoden, er det opplyst om merverdier og goodwill samt avskrivninger av merverdier og goodwill?"]
[33,"Dersom selskapet har en beholdning av egne aksjer etter aksjeloven kapittel 9, er det opplyst om antallet, aksjenes pålydende verdi og den andel aksjene utgjør av aksjekapitalen?"]
[34,"Dersom det har vært endringer i beholdning av egne aksjer og datterselskapenes beholdning av aksjer i morselskapet i løpet av regnskapsåret, er det minst opplyst om følgende:\n• bakgrunn for erverv som har funnet sted\n• antall aksjer som er ervervet, vederlag for disse og den andel de utgjør av aksjekapitalen\n• antall aksjer som er avhendet, vederlaget for disse og den andel de utgjør av aksjekapitalen?"]
[35,"Har samvirkeforetak som har medlemskapitalkonti i samsvar med lov om samvirkeforetak § 29, gitt opplysninger om årets utbetaling og avsetning?"]
[36,"Er det opplyst om eventuelle vedtektsbestemmelser og årsmøtevedtak eller forslag til vedtak knyttet til medlemskapitalkonti? "]
[37,"Er det for hver kategori av markedsbaserte finansielle instrumenter og varederivater som er vurdert etter hovedregelen om virkelig verdi i rskl § 5-8 (markedsverdiprinsippet), gitt følgende informasjon:\n•  Virkelig verdi\n•  Periodens resultatførte verdiendring\n•  Vesentlige opplysninger som ligger til grunn for vurderingen"]
[38,"Er det gitt opplysninger om egenskaper ved og omfang av finansielle derivater som er vurdert til virkelig verdi etter rskl § 5-8 (markedsverdiprinsippet), fordelt på klasser av derivater?"]
[39,"Omfatter opplysningene over vesentlige betingelser og forhold som kan påvirke beløpsstørrelse, tidfesting og usikkerhet ved framtidige kontantstrømmer?"]
[40,"Er det opplyst om hvor stor del av den regnskapspliktiges fordringer som forfaller senere enn ett år etter regnskapsårets slutt?"]
[41,"Er det opplyst om hvor stor del av den regnskapspliktig gjeld som forfaller til betaling mer enn fem år etter regnskapsårets slutt?"]
[42,"Er det opplyst om hvor stor del av den regnskapspliktiges gjeld som er sikret ved pant eller lignende sikkerhet i den regnskapspliktiges eiendeler?"]
[43,"Dersom det er stillet sikkerhet for gjeld som ikke er balanseført, er det gitt opplysninger om følgende:\n• hvor stor del av gjelden som er sikret ved pant"]
[44,"Er det opplyst om balanseført verdi av de pantsatte eiendeler?"]
[45,"Er det opplyst om summen av garantiforpliktelser som ikke er regnskapsført?"]
[46,"Er det opplyst særskilt dersom slik garantiforpliktelse er sikret ved pant?"]
[47,"I små foretak som er morselskap, men som ikke avgir konsernregnskap, er det opplyst om mellomværende med datterselskap?"]
[48,"Er det opplyst om det samlede beløp for henholdsvis fordringer, annen langsiktig gjeld og kortsiktig gjeld som gjelder foretak i samme konsern, tilknyttet selskap og felleskontrollert virksomhet? "]
[49,"Er det vist tilsvarende tall fra foregående årsregnskap? "]
[50,"Er det opplyst om samlet forpliktelse i form av pantstillelse, annen sikkerhetsstillelse og garantier til fordel for foretak i samme konsern? "]
[51,"Er eventuelle poster i oppstillingsplanen for resultatregnskapet som er slått sammen spesifisert?"]
[52,"Er tilsvarende sammenligningstall utarbeidet? "]
[53,"Er lønnskostnader spesifisert på lønninger, folketrygdavgift, regnskapsførte pensjonskostnader og andre ytelser?"]
[54,"Er tilsvarende sammenligningstall utarbeidet?"]
[55," Er det opplyst om antall sysselsatte årsverk i regnskapsåret?"]
[56,"Dersom det ikke har vært ansatte, er dette opplyst?"]
[57,"Er det opplyst om samlet lån til og samlet sikkerhetsstillelse til fordel for medlemmer av styret og andre administrasjons-, ledelses- eller kontrollorgan, med angivelse av rentesats, hovedvilkår og eventuelle tilbakebetalte, avskrevne eller frafalte beløp?"]
[58,"Har regnskapspliktig som er datterselskap opplyst om foretaksnavn og forretningskontor for morselskap som utarbeider konsernregnskap der den regnskapspliktige inngår i konsolideringen?"]
[59,"Dersom det er usikkerhet om fortsatt drift, er det opplyst om usikkerheten?"]
[60,"I slike tilfeller som beskrevet ovenfor, angis noteopplysningene om anvendte regnskapsprinsipper at forutsetningen om fortsatt drift ikke er lagt til grunn og at eiedeler og gjeld vurderes til virkelig verdi ved avvikling, jf. rskl § 7-35 og § 4-5?"]

{"sheet":"N_Ja","index":3,"n_rows":79,"n_cols":7,"rows_kept":79,"cut":false,"hidden":true,"merged":[]}
[null,null,{"$f":"COUNTIF(C3:C461,\"=1\")","v":0},"Ja-svar",{"$f":"+FrontPage!B2","v":0},{"$f":"+FrontPage!B3","v":2024},"Kommentarer"]
[{"$f":"'Sjekkliste noter'!A16","v":1},{"$f":"IF('Sjekkliste noter'!E16<>\"\",1,0)","v":0},{"$f":"SUM(B2:B2)","v":0},{"$f":"IF($C2=1,'Sjekkliste noter'!A16,\"\")","v":""},{"$f":"IF($C2=1,'Sjekkliste noter'!B16,\"\")","v":""},null,{"$f":"IF($C2=1,'Sjekkliste noter'!H16,\"\")","v":""}]
[{"$f":"'Sjekkliste noter'!A18","v":2},{"$f":"IF('Sjekkliste noter'!E18<>\"\",1,0)","v":0},0,{"$f":"IF($C3=1,'Sjekkliste noter'!A18,\"\")","v":""},{"$f":"IF($C3=1,'Sjekkliste noter'!B18,\"\")","v":""},null,{"$f":"IF($C3=1,'Sjekkliste noter'!H18,\"\")","v":""}]
[{"$f":"'Sjekkliste noter'!A21","v":3},{"$f":"IF('Sjekkliste noter'!E21<>\"\",1,0)","v":0},0,{"$f":"IF($C4=1,'Sjekkliste noter'!A21,\"\")","v":""},{"$f":"IF($C4=1,'Sjekkliste noter'!B21,\"\")","v":""},null,{"$f":"IF($C4=1,'Sjekkliste noter'!H21,\"\")","v":""}]
[{"$f":"'Sjekkliste noter'!A24","v":4},{"$f":"IF('Sjekkliste noter'!E24<>\"\",1,0)","v":0},0,{"$f":"IF($C5=1,'Sjekkliste noter'!A24,\"\")","v":""},{"$f":"IF($C5=1,'Sjekkliste noter'!B24,\"\")","v":""},null,{"$f":"IF($C5=1,'Sjekkliste noter'!H24,\"\")","v":""}]
[{"$f":"'Sjekkliste noter'!A26","v":5},{"$f":"IF('Sjekkliste noter'!E26<>\"\",1,0)","v":0},0,{"$f":"IF($C6=1,'Sjekkliste noter'!A26,\"\")","v":""},{"$f":"IF($C6=1,'Sjekkliste noter'!B26,\"\")","v":""},null,{"$f":"IF($C6=1,'Sjekkliste noter'!H26,\"\")","v":""}]
[{"$f":"'Sjekkliste noter'!A28","v":6},{"$f":"IF('Sjekkliste noter'!E28<>\"\",1,0)","v":0},0,{"$f":"IF($C7=1,'Sjekkliste noter'!A28,\"\")","v":""},{"$f":"IF($C7=1,'Sjekkliste noter'!B28,\"\")","v":""},null,{"$f":"IF($C7=1,'Sjekkliste noter'!H28,\"\")","v":""}]
[{"$f":"'Sjekkliste noter'!A30","v":7},{"$f":"IF('Sjekkliste noter'!E30<>\"\",1,0)","v":0},0,{"$f":"IF($C8=1,'Sjekkliste noter'!A30,\"\")","v":""},{"$f":"IF($C8=1,'Sjekkliste noter'!B30,\"\")","v":""},null,{"$f":"IF($C8=1,'Sjekkliste noter'!H30,\"\")","v":""}]
[{"$f":"'Sjekkliste noter'!A31","v":8},{"$f":"IF('Sjekkliste noter'!E31<>\"\",1,0)","v":0},0,{"$f":"IF($C9=1,'Sjekkliste noter'!A31,\"\")","v":""},{"$f":"IF($C9=1,'Sjekkliste noter'!B31,\"\")","v":""},null,{"$f":"IF($C9=1,'Sjekkliste noter'!H31,\"\")","v":""}]
[{"$f":"'Sjekkliste noter'!A32","v":9},{"$f":"IF('Sjekkliste noter'!E32<>\"\",1,0)","v":0},0,{"$f":"IF($C10=1,'Sjekkliste noter'!A32,\"\")","v":""},{"$f":"IF($C10=1,'Sjekkliste noter'!B32,\"\")","v":""},null,{"$f":"IF($C10=1,'Sjekkliste noter'!H32,\"\")","v":""}]
[{"$f":"'Sjekkliste noter'!A33","v":10},{"$f":"IF('Sjekkliste noter'!E33<>\"\",1,0)","v":0},0,{"$f":"IF($C11=1,'Sjekkliste noter'!A33,\"\")","v":""},{"$f":"IF($C11=1,'Sjekkliste noter'!B33,\"\")","v":""},null,{"$f":"IF($C11=1,'Sjekkliste noter'!H33,\"\")","v":""}]
[{"$f":"'Sjekkliste noter'!A34","v":11},{"$f":"IF('Sjekkliste noter'!E34<>\"\",1,0)","v":0},0,{"$f":"IF($C12=1,'Sjekkliste noter'!A34,\"\")","v":""},{"$f":"IF($C12=1,'Sjekkliste noter'!B34,\"\")","v":""},null,{"$f":"IF($C12=1,'Sjekkliste noter'!H34,\"\")","v":""}]
[{"$f":"'Sjekkliste noter'!A35","v":12},{"$f":"IF('Sjekkliste noter'!E35<>\"\",1,0)","v":0},0,{"$f":"IF($C13=1,'Sjekkliste noter'!A35,\"\")","v":""},{"$f":"IF($C13=1,'Sjekkliste noter'!B35,\"\")","v":""},null,{"$f":"IF($C13=1,'Sjekkliste noter'!H35,\"\")","v":""}]
[{"$f":"'Sjekkliste noter'!A38","v":13},{"$f":"IF('Sjekkliste noter'!E38<>\"\",1,0)","v":0},0,{"$f":"IF($C14=1,'Sjekkliste noter'!A38,\"\")","v":""},{"$f":"IF($C14=1,'Sjekkliste noter'!B38,\"\")","v":""},null,{"$f":"IF($C14=1,'Sjekkliste noter'!H38,\"\")","v":""}]
[{"$f":"'Sjekkliste noter'!A39","v":14},{"$f":"IF('Sjekkliste noter'!E39<>\"\",1,0)","v":0},0,{"$f":"IF($C15=1,'Sjekkliste noter'!A39,\"\")","v":""},{"$f":"IF($C15=1,'Sjekkliste noter'!B39,\"\")","v":""},null,{"$f":"IF($C15=1,'Sjekkliste noter'!H39,\"\")","v":""}]
[{"$f":"'Sjekkliste noter'!A40","v":15},{"$f":"IF('Sjekkliste noter'!E40<>\"\",1,0)","v":0},0,{"$f":"IF($C16=1,'Sjekkliste noter'!A40,\"\")","v":""},{"$f":"IF($C16=1,'Sjekkliste noter'!B40,\"\")","v":""},null,{"$f":"IF($C16=1,'Sjekkliste noter'!H40,\"\")","v":""}]
[{"$f":"'Sjekkliste noter'!A41","v":16},{"$f":"IF('Sjekkliste noter'!E41<>\"\",1,0)","v":0},0,{"$f":"IF($C17=1,'Sjekkliste noter'!A41,\"\")","v":""},{"$f":"IF($C17=1,'Sjekkliste noter'!B41,\"\")","v":""},null,{"$f":"IF($C17=1,'Sjekkliste noter'!H41,\"\")","v":""}]
[{"$f":"'Sjekkliste noter'!A42","v":17},{"$f":"IF('Sjekkliste noter'!E42<>\"\",1,0)","v":0},0,{"$f":"IF($C18=1,'Sjekkliste noter'!A42,\"\")","v":""},{"$f":"IF($C18=1,'Sjekkliste noter'!B42,\"\")","v":""},null,{"$f":"IF($C18=1,'Sjekkliste noter'!H42,\"\")","v":""}]
[{"$f":"'Sjekkliste noter'!A44","v":18},{"$f":"IF('Sjekkliste noter'!E44<>\"\",1,0)","v":0},0,{"$f":"IF($C19=1,'Sjekkliste noter'!A44,\"\")","v":""},{"$f":"IF($C19=1,'Sjekkliste noter'!B44,\"\")","v":""},null,{"$f":"IF($C19=1,'Sjekkliste noter'!H44,\"\")","v":""}]
[{"$f":"'Sjekkliste noter'!A46","v":19},{"$f":"IF('Sjekkliste noter'!E46<>\"\",1,0)","v":0},0,{"$f":"IF($C20=1,'Sjekkliste noter'!A46,\"\")","v":""},{"$f":"IF($C20=1,'Sjekkliste noter'!B46,\"\")","v":""},null,{"$f":"IF($C20=1,'Sjekkliste noter'!H46,\"\")","v":""}]
[{"$f":"'Sjekkliste noter'!A47","v":20},{"$f":"IF('Sjekkliste noter'!E47<>\"\",1,0)","v":0},0,{"$f":"IF($C21=1,'Sjekkliste noter'!A47,\"\")","v":""},{"$f":"IF($C21=1,'Sjekkliste noter'!B47,\"\")","v":""},null,{"$f":"IF($C21=1,'Sjekkliste noter'!H47,\"\")","v":""}]
[{"$f":"'Sjekkliste noter'!A48","v":21},{"$f":"IF('Sjekkliste noter'!E48<>\"\",1,0)","v":0},0,{"$f":"IF($C22=1,'Sjekkliste noter'!A48,\"\")","v":""},{"$f":"IF($C22=1,'Sjekkliste noter'!B48,\"\")","v":""},null,{"$f":"IF($C22=1,'Sjekkliste noter'!H48,\"\")","v":""}]
[{"$f":"'Sjekkliste noter'!A50","v":22},{"$f":"IF('Sjekkliste noter'!E50<>\"\",1,0)","v":0},0,{"$f":"IF($C23=1,'Sjekkliste noter'!A50,\"\")","v":""},{"$f":"IF($C23=1,'Sjekkliste noter'!B50,\"\")","v":""},null,{"$f":"IF($C23=1,'Sjekkliste noter'!H50,\"\")","v":""}]
[{"$f":"'Sjekkliste noter'!A54","v":23},{"$f":"IF('Sjekkliste noter'!E54<>\"\",1,0)","v":0},0,{"$f":"IF($C24=1,'Sjekkliste noter'!A54,\"\")","v":""},{"$f":"IF($C24=1,'Sjekkliste noter'!B54,\"\")","v":""},null,{"$f":"IF($C24=1,'Sjekkliste noter'!H54,\"\")","v":""}]
[{"$f":"'Sjekkliste noter'!A55","v":24},{"$f":"IF('Sjekkliste noter'!E55<>\"\",1,0)","v":0},0,{"$f":"IF($C25=1,'Sjekkliste noter'!A55,\"\")","v":""},{"$f":"IF($C25=1,'Sjekkliste noter'!B55,\"\")","v":""},null,{"$f":"IF($C25=1,'Sjekkliste noter'!H55,\"\")","v":""}]
[{"$f":"'Sjekkliste noter'!A56","v":25},{"$f":"IF('Sjekkliste noter'!E56<>\"\",1,0)","v":0},0,{"$f":"IF($C26=1,'Sjekkliste noter'!A56,\"\")","v":""},{"$f":"IF($C26=1,'Sjekkliste noter'!B56,\"\")","v":""},null,{"$f":"IF($C26=1,'Sjekkliste noter'!H56,\"\")","v":""}]
[{"$f":"'Sjekkliste noter'!A58","v":26},{"$f":"IF('Sjekkliste noter'!E58<>\"\",1,0)","v":0},0,{"$f":"IF($C27=1,'Sjekkliste noter'!A58,\"\")","v":""},{"$f":"IF($C27=1,'Sjekkliste noter'!B58,\"\")","v":""},null,{"$f":"IF($C27=1,'Sjekkliste noter'!H58,\"\")","v":""}]
[{"$f":"'Sjekkliste noter'!A62","v":27},{"$f":"IF('Sjekkliste noter'!E62<>\"\",1,0)","v":0},0,{"$f":"IF($C28=1,'Sjekkliste noter'!A62,\"\")","v":""},{"$f":"IF($C28=1,'Sjekkliste noter'!B62,\"\")","v":""},null,{"$f":"IF($C28=1,'Sjekkliste noter'!H62,\"\")","v":""}]
[{"$f":"'Sjekkliste noter'!A63","v":28},{"$f":"IF('Sjekkliste noter'!E63<>\"\",1,0)","v":0},0,{"$f":"IF($C29=1,'Sjekkliste noter'!A63,\"\")","v":""},{"$f":"IF($C29=1,'Sjekkliste noter'!B63,\"\")","v":""},null,{"$f":"IF($C29=1,'Sjekkliste noter'!H63,\"\")","v":""}]
[{"$f":"'Sjekkliste noter'!A64","v":29},{"$f":"IF('Sjekkliste noter'!E64<>\"\",1,0)","v":0},0,{"$f":"IF($C30=1,'Sjekkliste noter'!A64,\"\")","v":""},{"$f":"IF($C30=1,'Sjekkliste noter'!B64,\"\")","v":""},null,{"$f":"IF($C30=1,'Sjekkliste noter'!H64,\"\")","v":""}]
[{"$f":"'Sjekkliste noter'!A68","v":30},{"$f":"IF('Sjekkliste noter'!E68<>\"\",1,0)","v":0},0,{"$f":"IF($C31=1,'Sjekkliste noter'!A68,\"\")","v":""},{"$f":"IF($C31=1,'Sjekkliste noter'!B68,\"\")","v":""},null,{"$f":"IF($C31=1,'Sjekkliste noter'!H68,\"\")","v":""}]
[{"$f":"'Sjekkliste noter'!A69","v":31},{"$f":"IF('Sjekkliste noter'!E69<>\"\",1,0)","v":0},0,{"$f":"IF($C32=1,'Sjekkliste noter'!A69,\"\")","v":""},{"$f":"IF($C32=1,'Sjekkliste noter'!B69,\"\")","v":""},null,{"$f":"IF($C32=1,'Sjekkliste noter'!H69,\"\")","v":""}]
[{"$f":"'Sjekkliste noter'!A70","v":32},{"$f":"IF('Sjekkliste noter'!E70<>\"\",1,0)","v":0},0,{"$f":"IF($C33=1,'Sjekkliste noter'!A70,\"\")","v":""},{"$f":"IF($C33=1,'Sjekkliste noter'!B70,\"\")","v":""},null,{"$f":"IF($C33=1,'Sjekkliste noter'!H70,\"\")","v":""}]
[{"$f":"'Sjekkliste noter'!A72","v":33},{"$f":"IF('Sjekkliste noter'!E72<>\"\",1,0)","v":0},{"$f":"SUM(B34:B34)","v":0},{"$f":"IF($C34=1,'Sjekkliste noter'!A72,\"\")","v":""},{"$f":"IF($C34=1,'Sjekkliste noter'!B72,\"\")","v":""},null,{"$f":"IF($C34=1,'Sjekkliste noter'!H72,\"\")","v":""}]
[{"$f":"'Sjekkliste noter'!A74","v":34},{"$f":"IF('Sjekkliste noter'!E74<>\"\",1,0)","v":0},0,{"$f":"IF($C35=1,'Sjekkliste noter'!A74,\"\")","v":""},{"$f":"IF($C35=1,'Sjekkliste noter'!B74,\"\")","v":""},null,{"$f":"IF($C35=1,'Sjekkliste noter'!H74,\"\")","v":""}]
[{"$f":"'Sjekkliste noter'!A77","v":35},{"$f":"IF('Sjekkliste noter'!E77<>\"\",1,0)","v":0},0,{"$f":"IF($C36=1,'Sjekkliste noter'!A77,\"\")","v":""},{"$f":"IF($C36=1,'Sjekkliste noter'!B77,\"\")","v":""},null,{"$f":"IF($C36=1,'Sjekkliste noter'!H77,\"\")","v":""}]
[{"$f":"'Sjekkliste noter'!A78","v":36},{"$f":"IF('Sjekkliste noter'!E78<>\"\",1,0)","v":0},0,{"$f":"IF($C37=1,'Sjekkliste noter'!A78,\"\")","v":""},{"$f":"IF($C37=1,'Sjekkliste noter'!B78,\"\")","v":""},null,{"$f":"IF($C37=1,'Sjekkliste noter'!H78,\"\")","v":""}]
[{"$f":"'Sjekkliste noter'!A80","v":37},{"$f":"IF('Sjekkliste noter'!E80<>\"\",1,0)","v":0},0,{"$f":"IF($C38=1,'Sjekkliste noter'!A80,\"\")","v":""},{"$f":"IF($C38=1,'Sjekkliste noter'!B80,\"\")","v":""},null,{"$f":"IF($C38=1,'Sjekkliste noter'!H80,\"\")","v":""}]
[{"$f":"'Sjekkliste noter'!A81","v":38},{"$f":"IF('Sjekkliste noter'!E81<>\"\",1,0)","v":0},0,{"$f":"IF($C39=1,'Sjekkliste noter'!A81,\"\")","v":""},{"$f":"IF($C39=1,'Sjekkliste noter'!B81,\"\")","v":""},null,{"$f":"IF($C39=1,'Sjekkliste noter'!H81,\"\")","v":""}]
[{"$f":"'Sjekkliste noter'!A82","v":39},{"$f":"IF('Sjekkliste noter'!E82<>\"\",1,0)","v":0},0,{"$f":"IF($C40=1,'Sjekkliste noter'!A82,\"\")","v":""},{"$f":"IF($C40=1,'Sjekkliste noter'!B82,\"\")","v":""},null,{"$f":"IF($C40=1,'Sjekkliste noter'!H82,\"\")","v":""}]
[{"$f":"'Sjekkliste noter'!A86","v":40},{"$f":"IF('Sjekkliste noter'!E86<>\"\",1,0)","v":0},0,{"$f":"IF($C41=1,'Sjekkliste noter'!A86,\"\")","v":""},{"$f":"IF($C41=1,'Sjekkliste noter'!B86,\"\")","v":""},null,{"$f":"IF($C41=1,'Sjekkliste noter'!H86,\"\")","v":""}]
[{"$f":"'Sjekkliste noter'!A89","v":41},{"$f":"IF('Sjekkliste noter'!E89<>\"\",1,0)","v":0},0,{"$f":"IF($C42=1,'Sjekkliste noter'!A89,\"\")","v":""},{"$f":"IF($C42=1,'Sjekkliste noter'!B89,\"\")","v":""},null,{"$f":"IF($C42=1,'Sjekkliste noter'!H89,\"\")","v":""}]
[{"$f":"'Sjekkliste noter'!A92","v":42},{"$f":"IF('Sjekkliste noter'!E92<>\"\",1,0)","v":0},0,{"$f":"IF($C43=1,'Sjekkliste noter'!A92,\"\")","v":""},{"$f":"IF($C43=1,'Sjekkliste noter'!B92,\"\")","v":""},null,{"$f":"IF($C43=1,'Sjekkliste noter'!H92,\"\")","v":""}]
[{"$f":"'Sjekkliste noter'!A93","v":43},{"$f":"IF('Sjekkliste noter'!E93<>\"\",1,0)","v":0},0,{"$f":"IF($C44=1,'Sjekkliste noter'!A93,\"\")","v":""},{"$f":"IF($C44=1,'Sjekkliste noter'!B93,\"\")","v":""},null,{"$f":"IF($C44=1,'Sjekkliste noter'!H93,\"\")","v":""}]
[{"$f":"'Sjekkliste noter'!A94","v":44},{"$f":"IF('Sjekkliste noter'!E94<>\"\",1,0)","v":0},0,{"$f":"IF($C45=1,'Sjekkliste noter'!A94,\"\")","v":""},{"$f":"IF($C45=1,'Sjekkliste noter'!B94,\"\")","v":""},null,{"$f":"IF($C45=1,'Sjekkliste noter'!H94,\"\")","v":""}]
[{"$f":"'Sjekkliste noter'!A96","v":45},{"$f":"IF('Sjekkliste noter'!E96<>\"\",1,0)","v":0},0,{"$f":"IF($C46=1,'Sjekkliste noter'!A96,\"\")","v":""},{"$f":"IF($C46=1,'Sjekkliste noter'!B96,\"\")","v":""},null,{"$f":"IF($C46=1,'Sjekkliste noter'!H96,\"\")","v":""}]
[{"$f":"'Sjekkliste noter'!A97","v":46},{"$f":"IF('Sjekkliste noter'!E97<>\"\",1,0)","v":0},0,{"$f":"IF($C47=1,'Sjekkliste noter'!A97,\"\")","v":""},{"$f":"IF($C47=1,'Sjekkliste noter'!B97,\"\")","v":""},null,{"$f":"IF($C47=1,'Sjekkliste noter'!H97,\"\")","v":""}]
[{"$f":"'Sjekkliste noter'!A101","v":47},{"$f":"IF('Sjekkliste noter'!E101<>\"\",1,0)","v":0},0,{"$f":"IF($C48=1,'Sjekkliste noter'!A101,\"\")","v":""},{"$f":"IF($C48=1,'Sjekkliste noter'!B101,\"\")","v":""},null,{"$f":"IF($C48=1,'Sjekkliste noter'!H101,\"\")","v":""}]
[{"$f":"'Sjekkliste noter'!A102","v":48},{"$f":"IF('Sjekkliste noter'!E102<>\"\",1,0)","v":0},0,{"$f":"IF($C49=1,'Sjekkliste noter'!A102,\"\")","v":""},{"$f":"IF($C49=1,'Sjekkliste noter'!B102,\"\")","v":""},null,{"$f":"IF($C49=1,'Sjekkliste noter'!H102,\"\")","v":""}]
[{"$f":"'Sjekkliste noter'!A103","v":49},{"$f":"IF('Sjekkliste noter'!E103<>\"\",1,0)","v":0},0,{"$f":"IF($C50=1,'Sjekkliste noter'!A103,\"\")","v":""},{"$f":"IF($C50=1,'Sjekkliste noter'!B103,\"\")","v":""},null,{"$f":"IF($C50=1,'Sjekkliste noter'!H103,\"\")","v":""}]
[{"$f":"'Sjekkliste noter'!A104","v":50},{"$f":"IF('Sjekkliste noter'!E104<>\"\",1,0)","v":0},0,{"$f":"IF($C51=1,'Sjekkliste noter'!A104,\"\")","v":""},{"$f":"IF($C51=1,'Sjekkliste noter'!B104,\"\")","v":""},null,{"$f":"IF($C51=1,'Sjekkliste noter'!H104,\"\")","v":""}]
[{"$f":"'Sjekkliste noter'!A107","v":51},{"$f":"IF('Sjekkliste noter'!E107<>\"\",1,0)","v":0},0,{"$f":"IF($C52=1,'Sjekkliste noter'!A107,\"\")","v":""},{"$f":"IF($C52=1,'Sjekkliste noter'!B107,\"\")","v":""},null,{"$f":"IF($C52=1,'Sjekkliste noter'!H107,\"\")","v":""}]
[{"$f":"'Sjekkliste noter'!A109","v":52},{"$f":"IF('Sjekkliste noter'!E109<>\"\",1,0)","v":0},0,{"$f":"IF($C53=1,'Sjekkliste noter'!A109,\"\")","v":""},{"$f":"IF($C53=1,'Sjekkliste noter'!B109,\"\")","v":""},null,{"$f":"IF($C53=1,'Sjekkliste noter'!H109,\"\")","v":""}]
[{"$f":"'Sjekkliste noter'!A112","v":53},{"$f":"IF('Sjekkliste noter'!E112<>\"\",1,0)","v":0},0,{"$f":"IF($C54=1,'Sjekkliste noter'!A112,\"\")","v":""},{"$f":"IF($C54=1,'Sjekkliste noter'!B112,\"\")","v":""},null,{"$f":"IF($C54=1,'Sjekkliste noter'!H112,\"\")","v":""}]
[{"$f":"'Sjekkliste noter'!A114","v":54},{"$f":"IF('Sjekkliste noter'!E114<>\"\",1,0)","v":0},0,{"$f":"IF($C55=1,'Sjekkliste noter'!A114,\"\")","v":""},{"$f":"IF($C55=1,'Sjekkliste noter'!B114,\"\")","v":""},null,{"$f":"IF($C55=1,'Sjekkliste noter'!H114,\"\")","v":""}]
[{"$f":"'Sjekkliste noter'!A117","v":55},{"$f":"IF('Sjekkliste noter'!E117<>\"\",1,0)","v":0},0,{"$f":"IF($C56=1,'Sjekkliste noter'!A117,\"\")","v":""},{"$f":"IF($C56=1,'Sjekkliste noter'!B117,\"\")","v":""},null,{"$f":"IF($C56=1,'Sjekkliste noter'!H117,\"\")","v":""}]
[{"$f":"'Sjekkliste noter'!A119","v":56},{"$f":"IF('Sjekkliste noter'!E119<>\"\",1,0)","v":0},0,{"$f":"IF($C57=1,'Sjekkliste noter'!A119,\"\")","v":""},{"$f":"IF($C57=1,'Sjekkliste noter'!B119,\"\")","v":""},null,{"$f":"IF($C57=1,'Sjekkliste noter'!H119,\"\")","v":""}]
[{"$f":"'Sjekkliste noter'!A121","v":57},{"$f":"IF('Sjekkliste noter'!E121<>\"\",1,0)","v":0},0,{"$f":"IF($C58=1,'Sjekkliste noter'!A121,\"\")","v":""},{"$f":"IF($C58=1,'Sjekkliste noter'!B121,\"\")","v":""},null,{"$f":"IF($C58=1,'Sjekkliste noter'!H121,\"\")","v":""}]
[{"$f":"'Sjekkliste noter'!A124","v":58},{"$f":"IF('Sjekkliste noter'!E124<>\"\",1,0)","v":0},0,{"$f":"IF($C59=1,'Sjekkliste noter'!A124,\"\")","v":""},{"$f":"IF($C59=1,'Sjekkliste noter'!B124,\"\")","v":""},null,{"$f":"IF($C59=1,'Sjekkliste noter'!H124,\"\")","v":""}]
[{"$f":"'Sjekkliste noter'!A130","v":60},{"$f":"IF('Sjekkliste noter'!E130<>\"\",1,0)","v":0},0,{"$f":"IF($C60=1,'Sjekkliste noter'!A130,\"\")","v":""},{"$f":"IF($C60=1,'Sjekkliste noter'!B130,\"\")","v":""},null,{"$f":"IF($C60=1,'Sjekkliste noter'!H130,\"\")","v":""}]
[{"$f":"'Sjekkliste noter'!A134","v":61},{"$f":"IF('Sjekkliste noter'!E134<>\"\",1,0)","v":0},0,{"$f":"IF($C61=1,'Sjekkliste noter'!A134,\"\")","v":""},{"$f":"IF($C61=1,'Sjekkliste noter'!B134,\"\")","v":""},null,{"$f":"IF($C61=1,'Sjekkliste noter'!H134,\"\")","v":""}]
[{"$f":"'Sjekkliste noter'!A137","v":62},{"$f":"IF('Sjekkliste noter'!E137<>\"\",1,0)","v":0},0,{"$f":"IF($C62=1,'Sjekkliste noter'!A137,\"\")","v":""},{"$f":"IF($C62=1,'Sjekkliste noter'!B137,\"\")","v":""},null,{"$f":"IF($C62=1,'Sjekkliste noter'!H137,\"\")","v":""}]
[{"$f":"'Sjekkliste noter'!A138","v":63},{"$f":"IF('Sjekkliste noter'!E138<>\"\",1,0)","v":0},0,{"$f":"IF($C63=1,'Sjekkliste noter'!A138,\"\")","v":""},{"$f":"IF($C63=1,'Sjekkliste noter'!B138,\"\")","v":""},null,{"$f":"IF($C63=1,'Sjekkliste noter'!H138,\"\")","v":""}]
[{"$f":"'Sjekkliste noter'!A139","v":64},{"$f":"IF('Sjekkliste noter'!E139<>\"\",1,0)","v":0},0,{"$f":"IF($C64=1,'Sjekkliste noter'!A139,\"\")","v":""},{"$f":"IF($C64=1,'Sjekkliste noter'!B139,\"\")","v":""},null,{"$f":"IF($C64=1,'Sjekkliste noter'!H139,\"\")","v":""}]
[{"$f":"'Sjekkliste noter'!A140","v":65},{"$f":"IF('Sjekkliste noter'!E140<>\"\",1,0)","v":0},0,{"$f":"IF($C65=1,'Sjekkliste noter'!A140,\"\")","v":""},{"$f":"IF($C65=1,'Sjekkliste noter'!B140,\"\")","v":""},null,{"$f":"IF($C65=1,'Sjekkliste noter'!H140,\"\")","v":""}]
[{"$f":"'Sjekkliste noter'!A141","v":66},{"$f":"IF('Sjekkliste noter'!E141<>\"\",1,0)","v":0},{"$f":"SUM(B66:B66)","v":0},{"$f":"IF($C66=1,'Sjekkliste noter'!A141,\"\")","v":""},{"$f":"IF($C66=1,'Sjekkliste noter'!B141,\"\")","v":""},null,{"$f":"IF($C66=1,'Sjekkliste noter'!H141,\"\")","v":""}]
[{"$f":"'Sjekkliste noter'!A142","v":67},{"$f":"IF('Sjekkliste noter'!E142<>\"\",1,0)","v":0},0,{"$f":"IF($C67=1,'Sjekkliste noter'!A142,\"\")","v":""},{"$f":"IF($C67=1,'Sjekkliste noter'!B142,\"\")","v":""},null,{"$f":"IF($C67=1,'Sjekkliste noter'!H142,\"\")","v":""}]
[{"$f":"'Sjekkliste noter'!A143","v":68},{"$f":"IF('Sjekkliste noter'!E143<>\"\",1,0)","v":0},0,{"$f":"IF($C68=1,'Sjekkliste noter'!A143,\"\")","v":""},{"$f":"IF($C68=1,'Sjekkliste noter'!B143,\"\")","v":""},null,{"$f":"IF($C68=1,'Sjekkliste noter'!H143,\"\")","v":""}]
[{"$f":"'Sjekkliste noter'!A144","v":69},{"$f":"IF('Sjekkliste noter'!E144<>\"\",1,0)","v":0},0,{"$f":"IF($C69=1,'Sjekkliste noter'!A144,\"\")","v":""},{"$f":"IF($C69=1,'Sjekkliste noter'!B144,\"\")","v":""},null,{"$f":"IF($C69=1,'Sjekkliste noter'!H144,\"\")","v":""}]
[{"$f":"'Sjekkliste noter'!A145","v":70},{"$f":"IF('Sjekkliste noter'!E145<>\"\",1,0)","v":0},0,{"$f":"IF($C70=1,'Sjekkliste noter'!A145,\"\")","v":""},{"$f":"IF($C70=1,'Sjekkliste noter'!B145,\"\")","v":""},null,{"$f":"IF($C70=1,'Sjekkliste noter'!H145,\"\")","v":""}]
[{"$f":"'Sjekkliste noter'!A146","v":71},{"$f":"IF('Sjekkliste noter'!E146<>\"\",1,0)","v":0},0,{"$f":"IF($C71=1,'Sjekkliste noter'!A146,\"\")","v":""},{"$f":"IF($C71=1,'Sjekkliste noter'!B146,\"\")","v":""},null,{"$f":"IF($C71=1,'Sjekkliste noter'!H146,\"\")","v":""}]
[{"$f":"'Sjekkliste noter'!A147","v":72},{"$f":"IF('Sjekkliste noter'!E147<>\"\",1,0)","v":0},0,{"$f":"IF($C72=1,'Sjekkliste noter'!A147,\"\")","v":""},{"$f":"IF($C72=1,'Sjekkliste noter'!B147,\"\")","v":""},null,{"$f":"IF($C72=1,'Sjekkliste noter'!H147,\"\")","v":""}]
[{"$f":"'Sjekkliste noter'!A148","v":73},{"$f":"IF('Sjekkliste noter'!E148<>\"\",1,0)","v":0},0,{"$f":"IF($C73=1,'Sjekkliste noter'!A148,\"\")","v":""},{"$f":"IF($C73=1,'Sjekkliste noter'!B148,\"\")","v":""},null,{"$f":"IF($C73=1,'Sjekkliste noter'!H148,\"\")","v":""}]
[{"$f":"'Sjekkliste noter'!A149","v":74},{"$f":"IF('Sjekkliste noter'!E149<>\"\",1,0)","v":0},0,{"$f":"IF($C74=1,'Sjekkliste noter'!A149,\"\")","v":""},{"$f":"IF($C74=1,'Sjekkliste noter'!B149,\"\")","v":""},null,{"$f":"IF($C74=1,'Sjekkliste noter'!H149,\"\")","v":""}]
[{"$f":"'Sjekkliste noter'!A152","v":75},{"$f":"IF('Sjekkliste noter'!E152<>\"\",1,0)","v":0},0,{"$f":"IF($C75=1,'Sjekkliste noter'!A152,\"\")","v":""},{"$f":"IF($C75=1,'Sjekkliste noter'!B152,\"\")","v":""},null,{"$f":"IF($C75=1,'Sjekkliste noter'!H152,\"\")","v":""}]
[{"$f":"'Sjekkliste noter'!A153","v":76},{"$f":"IF('Sjekkliste noter'!E153<>\"\",1,0)","v":0},0,{"$f":"IF($C76=1,'Sjekkliste noter'!A153,\"\")","v":""},{"$f":"IF($C76=1,'Sjekkliste noter'!B153,\"\")","v":""},null,{"$f":"IF($C76=1,'Sjekkliste noter'!H153,\"\")","v":""}]
[{"$f":"'Sjekkliste noter'!A156","v":77},{"$f":"IF('Sjekkliste noter'!E156<>\"\",1,0)","v":0},0,{"$f":"IF($C77=1,'Sjekkliste noter'!A156,\"\")","v":""},{"$f":"IF($C77=1,'Sjekkliste noter'!B156,\"\")","v":""},null,{"$f":"IF($C77=1,'Sjekkliste noter'!H156,\"\")","v":""}]
[{"$f":"'Sjekkliste noter'!A157","v":78},{"$f":"IF('Sjekkliste noter'!E157<>\"\",1,0)","v":0},0,{"$f":"IF($C78=1,'Sjekkliste noter'!A157,\"\")","v":""},{"$f":"IF($C78=1,'Sjekkliste noter'!B157,\"\")","v":""},null,{"$f":"IF($C78=1,'Sjekkliste noter'!H157,\"\")","v":""}]
[{"$f":"'Sjekkliste noter'!A158","v":79},{"$f":"IF('Sjekkliste noter'!E158<>\"\",1,0)","v":0},0,{"$f":"IF($C79=1,'Sjekkliste noter'!A158,\"\")","v":""},{"$f":"IF($C79=1,'Sjekkliste noter'!B158,\"\")","v":""},null,{"$f":"IF($C79=1,'Sjekkliste noter'!H158,\"\")","v":""}]

{"sheet":"N_Nei","index":4,"n_rows":151,"n_cols":7,"rows_kept":151,"cut":false,"hidden":true,"merged":[]}
[null,null,{"$f":"COUNTIF(C2:C151,\"=1\")","v":0},"Nei-svar",{"$f":"+FrontPage!B2","v":0},{"$f":"+FrontPage!B3","v":2024},"Kommentarer"]
[{"$f":"+'Sjekkliste noter'!#REF!","v":{"$error":"#REF!"}},{"$f":"IF('Sjekkliste noter'!#REF!<>\"\",1,0)","v":{"$error":"#REF!"}},{"$f":"SUM(B2:B2)","v":{"$error":"#REF!"}},{"$f":"IF($C2=1,'Sjekkliste noter'!#REF!,\"\")","v":{"$error":"#REF!"}},{"$f":"IF($C2=1,'Sjekkliste noter'!#REF!,\"\")","v":{"$error":"#REF!"}},null,{"$f":"IF($C2=1,'Sjekkliste noter'!#REF!,\"\")","v":{"$error":"#REF!"}}]
[{"$f":"+'Sjekkliste noter'!A158","v":79},{"$f":"IF('Sjekkliste noter'!F158<>\"\",1,0)","v":0},0,{"$f":"IF($C3=1,'Sjekkliste noter'!A158,\"\")","v":""},{"$f":"IF($C3=1,'Sjekkliste noter'!B158,\"\")","v":""},null,{"$f":"IF($C3=1,'Sjekkliste noter'!H158,\"\")","v":""}]
[{"$f":"+'Sjekkliste noter'!A18","v":2},{"$f":"IF('Sjekkliste noter'!F18<>\"\",1,0)","v":0},0,{"$f":"IF($C4=1,'Sjekkliste noter'!A18,\"\")","v":""},{"$f":"IF($C4=1,'Sjekkliste noter'!B18,\"\")","v":""},null,{"$f":"IF($C4=1,'Sjekkliste noter'!H18,\"\")","v":""}]
[{"$f":"+'Sjekkliste noter'!#REF!","v":{"$error":"#REF!"}},{"$f":"IF('Sjekkliste noter'!#REF!<>\"\",1,0)","v":{"$error":"#REF!"}},{"$error":"#REF!"},{"$f":"IF($C5=1,'Sjekkliste noter'!#REF!,\"\")","v":{"$error":"#REF!"}},{"$f":"IF($C5=1,'Sjekkliste noter'!#REF!,\"\")","v":{"$error":"#REF!"}},null,{"$f":"IF($C5=1,'Sjekkliste noter'!#REF!,\"\")","v":{"$error":"#REF!"}}]
[{"$f":"+'Sjekkliste noter'!#REF!","v":{"$error":"#REF!"}},{"$f":"IF('Sjekkliste noter'!#REF!<>\"\",1,0)","v":{"$error":"#REF!"}},{"$error":"#REF!"},{"$f":"IF($C6=1,'Sjekkliste noter'!#REF!,\"\")","v":{"$error":"#REF!"}},{"$f":"IF($C6=1,'Sjekkliste noter'!#REF!,\"\")","v":{"$error":"#REF!"}},null,{"$f":"IF($C6=1,'Sjekkliste noter'!#REF!,\"\")","v":{"$error":"#REF!"}}]
[{"$f":"+'Sjekkliste noter'!#REF!","v":{"$error":"#REF!"}},{"$f":"IF('Sjekkliste noter'!#REF!<>\"\",1,0)","v":{"$error":"#REF!"}},{"$error":"#REF!"},{"$f":"IF($C7=1,'Sjekkliste noter'!#REF!,\"\")","v":{"$error":"#REF!"}},{"$f":"IF($C7=1,'Sjekkliste noter'!#REF!,\"\")","v":{"$error":"#REF!"}},null,{"$f":"IF($C7=1,'Sjekkliste noter'!#REF!,\"\")","v":{"$error":"#REF!"}}]
[{"$f":"+'Sjekkliste noter'!#REF!","v":{"$error":"#REF!"}},{"$f":"IF('Sjekkliste noter'!#REF!<>\"\",1,0)","v":{"$error":"#REF!"}},{"$error":"#REF!"},{"$f":"IF($C8=1,'Sjekkliste noter'!#REF!,\"\")","v":{"$error":"#REF!"}},{"$f":"IF($C8=1,'Sjekkliste noter'!#REF!,\"\")","v":{"$error":"#REF!"}},null,{"$f":"IF($C8=1,'Sjekkliste noter'!#REF!,\"\")","v":{"$error":"#REF!"}}]
[{"$f":"+'Sjekkliste noter'!#REF!","v":{"$error":"#REF!"}},{"$f":"IF('Sjekkliste noter'!#REF!<>\"\",1,0)","v":{"$error":"#REF!"}},{"$error":"#REF!"},{"$f":"IF($C9=1,'Sjekkliste noter'!#REF!,\"\")","v":{"$error":"#REF!"}},{"$f":"IF($C9=1,'Sjekkliste noter'!#REF!,\"\")","v":{"$error":"#REF!"}},null,{"$f":"IF($C9=1,'Sjekkliste noter'!#REF!,\"\")","v":{"$error":"#REF!"}}]
[{"$f":"+'Sjekkliste noter'!#REF!","v":{"$error":"#REF!"}},{"$f":"IF('Sjekkliste noter'!#REF!<>\"\",1,0)","v":{"$error":"#REF!"}},{"$error":"#REF!"},{"$f":"IF($C10=1,'Sjekkliste noter'!#REF!,\"\")","v":{"$error":"#REF!"}},{"$f":"IF($C10=1,'Sjekkliste noter'!#REF!,\"\")","v":{"$error":"#REF!"}},null,{"$f":"IF($C10=1,'Sjekkliste noter'!#REF!,\"\")","v":{"$error":"#REF!"}}]
[{"$f":"+'Sjekkliste noter'!#REF!","v":{"$error":"#REF!"}},{"$f":"IF('Sjekkliste noter'!#REF!<>\"\",1,0)","v":{"$error":"#REF!"}},{"$error":"#REF!"},{"$f":"IF($C11=1,'Sjekkliste noter'!#REF!,\"\")","v":{"$error":"#REF!"}},{"$f":"IF($C11=1,'Sjekkliste noter'!#REF!,\"\")","v":{"$error":"#REF!"}},null,{"$f":"IF($C11=1,'Sjekkliste noter'!#REF!,\"\")","v":{"$error":"#REF!"}}]
[{"$f":"+'Sjekkliste noter'!#REF!","v":{"$error":"#REF!"}},{"$f":"IF('Sjekkliste noter'!#REF!<>\"\",1,0)","v":{"$error":"#REF!"}},{"$error":"#REF!"},{"$f":"IF($C12=1,'Sjekkliste noter'!#REF!,\"\")","v":{"$error":"#REF!"}},{"$f":"IF($C12=1,'Sjekkliste noter'!#REF!,\"\")","v":{"$error":"#REF!"}},null,{"$f":"IF($C12=1,'Sjekkliste noter'!#REF!,\"\")","v":{"$error":"#REF!"}}]
[{"$f":"+'Sjekkliste noter'!A21","v":3},{"$f":"IF('Sjekkliste noter'!F21<>\"\",1,0)","v":0},0,{"$f":"IF($C13=1,'Sjekkliste noter'!A21,\"\")","v":""},{"$f":"IF($C13=1,'Sjekkliste noter'!B21,\"\")","v":""},null,{"$f":"IF($C13=1,'Sjekkliste noter'!H21,\"\")","v":""}]
[{"$f":"+'Sjekkliste noter'!#REF!","v":{"$error":"#REF!"}},{"$f":"IF('Sjekkliste noter'!#REF!<>\"\",1,0)","v":{"$error":"#REF!"}},{"$error":"#REF!"},{"$f":"IF($C14=1,'Sjekkliste noter'!#REF!,\"\")","v":{"$error":"#REF!"}},{"$f":"IF($C14=1,'Sjekkliste noter'!#REF!,\"\")","v":{"$error":"#REF!"}},null,{"$f":"IF($C14=1,'Sjekkliste noter'!#REF!,\"\")","v":{"$error":"#REF!"}}]
[{"$f":"+'Sjekkliste noter'!A24","v":4},{"$f":"IF('Sjekkliste noter'!F24<>\"\",1,0)","v":0},0,{"$f":"IF($C15=1,'Sjekkliste noter'!A24,\"\")","v":""},{"$f":"IF($C15=1,'Sjekkliste noter'!B24,\"\")","v":""},null,{"$f":"IF($C15=1,'Sjekkliste noter'!H24,\"\")","v":""}]
[{"$f":"+'Sjekkliste noter'!#REF!","v":{"$error":"#REF!"}},{"$f":"IF('Sjekkliste noter'!#REF!<>\"\",1,0)","v":{"$error":"#REF!"}},{"$error":"#REF!"},{"$f":"IF($C16=1,'Sjekkliste noter'!#REF!,\"\")","v":{"$error":"#REF!"}},{"$f":"IF($C16=1,'Sjekkliste noter'!#REF!,\"\")","v":{"$error":"#REF!"}},null,{"$f":"IF($C16=1,'Sjekkliste noter'!#REF!,\"\")","v":{"$error":"#REF!"}}]
[{"$f":"+'Sjekkliste noter'!A26","v":5},{"$f":"IF('Sjekkliste noter'!F26<>\"\",1,0)","v":0},0,{"$f":"IF($C17=1,'Sjekkliste noter'!A26,\"\")","v":""},{"$f":"IF($C17=1,'Sjekkliste noter'!B26,\"\")","v":""},null,{"$f":"IF($C17=1,'Sjekkliste noter'!H26,\"\")","v":""}]
[{"$f":"+'Sjekkliste noter'!A28","v":6},{"$f":"IF('Sjekkliste noter'!F28<>\"\",1,0)","v":0},0,{"$f":"IF($C18=1,'Sjekkliste noter'!A28,\"\")","v":""},{"$f":"IF($C18=1,'Sjekkliste noter'!B28,\"\")","v":""},null,{"$f":"IF($C18=1,'Sjekkliste noter'!H28,\"\")","v":""}]
[{"$f":"+'Sjekkliste noter'!A30","v":7},{"$f":"IF('Sjekkliste noter'!F30<>\"\",1,0)","v":0},0,{"$f":"IF($C19=1,'Sjekkliste noter'!A30,\"\")","v":""},{"$f":"IF($C19=1,'Sjekkliste noter'!B30,\"\")","v":""},null,{"$f":"IF($C19=1,'Sjekkliste noter'!H30,\"\")","v":""}]
[{"$f":"+'Sjekkliste noter'!A31","v":8},{"$f":"IF('Sjekkliste noter'!F31<>\"\",1,0)","v":0},0,{"$f":"IF($C20=1,'Sjekkliste noter'!A31,\"\")","v":""},{"$f":"IF($C20=1,'Sjekkliste noter'!B31,\"\")","v":""},null,{"$f":"IF($C20=1,'Sjekkliste noter'!H31,\"\")","v":""}]
[{"$f":"+'Sjekkliste noter'!A32","v":9},{"$f":"IF('Sjekkliste noter'!F32<>\"\",1,0)","v":0},0,{"$f":"IF($C21=1,'Sjekkliste noter'!A32,\"\")","v":""},{"$f":"IF($C21=1,'Sjekkliste noter'!B32,\"\")","v":""},null,{"$f":"IF($C21=1,'Sjekkliste noter'!H32,\"\")","v":""}]
[{"$f":"+'Sjekkliste noter'!A33","v":10},{"$f":"IF('Sjekkliste noter'!F33<>\"\",1,0)","v":0},0,{"$f":"IF($C22=1,'Sjekkliste noter'!A33,\"\")","v":""},{"$f":"IF($C22=1,'Sjekkliste noter'!B33,\"\")","v":""},null,{"$f":"IF($C22=1,'Sjekkliste noter'!H33,\"\")","v":""}]
[{"$f":"+'Sjekkliste noter'!A34","v":11},{"$f":"IF('Sjekkliste noter'!F34<>\"\",1,0)","v":0},0,{"$f":"IF($C23=1,'Sjekkliste noter'!A34,\"\")","v":""},{"$f":"IF($C23=1,'Sjekkliste noter'!B34,\"\")","v":""},null,{"$f":"IF($C23=1,'Sjekkliste noter'!H34,\"\")","v":""}]
[{"$f":"+'Sjekkliste noter'!A35","v":12},{"$f":"IF('Sjekkliste noter'!F35<>\"\",1,0)","v":0},0,{"$f":"IF($C24=1,'Sjekkliste noter'!A35,\"\")","v":""},{"$f":"IF($C24=1,'Sjekkliste noter'!B35,\"\")","v":""},null,{"$f":"IF($C24=1,'Sjekkliste noter'!H35,\"\")","v":""}]
[{"$f":"+'Sjekkliste noter'!A38","v":13},{"$f":"IF('Sjekkliste noter'!F38<>\"\",1,0)","v":0},0,{"$f":"IF($C25=1,'Sjekkliste noter'!A38,\"\")","v":""},{"$f":"IF($C25=1,'Sjekkliste noter'!B38,\"\")","v":""},null,{"$f":"IF($C25=1,'Sjekkliste noter'!H38,\"\")","v":""}]
[{"$f":"+'Sjekkliste noter'!A39","v":14},{"$f":"IF('Sjekkliste noter'!F39<>\"\",1,0)","v":0},0,{"$f":"IF($C26=1,'Sjekkliste noter'!A39,\"\")","v":""},{"$f":"IF($C26=1,'Sjekkliste noter'!B39,\"\")","v":""},null,{"$f":"IF($C26=1,'Sjekkliste noter'!H39,\"\")","v":""}]
[{"$f":"+'Sjekkliste noter'!A40","v":15},{"$f":"IF('Sjekkliste noter'!F40<>\"\",1,0)","v":0},0,{"$f":"IF($C27=1,'Sjekkliste noter'!A40,\"\")","v":""},{"$f":"IF($C27=1,'Sjekkliste noter'!B40,\"\")","v":""},null,{"$f":"IF($C27=1,'Sjekkliste noter'!H40,\"\")","v":""}]
[{"$f":"+'Sjekkliste noter'!A41","v":16},{"$f":"IF('Sjekkliste noter'!F41<>\"\",1,0)","v":0},0,{"$f":"IF($C28=1,'Sjekkliste noter'!A41,\"\")","v":""},{"$f":"IF($C28=1,'Sjekkliste noter'!B41,\"\")","v":""},null,{"$f":"IF($C28=1,'Sjekkliste noter'!H41,\"\")","v":""}]
[{"$f":"+'Sjekkliste noter'!A42","v":17},{"$f":"IF('Sjekkliste noter'!F42<>\"\",1,0)","v":0},0,{"$f":"IF($C29=1,'Sjekkliste noter'!A42,\"\")","v":""},{"$f":"IF($C29=1,'Sjekkliste noter'!B42,\"\")","v":""},null,{"$f":"IF($C29=1,'Sjekkliste noter'!H42,\"\")","v":""}]
[{"$f":"+'Sjekkliste noter'!#REF!","v":{"$error":"#REF!"}},{"$f":"IF('Sjekkliste noter'!#REF!<>\"\",1,0)","v":{"$error":"#REF!"}},{"$error":"#REF!"},{"$f":"IF($C30=1,'Sjekkliste noter'!#REF!,\"\")","v":{"$error":"#REF!"}},{"$f":"IF($C30=1,'Sjekkliste noter'!#REF!,\"\")","v":{"$error":"#REF!"}},null,{"$f":"IF($C30=1,'Sjekkliste noter'!#REF!,\"\")","v":{"$error":"#REF!"}}]
[{"$f":"+'Sjekkliste noter'!#REF!","v":{"$error":"#REF!"}},{"$f":"IF('Sjekkliste noter'!#REF!<>\"\",1,0)","v":{"$error":"#REF!"}},{"$error":"#REF!"},{"$f":"IF($C31=1,'Sjekkliste noter'!#REF!,\"\")","v":{"$error":"#REF!"}},{"$f":"IF($C31=1,'Sjekkliste noter'!#REF!,\"\")","v":{"$error":"#REF!"}},null,{"$f":"IF($C31=1,'Sjekkliste noter'!#REF!,\"\")","v":{"$error":"#REF!"}}]
[{"$f":"+'Sjekkliste noter'!#REF!","v":{"$error":"#REF!"}},{"$f":"IF('Sjekkliste noter'!#REF!<>\"\",1,0)","v":{"$error":"#REF!"}},{"$error":"#REF!"},{"$f":"IF($C32=1,'Sjekkliste noter'!#REF!,\"\")","v":{"$error":"#REF!"}},{"$f":"IF($C32=1,'Sjekkliste noter'!#REF!,\"\")","v":{"$error":"#REF!"}},null,{"$f":"IF($C32=1,'Sjekkliste noter'!#REF!,\"\")","v":{"$error":"#REF!"}}]
[{"$f":"+'Sjekkliste noter'!A44","v":18},{"$f":"IF('Sjekkliste noter'!F44<>\"\",1,0)","v":0},0,{"$f":"IF($C33=1,'Sjekkliste noter'!A44,\"\")","v":""},{"$f":"IF($C33=1,'Sjekkliste noter'!B44,\"\")","v":""},null,{"$f":"IF($C33=1,'Sjekkliste noter'!H44,\"\")","v":""}]
[{"$f":"+'Sjekkliste noter'!A46","v":19},{"$f":"IF('Sjekkliste noter'!F46<>\"\",1,0)","v":0},{"$f":"SUM(B34:B34)","v":0},{"$f":"IF($C34=1,'Sjekkliste noter'!A46,\"\")","v":""},{"$f":"IF($C34=1,'Sjekkliste noter'!B46,\"\")","v":""},null,{"$f":"IF($C34=1,'Sjekkliste noter'!H46,\"\")","v":""}]
[{"$f":"+'Sjekkliste noter'!A47","v":20},{"$f":"IF('Sjekkliste noter'!F47<>\"\",1,0)","v":0},0,{"$f":"IF($C35=1,'Sjekkliste noter'!A47,\"\")","v":""},{"$f":"IF($C35=1,'Sjekkliste noter'!B47,\"\")","v":""},null,{"$f":"IF($C35=1,'Sjekkliste noter'!H47,\"\")","v":""}]
[{"$f":"+'Sjekkliste noter'!A48","v":21},{"$f":"IF('Sjekkliste noter'!F48<>\"\",1,0)","v":0},0,{"$f":"IF($C36=1,'Sjekkliste noter'!A48,\"\")","v":""},{"$f":"IF($C36=1,'Sjekkliste noter'!B48,\"\")","v":""},null,{"$f":"IF($C36=1,'Sjekkliste noter'!H48,\"\")","v":""}]
[{"$f":"+'Sjekkliste noter'!#REF!","v":{"$error":"#REF!"}},{"$f":"IF('Sjekkliste noter'!#REF!<>\"\",1,0)","v":{"$error":"#REF!"}},{"$error":"#REF!"},{"$f":"IF($C37=1,'Sjekkliste noter'!#REF!,\"\")","v":{"$error":"#REF!"}},{"$f":"IF($C37=1,'Sjekkliste noter'!#REF!,\"\")","v":{"$error":"#REF!"}},null,{"$f":"IF($C37=1,'Sjekkliste noter'!#REF!,\"\")","v":{"$error":"#REF!"}}]
[{"$f":"+'Sjekkliste noter'!#REF!","v":{"$error":"#REF!"}},{"$f":"IF('Sjekkliste noter'!#REF!<>\"\",1,0)","v":{"$error":"#REF!"}},{"$error":"#REF!"},{"$f":"IF($C38=1,'Sjekkliste noter'!#REF!,\"\")","v":{"$error":"#REF!"}},{"$f":"IF($C38=1,'Sjekkliste noter'!#REF!,\"\")","v":{"$error":"#REF!"}},null,{"$f":"IF($C38=1,'Sjekkliste noter'!#REF!,\"\")","v":{"$error":"#REF!"}}]
[{"$f":"+'Sjekkliste noter'!#REF!","v":{"$error":"#REF!"}},{"$f":"IF('Sjekkliste noter'!#REF!<>\"\",1,0)","v":{"$error":"#REF!"}},{"$error":"#REF!"},{"$f":"IF($C39=1,'Sjekkliste noter'!#REF!,\"\")","v":{"$error":"#REF!"}},{"$f":"IF($C39=1,'Sjekkliste noter'!#REF!,\"\")","v":{"$error":"#REF!"}},null,{"$f":"IF($C39=1,'Sjekkliste noter'!#REF!,\"\")","v":{"$error":"#REF!"}}]
[{"$f":"+'Sjekkliste noter'!A50","v":22},{"$f":"IF('Sjekkliste noter'!F50<>\"\",1,0)","v":0},0,{"$f":"IF($C40=1,'Sjekkliste noter'!A50,\"\")","v":""},{"$f":"IF($C40=1,'Sjekkliste noter'!B50,\"\")","v":""},null,{"$f":"IF($C40=1,'Sjekkliste noter'!H50,\"\")","v":""}]
[{"$f":"+'Sjekkliste noter'!A54","v":23},{"$f":"IF('Sjekkliste noter'!F54<>\"\",1,0)","v":0},0,{"$f":"IF($C41=1,'Sjekkliste noter'!A54,\"\")","v":""},{"$f":"IF($C41=1,'Sjekkliste noter'!B54,\"\")","v":""},null,{"$f":"IF($C41=1,'Sjekkliste noter'!H54,\"\")","v":""}]
[{"$f":"+'Sjekkliste noter'!A55","v":24},{"$f":"IF('Sjekkliste noter'!F55<>\"\",1,0)","v":0},0,{"$f":"IF($C42=1,'Sjekkliste noter'!A55,\"\")","v":""},{"$f":"IF($C42=1,'Sjekkliste noter'!B55,\"\")","v":""},null,{"$f":"IF($C42=1,'Sjekkliste noter'!H55,\"\")","v":""}]
[{"$f":"+'Sjekkliste noter'!A56","v":25},{"$f":"IF('Sjekkliste noter'!F56<>\"\",1,0)","v":0},0,{"$f":"IF($C43=1,'Sjekkliste noter'!A56,\"\")","v":""},{"$f":"IF($C43=1,'Sjekkliste noter'!B56,\"\")","v":""},null,{"$f":"IF($C43=1,'Sjekkliste noter'!H56,\"\")","v":""}]
[{"$f":"+'Sjekkliste noter'!A58","v":26},{"$f":"IF('Sjekkliste noter'!F58<>\"\",1,0)","v":0},0,{"$f":"IF($C44=1,'Sjekkliste noter'!A58,\"\")","v":""},{"$f":"IF($C44=1,'Sjekkliste noter'!B58,\"\")","v":""},null,{"$f":"IF($C44=1,'Sjekkliste noter'!H58,\"\")","v":""}]
[{"$f":"+'Sjekkliste noter'!#REF!","v":{"$error":"#REF!"}},{"$f":"IF('Sjekkliste noter'!#REF!<>\"\",1,0)","v":{"$error":"#REF!"}},{"$error":"#REF!"},{"$f":"IF($C45=1,'Sjekkliste noter'!#REF!,\"\")","v":{"$error":"#REF!"}},{"$f":"IF($C45=1,'Sjekkliste noter'!#REF!,\"\")","v":{"$error":"#REF!"}},null,{"$f":"IF($C45=1,'Sjekkliste noter'!#REF!,\"\")","v":{"$error":"#REF!"}}]
[{"$f":"+'Sjekkliste noter'!#REF!","v":{"$error":"#REF!"}},{"$f":"IF('Sjekkliste noter'!#REF!<>\"\",1,0)","v":{"$error":"#REF!"}},{"$error":"#REF!"},{"$f":"IF($C46=1,'Sjekkliste noter'!#REF!,\"\")","v":{"$error":"#REF!"}},{"$f":"IF($C46=1,'Sjekkliste noter'!#REF!,\"\")","v":{"$error":"#REF!"}},null,{"$f":"IF($C46=1,'Sjekkliste noter'!#REF!,\"\")","v":{"$error":"#REF!"}}]
[{"$f":"+'Sjekkliste noter'!#REF!","v":{"$error":"#REF!"}},{"$f":"IF('Sjekkliste noter'!#REF!<>\"\",1,0)","v":{"$error":"#REF!"}},{"$error":"#REF!"},{"$f":"IF($C47=1,'Sjekkliste noter'!#REF!,\"\")","v":{"$error":"#REF!"}},{"$f":"IF($C47=1,'Sjekkliste noter'!#REF!,\"\")","v":{"$error":"#REF!"}},null,{"$f":"IF($C47=1,'Sjekkliste noter'!#REF!,\"\")","v":{"$error":"#REF!"}}]
[{"$f":"+'Sjekkliste noter'!A62","v":27},{"$f":"IF('Sjekkliste noter'!F62<>\"\",1,0)","v":0},0,{"$f":"IF($C48=1,'Sjekkliste noter'!A62,\"\")","v":""},{"$f":"IF($C48=1,'Sjekkliste noter'!B62,\"\")","v":""},null,{"$f":"IF($C48=1,'Sjekkliste noter'!H62,\"\")","v":""}]
[{"$f":"+'Sjekkliste noter'!A63","v":28},{"$f":"IF('Sjekkliste noter'!F63<>\"\",1,0)","v":0},0,{"$f":"IF($C49=1,'Sjekkliste noter'!A63,\"\")","v":""},{"$f":"IF($C49=1,'Sjekkliste noter'!B63,\"\")","v":""},null,{"$f":"IF($C49=1,'Sjekkliste noter'!H63,\"\")","v":""}]
[{"$f":"+'Sjekkliste noter'!A64","v":29},{"$f":"IF('Sjekkliste noter'!F64<>\"\",1,0)","v":0},0,{"$f":"IF($C50=1,'Sjekkliste noter'!A64,\"\")","v":""},{"$f":"IF($C50=1,'Sjekkliste noter'!B64,\"\")","v":""},null,{"$f":"IF($C50=1,'Sjekkliste noter'!H64,\"\")","v":""}]
[{"$f":"+'Sjekkliste noter'!#REF!","v":{"$error":"#REF!"}},{"$f":"IF('Sjekkliste noter'!#REF!<>\"\",1,0)","v":{"$error":"#REF!"}},{"$error":"#REF!"},{"$f":"IF($C51=1,'Sjekkliste noter'!#REF!,\"\")","v":{"$error":"#REF!"}},{"$f":"IF($C51=1,'Sjekkliste noter'!#REF!,\"\")","v":{"$error":"#REF!"}},null,{"$f":"IF($C51=1,'Sjekkliste noter'!#REF!,\"\")","v":{"$error":"#REF!"}}]
[{"$f":"+'Sjekkliste noter'!#REF!","v":{"$error":"#REF!"}},{"$f":"IF('Sjekkliste noter'!#REF!<>\"\",1,0)","v":{"$error":"#REF!"}},{"$error":"#REF!"},{"$f":"IF($C52=1,'Sjekkliste noter'!#REF!,\"\")","v":{"$error":"#REF!"}},{"$f":"IF($C52=1,'Sjekkliste noter'!#REF!,\"\")","v":{"$error":"#REF!"}},null,{"$f":"IF($C52=1,'Sjekkliste noter'!#REF!,\"\")","v":{"$error":"#REF!"}}]
[{"$f":"+'Sjekkliste noter'!A68","v":30},{"$f":"IF('Sjekkliste noter'!F68<>\"\",1,0)","v":0},0,{"$f":"IF($C53=1,'Sjekkliste noter'!A68,\"\")","v":""},{"$f":"IF($C53=1,'Sjekkliste noter'!B68,\"\")","v":""},null,{"$f":"IF($C53=1,'Sjekkliste noter'!H68,\"\")","v":""}]
[{"$f":"+'Sjekkliste noter'!A69","v":31},{"$f":"IF('Sjekkliste noter'!F69<>\"\",1,0)","v":0},0,{"$f":"IF($C54=1,'Sjekkliste noter'!A69,\"\")","v":""},{"$f":"IF($C54=1,'Sjekkliste noter'!B69,\"\")","v":""},null,{"$f":"IF($C54=1,'Sjekkliste noter'!H69,\"\")","v":""}]
[{"$f":"+'Sjekkliste noter'!A70","v":32},{"$f":"IF('Sjekkliste noter'!F70<>\"\",1,0)","v":0},0,{"$f":"IF($C55=1,'Sjekkliste noter'!A70,\"\")","v":""},{"$f":"IF($C55=1,'Sjekkliste noter'!B70,\"\")","v":""},null,{"$f":"IF($C55=1,'Sjekkliste noter'!H70,\"\")","v":""}]
[{"$f":"+'Sjekkliste noter'!#REF!","v":{"$error":"#REF!"}},{"$f":"IF('Sjekkliste noter'!#REF!<>\"\",1,0)","v":{"$error":"#REF!"}},{"$error":"#REF!"},{"$f":"IF($C56=1,'Sjekkliste noter'!#REF!,\"\")","v":{"$error":"#REF!"}},{"$f":"IF($C56=1,'Sjekkliste noter'!#REF!,\"\")","v":{"$error":"#REF!"}},null,{"$f":"IF($C56=1,'Sjekkliste noter'!#REF!,\"\")","v":{"$error":"#REF!"}}]
[{"$f":"+'Sjekkliste noter'!#REF!","v":{"$error":"#REF!"}},{"$f":"IF('Sjekkliste noter'!#REF!<>\"\",1,0)","v":{"$error":"#REF!"}},{"$error":"#REF!"},{"$f":"IF($C57=1,'Sjekkliste noter'!#REF!,\"\")","v":{"$error":"#REF!"}},{"$f":"IF($C57=1,'Sjekkliste noter'!#REF!,\"\")","v":{"$error":"#REF!"}},null,{"$f":"IF($C57=1,'Sjekkliste noter'!#REF!,\"\")","v":{"$error":"#REF!"}}]
[{"$f":"+'Sjekkliste noter'!#REF!","v":{"$error":"#REF!"}},{"$f":"IF('Sjekkliste noter'!#REF!<>\"\",1,0)","v":{"$error":"#REF!"}},{"$error":"#REF!"},{"$f":"IF($C58=1,'Sjekkliste noter'!#REF!,\"\")","v":{"$error":"#REF!"}},{"$f":"IF($C58=1,'Sjekkliste noter'!#REF!,\"\")","v":{"$error":"#REF!"}},null,{"$f":"IF($C58=1,'Sjekkliste noter'!#REF!,\"\")","v":{"$error":"#REF!"}}]
[{"$f":"+'Sjekkliste noter'!#REF!","v":{"$error":"#REF!"}},{"$f":"IF('Sjekkliste noter'!#REF!<>\"\",1,0)","v":{"$error":"#REF!"}},{"$error":"#REF!"},{"$f":"IF($C59=1,'Sjekkliste noter'!#REF!,\"\")","v":{"$error":"#REF!"}},{"$f":"IF($C59=1,'Sjekkliste noter'!#REF!,\"\")","v":{"$error":"#REF!"}},null,{"$f":"IF($C59=1,'Sjekkliste noter'!#REF!,\"\")","v":{"$error":"#REF!"}}]
[{"$f":"+'Sjekkliste noter'!#REF!","v":{"$error":"#REF!"}},{"$f":"IF('Sjekkliste noter'!#REF!<>\"\",1,0)","v":{"$error":"#REF!"}},{"$error":"#REF!"},{"$f":"IF($C60=1,'Sjekkliste noter'!#REF!,\"\")","v":{"$error":"#REF!"}},{"$f":"IF($C60=1,'Sjekkliste noter'!#REF!,\"\")","v":{"$error":"#REF!"}},null,{"$f":"IF($C60=1,'Sjekkliste noter'!#REF!,\"\")","v":{"$error":"#REF!"}}]
[{"$f":"+'Sjekkliste noter'!#REF!","v":{"$error":"#REF!"}},{"$f":"IF('Sjekkliste noter'!#REF!<>\"\",1,0)","v":{"$error":"#REF!"}},{"$error":"#REF!"},{"$f":"IF($C61=1,'Sjekkliste noter'!#REF!,\"\")","v":{"$error":"#REF!"}},{"$f":"IF($C61=1,'Sjekkliste noter'!#REF!,\"\")","v":{"$error":"#REF!"}},null,{"$f":"IF($C61=1,'Sjekkliste noter'!#REF!,\"\")","v":{"$error":"#REF!"}}]
[{"$f":"+'Sjekkliste noter'!#REF!","v":{"$error":"#REF!"}},{"$f":"IF('Sjekkliste noter'!#REF!<>\"\",1,0)","v":{"$error":"#REF!"}},{"$error":"#REF!"},{"$f":"IF($C62=1,'Sjekkliste noter'!#REF!,\"\")","v":{"$error":"#REF!"}},{"$f":"IF($C62=1,'Sjekkliste noter'!#REF!,\"\")","v":{"$error":"#REF!"}},null,{"$f":"IF($C62=1,'Sjekkliste noter'!#REF!,\"\")","v":{"$error":"#REF!"}}]
[{"$f":"+'Sjekkliste noter'!#REF!","v":{"$error":"#REF!"}},{"$f":"IF('Sjekkliste noter'!#REF!<>\"\",1,0)","v":{"$error":"#REF!"}},{"$error":"#REF!"},{"$f":"IF($C63=1,'Sjekkliste noter'!#REF!,\"\")","v":{"$error":"#REF!"}},{"$f":"IF($C63=1,'Sjekkliste noter'!#REF!,\"\")","v":{"$error":"#REF!"}},null,{"$f":"IF($C63=1,'Sjekkliste noter'!#REF!,\"\")","v":{"$error":"#REF!"}}]
[{"$f":"+'Sjekkliste noter'!A72","v":33},{"$f":"IF('Sjekkliste noter'!F72<>\"\",1,0)","v":0},0,{"$f":"IF($C64=1,'Sjekkliste noter'!A72,\"\")","v":""},{"$f":"IF($C64=1,'Sjekkliste noter'!B72,\"\")","v":""},null,{"$f":"IF($C64=1,'Sjekkliste noter'!H72,\"\")","v":""}]
[{"$f":"+'Sjekkliste noter'!A74","v":34},{"$f":"IF('Sjekkliste noter'!F74<>\"\",1,0)","v":0},0,{"$f":"IF($C65=1,'Sjekkliste noter'!A74,\"\")","v":""},{"$f":"IF($C65=1,'Sjekkliste noter'!B74,\"\")","v":""},null,{"$f":"IF($C65=1,'Sjekkliste noter'!H74,\"\")","v":""}]
[{"$f":"+'Sjekkliste noter'!#REF!","v":{"$error":"#REF!"}},{"$f":"IF('Sjekkliste noter'!#REF!<>\"\",1,0)","v":{"$error":"#REF!"}},{"$f":"SUM(B66:B66)","v":{"$error":"#REF!"}},{"$f":"IF($C66=1,'Sjekkliste noter'!#REF!,\"\")","v":{"$error":"#REF!"}},{"$f":"IF($C66=1,'Sjekkliste noter'!#REF!,\"\")","v":{"$error":"#REF!"}},null,{"$f":"IF($C66=1,'Sjekkliste noter'!#REF!,\"\")","v":{"$error":"#REF!"}}]
[{"$f":"+'Sjekkliste noter'!A77","v":35},{"$f":"IF('Sjekkliste noter'!F77<>\"\",1,0)","v":0},0,{"$f":"IF($C67=1,'Sjekkliste noter'!A77,\"\")","v":""},{"$f":"IF($C67=1,'Sjekkliste noter'!B77,\"\")","v":""},null,{"$f":"IF($C67=1,'Sjekkliste noter'!H77,\"\")","v":""}]
[{"$f":"+'Sjekkliste noter'!A78","v":36},{"$f":"IF('Sjekkliste noter'!F78<>\"\",1,0)","v":0},0,{"$f":"IF($C68=1,'Sjekkliste noter'!A78,\"\")","v":""},{"$f":"IF($C68=1,'Sjekkliste noter'!B78,\"\")","v":""},null,{"$f":"IF($C68=1,'Sjekkliste noter'!H78,\"\")","v":""}]
[{"$f":"+'Sjekkliste noter'!#REF!","v":{"$error":"#REF!"}},{"$f":"IF('Sjekkliste noter'!#REF!<>\"\",1,0)","v":{"$error":"#REF!"}},{"$error":"#REF!"},{"$f":"IF($C69=1,'Sjekkliste noter'!#REF!,\"\")","v":{"$error":"#REF!"}},{"$f":"IF($C69=1,'Sjekkliste noter'!#REF!,\"\")","v":{"$error":"#REF!"}},null,{"$f":"IF($C69=1,'Sjekkliste noter'!#REF!,\"\")","v":{"$error":"#REF!"}}]
[{"$f":"+'Sjekkliste noter'!A80","v":37},{"$f":"IF('Sjekkliste noter'!F80<>\"\",1,0)","v":0},0,{"$f":"IF($C70=1,'Sjekkliste noter'!A80,\"\")","v":""},{"$f":"IF($C70=1,'Sjekkliste noter'!B80,\"\")","v":""},null,{"$f":"IF($C70=1,'Sjekkliste noter'!H80,\"\")","v":""}]
[{"$f":"+'Sjekkliste noter'!A81","v":38},{"$f":"IF('Sjekkliste noter'!F81<>\"\",1,0)","v":0},0,{"$f":"IF($C71=1,'Sjekkliste noter'!A81,\"\")","v":""},{"$f":"IF($C71=1,'Sjekkliste noter'!B81,\"\")","v":""},null,{"$f":"IF($C71=1,'Sjekkliste noter'!H81,\"\")","v":""}]
[{"$f":"+'Sjekkliste noter'!A82","v":39},{"$f":"IF('Sjekkliste noter'!F82<>\"\",1,0)","v":0},0,{"$f":"IF($C72=1,'Sjekkliste noter'!A82,\"\")","v":""},{"$f":"IF($C72=1,'Sjekkliste noter'!B82,\"\")","v":""},null,{"$f":"IF($C72=1,'Sjekkliste noter'!H82,\"\")","v":""}]
[{"$f":"+'Sjekkliste noter'!#REF!","v":{"$error":"#REF!"}},{"$f":"IF('Sjekkliste noter'!#REF!<>\"\",1,0)","v":{"$error":"#REF!"}},{"$error":"#REF!"},{"$f":"IF($C73=1,'Sjekkliste noter'!#REF!,\"\")","v":{"$error":"#REF!"}},{"$f":"IF($C73=1,'Sjekkliste noter'!#REF!,\"\")","v":{"$error":"#REF!"}},null,{"$f":"IF($C73=1,'Sjekkliste noter'!#REF!,\"\")","v":{"$error":"#REF!"}}]
[{"$f":"+'Sjekkliste noter'!A86","v":40},{"$f":"IF('Sjekkliste noter'!F86<>\"\",1,0)","v":0},0,{"$f":"IF($C74=1,'Sjekkliste noter'!A86,\"\")","v":""},{"$f":"IF($C74=1,'Sjekkliste noter'!B86,\"\")","v":""},null,{"$f":"IF($C74=1,'Sjekkliste noter'!H86,\"\")","v":""}]
[{"$f":"+'Sjekkliste noter'!A89","v":41},{"$f":"IF('Sjekkliste noter'!F89<>\"\",1,0)","v":0},0,{"$f":"IF($C75=1,'Sjekkliste noter'!A89,\"\")","v":""},{"$f":"IF($C75=1,'Sjekkliste noter'!B89,\"\")","v":""},null,{"$f":"IF($C75=1,'Sjekkliste noter'!H89,\"\")","v":""}]
[{"$f":"+'Sjekkliste noter'!A92","v":42},{"$f":"IF('Sjekkliste noter'!F92<>\"\",1,0)","v":0},0,{"$f":"IF($C76=1,'Sjekkliste noter'!A92,\"\")","v":""},{"$f":"IF($C76=1,'Sjekkliste noter'!B92,\"\")","v":""},null,{"$f":"IF($C76=1,'Sjekkliste noter'!H92,\"\")","v":""}]
[{"$f":"+'Sjekkliste noter'!A93","v":43},{"$f":"IF('Sjekkliste noter'!F93<>\"\",1,0)","v":0},0,{"$f":"IF($C77=1,'Sjekkliste noter'!A93,\"\")","v":""},{"$f":"IF($C77=1,'Sjekkliste noter'!B93,\"\")","v":""},null,{"$f":"IF($C77=1,'Sjekkliste noter'!H93,\"\")","v":""}]
[{"$f":"+'Sjekkliste noter'!A94","v":44},{"$f":"IF('Sjekkliste noter'!F94<>\"\",1,0)","v":0},0,{"$f":"IF($C78=1,'Sjekkliste noter'!A94,\"\")","v":""},{"$f":"IF($C78=1,'Sjekkliste noter'!B94,\"\")","v":""},null,{"$f":"IF($C78=1,'Sjekkliste noter'!H94,\"\")","v":""}]
[{"$f":"+'Sjekkliste noter'!A96","v":45},{"$f":"IF('Sjekkliste noter'!F96<>\"\",1,0)","v":0},0,{"$f":"IF($C79=1,'Sjekkliste noter'!A96,\"\")","v":""},{"$f":"IF($C79=1,'Sjekkliste noter'!B96,\"\")","v":""},null,{"$f":"IF($C79=1,'Sjekkliste noter'!H96,\"\")","v":""}]
[{"$f":"+'Sjekkliste noter'!A97","v":46},{"$f":"IF('Sjekkliste noter'!F97<>\"\",1,0)","v":0},0,{"$f":"IF($C80=1,'Sjekkliste noter'!A97,\"\")","v":""},{"$f":"IF($C80=1,'Sjekkliste noter'!B97,\"\")","v":""},null,{"$f":"IF($C80=1,'Sjekkliste noter'!H97,\"\")","v":""}]
[{"$f":"+'Sjekkliste noter'!#REF!","v":{"$error":"#REF!"}},{"$f":"IF('Sjekkliste noter'!#REF!<>\"\",1,0)","v":{"$error":"#REF!"}},{"$error":"#REF!"},{"$f":"IF($C81=1,'Sjekkliste noter'!#REF!,\"\")","v":{"$error":"#REF!"}},{"$f":"IF($C81=1,'Sjekkliste noter'!#REF!,\"\")","v":{"$error":"#REF!"}},null,{"$f":"IF($C81=1,'Sjekkliste noter'!#REF!,\"\")","v":{"$error":"#REF!"}}]
[{"$f":"+'Sjekkliste noter'!A101","v":47},{"$f":"IF('Sjekkliste noter'!F101<>\"\",1,0)","v":0},0,{"$f":"IF($C82=1,'Sjekkliste noter'!A101,\"\")","v":""},{"$f":"IF($C82=1,'Sjekkliste noter'!B101,\"\")","v":""},null,{"$f":"IF($C82=1,'Sjekkliste noter'!H101,\"\")","v":""}]
[{"$f":"+'Sjekkliste noter'!A102","v":48},{"$f":"IF('Sjekkliste noter'!F102<>\"\",1,0)","v":0},0,{"$f":"IF($C83=1,'Sjekkliste noter'!A102,\"\")","v":""},{"$f":"IF($C83=1,'Sjekkliste noter'!B102,\"\")","v":""},null,{"$f":"IF($C83=1,'Sjekkliste noter'!H102,\"\")","v":""}]
[{"$f":"+'Sjekkliste noter'!A103","v":49},{"$f":"IF('Sjekkliste noter'!F103<>\"\",1,0)","v":0},0,{"$f":"IF($C84=1,'Sjekkliste noter'!A103,\"\")","v":""},{"$f":"IF($C84=1,'Sjekkliste noter'!B103,\"\")","v":""},null,{"$f":"IF($C84=1,'Sjekkliste noter'!H103,\"\")","v":""}]
[{"$f":"+'Sjekkliste noter'!A104","v":50},{"$f":"IF('Sjekkliste noter'!F104<>\"\",1,0)","v":0},0,{"$f":"IF($C85=1,'Sjekkliste noter'!A104,\"\")","v":""},{"$f":"IF($C85=1,'Sjekkliste noter'!B104,\"\")","v":""},null,{"$f":"IF($C85=1,'Sjekkliste noter'!H104,\"\")","v":""}]
[{"$f":"+'Sjekkliste noter'!#REF!","v":{"$error":"#REF!"}},{"$f":"IF('Sjekkliste noter'!#REF!<>\"\",1,0)","v":{"$error":"#REF!"}},{"$error":"#REF!"},{"$f":"IF($C86=1,'Sjekkliste noter'!#REF!,\"\")","v":{"$error":"#REF!"}},{"$f":"IF($C86=1,'Sjekkliste noter'!#REF!,\"\")","v":{"$error":"#REF!"}},null,{"$f":"IF($C86=1,'Sjekkliste noter'!#REF!,\"\")","v":{"$error":"#REF!"}}]
[{"$f":"+'Sjekkliste noter'!#REF!","v":{"$error":"#REF!"}},{"$f":"IF('Sjekkliste noter'!#REF!<>\"\",1,0)","v":{"$error":"#REF!"}},{"$error":"#REF!"},{"$f":"IF($C87=1,'Sjekkliste noter'!#REF!,\"\")","v":{"$error":"#REF!"}},{"$f":"IF($C87=1,'Sjekkliste noter'!#REF!,\"\")","v":{"$error":"#REF!"}},null,{"$f":"IF($C87=1,'Sjekkliste noter'!#REF!,\"\")","v":{"$error":"#REF!"}}]
[{"$f":"+'Sjekkliste noter'!#REF!","v":{"$error":"#REF!"}},{"$f":"IF('Sjekkliste noter'!#REF!<>\"\",1,0)","v":{"$error":"#REF!"}},{"$error":"#REF!"},{"$f":"IF($C88=1,'Sjekkliste noter'!#REF!,\"\")","v":{"$error":"#REF!"}},{"$f":"IF($C88=1,'Sjekkliste noter'!#REF!,\"\")","v":{"$error":"#REF!"}},null,{"$f":"IF($C88=1,'Sjekkliste noter'!#REF!,\"\")","v":{"$error":"#REF!"}}]
[{"$f":"+'Sjekkliste noter'!#REF!","v":{"$error":"#REF!"}},{"$f":"IF('Sjekkliste noter'!#REF!<>\"\",1,0)","v":{"$error":"#REF!"}},{"$error":"#REF!"},{"$f":"IF($C89=1,'Sjekkliste noter'!#REF!,\"\")","v":{"$error":"#REF!"}},{"$f":"IF($C89=1,'Sjekkliste noter'!#REF!,\"\")","v":{"$error":"#REF!"}},null,{"$f":"IF($C89=1,'Sjekkliste noter'!#REF!,\"\")","v":{"$error":"#REF!"}}]
[{"$f":"+'Sjekkliste noter'!#REF!","v":{"$error":"#REF!"}},{"$f":"IF('Sjekkliste noter'!#REF!<>\"\",1,0)","v":{"$error":"#REF!"}},{"$error":"#REF!"},{"$f":"IF($C90=1,'Sjekkliste noter'!#REF!,\"\")","v":{"$error":"#REF!"}},{"$f":"IF($C90=1,'Sjekkliste noter'!#REF!,\"\")","v":{"$error":"#REF!"}},null,{"$f":"IF($C90=1,'Sjekkliste noter'!#REF!,\"\")","v":{"$error":"#REF!"}}]
[{"$f":"+'Sjekkliste noter'!#REF!","v":{"$error":"#REF!"}},{"$f":"IF('Sjekkliste noter'!#REF!<>\"\",1,0)","v":{"$error":"#REF!"}},{"$error":"#REF!"},{"$f":"IF($C91=1,'Sjekkliste noter'!#REF!,\"\")","v":{"$error":"#REF!"}},{"$f":"IF($C91=1,'Sjekkliste noter'!#REF!,\"\")","v":{"$error":"#REF!"}},null,{"$f":"IF($C91=1,'Sjekkliste noter'!#REF!,\"\")","v":{"$error":"#REF!"}}]
[{"$f":"+'Sjekkliste noter'!#REF!","v":{"$error":"#REF!"}},{"$f":"IF('Sjekkliste noter'!#REF!<>\"\",1,0)","v":{"$error":"#REF!"}},{"$error":"#REF!"},{"$f":"IF($C92=1,'Sjekkliste noter'!#REF!,\"\")","v":{"$error":"#REF!"}},{"$f":"IF($C92=1,'Sjekkliste noter'!#REF!,\"\")","v":{"$error":"#REF!"}},null,{"$f":"IF($C92=1,'Sjekkliste noter'!#REF!,\"\")","v":{"$error":"#REF!"}}]
[{"$f":"+'Sjekkliste noter'!#REF!","v":{"$error":"#REF!"}},{"$f":"IF('Sjekkliste noter'!#REF!<>\"\",1,0)","v":{"$error":"#REF!"}},{"$error":"#REF!"},{"$f":"IF($C93=1,'Sjekkliste noter'!#REF!,\"\")","v":{"$error":"#REF!"}},{"$f":"IF($C93=1,'Sjekkliste noter'!#REF!,\"\")","v":{"$error":"#REF!"}},null,{"$f":"IF($C93=1,'Sjekkliste noter'!#REF!,\"\")","v":{"$error":"#REF!"}}]
[{"$f":"+'Sjekkliste noter'!#REF!","v":{"$error":"#REF!"}},{"$f":"IF('Sjekkliste noter'!#REF!<>\"\",1,0)","v":{"$error":"#REF!"}},{"$error":"#REF!"},{"$f":"IF($C94=1,'Sjekkliste noter'!#REF!,\"\")","v":{"$error":"#REF!"}},{"$f":"IF($C94=1,'Sjekkliste noter'!#REF!,\"\")","v":{"$error":"#REF!"}},null,{"$f":"IF($C94=1,'Sjekkliste noter'!#REF!,\"\")","v":{"$error":"#REF!"}}]
[{"$f":"+'Sjekkliste noter'!#REF!","v":{"$error":"#REF!"}},{"$f":"IF('Sjekkliste noter'!#REF!<>\"\",1,0)","v":{"$error":"#REF!"}},{"$error":"#REF!"},{"$f":"IF($C95=1,'Sjekkliste noter'!#REF!,\"\")","v":{"$error":"#REF!"}},{"$f":"IF($C95=1,'Sjekkliste noter'!#REF!,\"\")","v":{"$error":"#REF!"}},null,{"$f":"IF($C95=1,'Sjekkliste noter'!#REF!,\"\")","v":{"$error":"#REF!"}}]
[{"$f":"+'Sjekkliste noter'!#REF!","v":{"$error":"#REF!"}},{"$f":"IF('Sjekkliste noter'!#REF!<>\"\",1,0)","v":{"$error":"#REF!"}},{"$error":"#REF!"},{"$f":"IF($C96=1,'Sjekkliste noter'!#REF!,\"\")","v":{"$error":"#REF!"}},{"$f":"IF($C96=1,'Sjekkliste noter'!#REF!,\"\")","v":{"$error":"#REF!"}},null,{"$f":"IF($C96=1,'Sjekkliste noter'!#REF!,\"\")","v":{"$error":"#REF!"}}]
[{"$f":"+'Sjekkliste noter'!#REF!","v":{"$error":"#REF!"}},{"$f":"IF('Sjekkliste noter'!#REF!<>\"\",1,0)","v":{"$error":"#REF!"}},{"$error":"#REF!"},{"$f":"IF($C97=1,'Sjekkliste noter'!#REF!,\"\")","v":{"$error":"#REF!"}},{"$f":"IF($C97=1,'Sjekkliste noter'!#REF!,\"\")","v":{"$error":"#REF!"}},null,{"$f":"IF($C97=1,'Sjekkliste noter'!#REF!,\"\")","v":{"$error":"#REF!"}}]
[{"$f":"+'Sjekkliste noter'!#REF!","v":{"$error":"#REF!"}},{"$f":"IF('Sjekkliste noter'!#REF!<>\"\",1,0)","v":{"$error":"#REF!"}},{"$f":"SUM(B98:B98)","v":{"$error":"#REF!"}},{"$f":"IF($C98=1,'Sjekkliste noter'!#REF!,\"\")","v":{"$error":"#REF!"}},{"$f":"IF($C98=1,'Sjekkliste noter'!#REF!,\"\")","v":{"$error":"#REF!"}},null,{"$f":"IF($C98=1,'Sjekkliste noter'!#REF!,\"\")","v":{"$error":"#REF!"}}]
[{"$f":"+'Sjekkliste noter'!#REF!","v":{"$error":"#REF!"}},{"$f":"IF('Sjekkliste noter'!#REF!<>\"\",1,0)","v":{"$error":"#REF!"}},{"$error":"#REF!"},{"$f":"IF($C99=1,'Sjekkliste noter'!#REF!,\"\")","v":{"$error":"#REF!"}},{"$f":"IF($C99=1,'Sjekkliste noter'!#REF!,\"\")","v":{"$error":"#REF!"}},null,{"$f":"IF($C99=1,'Sjekkliste noter'!#REF!,\"\")","v":{"$error":"#REF!"}}]
[{"$f":"+'Sjekkliste noter'!#REF!","v":{"$error":"#REF!"}},{"$f":"IF('Sjekkliste noter'!#REF!<>\"\",1,0)","v":{"$error":"#REF!"}},{"$error":"#REF!"},{"$f":"IF($C100=1,'Sjekkliste noter'!#REF!,\"\")","v":{"$error":"#REF!"}},{"$f":"IF($C100=1,'Sjekkliste noter'!#REF!,\"\")","v":{"$error":"#REF!"}},null,{"$f":"IF($C100=1,'Sjekkliste noter'!#REF!,\"\")","v":{"$error":"#REF!"}}]
[{"$f":"+'Sjekkliste noter'!#REF!","v":{"$error":"#REF!"}},{"$f":"IF('Sjekkliste noter'!#REF!<>\"\",1,0)","v":{"$error":"#REF!"}},{"$error":"#REF!"},{"$f":"IF($C101=1,'Sjekkliste noter'!#REF!,\"\")","v":{"$error":"#REF!"}},{"$f":"IF($C101=1,'Sjekkliste noter'!#REF!,\"\")","v":{"$error":"#REF!"}},null,{"$f":"IF($C101=1,'Sjekkliste noter'!#REF!,\"\")","v":{"$error":"#REF!"}}]
[{"$f":"+'Sjekkliste noter'!A107","v":51},{"$f":"IF('Sjekkliste noter'!F107<>\"\",1,0)","v":0},0,{"$f":"IF($C102=1,'Sjekkliste noter'!A107,\"\")","v":""},{"$f":"IF($C102=1,'Sjekkliste noter'!B107,\"\")","v":""},null,{"$f":"IF($C102=1,'Sjekkliste noter'!H107,\"\")","v":""}]
[{"$f":"+'Sjekkliste noter'!A109","v":52},{"$f":"IF('Sjekkliste noter'!F109<>\"\",1,0)","v":0},0,{"$f":"IF($C103=1,'Sjekkliste noter'!A109,\"\")","v":""},{"$f":"IF($C103=1,'Sjekkliste noter'!B109,\"\")","v":""},null,{"$f":"IF($C103=1,'Sjekkliste noter'!H109,\"\")","v":""}]
[{"$f":"+'Sjekkliste noter'!A112","v":53},{"$f":"IF('Sjekkliste noter'!F112<>\"\",1,0)","v":0},0,{"$f":"IF($C104=1,'Sjekkliste noter'!A112,\"\")","v":""},{"$f":"IF($C104=1,'Sjekkliste noter'!B112,\"\")","v":""},null,{"$f":"IF($C104=1,'Sjekkliste noter'!H112,\"\")","v":""}]
[{"$f":"+'Sjekkliste noter'!A114","v":54},{"$f":"IF('Sjekkliste noter'!F114<>\"\",1,0)","v":0},0,{"$f":"IF($C105=1,'Sjekkliste noter'!A114,\"\")","v":""},{"$f":"IF($C105=1,'Sjekkliste noter'!B114,\"\")","v":""},null,{"$f":"IF($C105=1,'Sjekkliste noter'!H114,\"\")","v":""}]
[{"$f":"+'Sjekkliste noter'!#REF!","v":{"$error":"#REF!"}},{"$f":"IF('Sjekkliste noter'!#REF!<>\"\",1,0)","v":{"$error":"#REF!"}},{"$error":"#REF!"},{"$f":"IF($C106=1,'Sjekkliste noter'!#REF!,\"\")","v":{"$error":"#REF!"}},{"$f":"IF($C106=1,'Sjekkliste noter'!#REF!,\"\")","v":{"$error":"#REF!"}},null,{"$f":"IF($C106=1,'Sjekkliste noter'!#REF!,\"\")","v":{"$error":"#REF!"}}]
[{"$f":"+'Sjekkliste noter'!#REF!","v":{"$error":"#REF!"}},{"$f":"IF('Sjekkliste noter'!#REF!<>\"\",1,0)","v":{"$error":"#REF!"}},{"$error":"#REF!"},{"$f":"IF($C107=1,'Sjekkliste noter'!#REF!,\"\")","v":{"$error":"#REF!"}},{"$f":"IF($C107=1,'Sjekkliste noter'!#REF!,\"\")","v":{"$error":"#REF!"}},null,{"$f":"IF($C107=1,'Sjekkliste noter'!#REF!,\"\")","v":{"$error":"#REF!"}}]
[{"$f":"+'Sjekkliste noter'!#REF!","v":{"$error":"#REF!"}},{"$f":"IF('Sjekkliste noter'!#REF!<>\"\",1,0)","v":{"$error":"#REF!"}},{"$error":"#REF!"},{"$f":"IF($C108=1,'Sjekkliste noter'!#REF!,\"\")","v":{"$error":"#REF!"}},{"$f":"IF($C108=1,'Sjekkliste noter'!#REF!,\"\")","v":{"$error":"#REF!"}},null,{"$f":"IF($C108=1,'Sjekkliste noter'!#REF!,\"\")","v":{"$error":"#REF!"}}]
[{"$f":"+'Sjekkliste noter'!#REF!","v":{"$error":"#REF!"}},{"$f":"IF('Sjekkliste noter'!#REF!<>\"\",1,0)","v":{"$error":"#REF!"}},{"$error":"#REF!"},{"$f":"IF($C109=1,'Sjekkliste noter'!#REF!,\"\")","v":{"$error":"#REF!"}},{"$f":"IF($C109=1,'Sjekkliste noter'!#REF!,\"\")","v":{"$error":"#REF!"}},null,{"$f":"IF($C109=1,'Sjekkliste noter'!#REF!,\"\")","v":{"$error":"#REF!"}}]
[{"$f":"+'Sjekkliste noter'!A117","v":55},{"$f":"IF('Sjekkliste noter'!F117<>\"\",1,0)","v":0},0,{"$f":"IF($C110=1,'Sjekkliste noter'!A117,\"\")","v":""},{"$f":"IF($C110=1,'Sjekkliste noter'!B117,\"\")","v":""},null,{"$f":"IF($C110=1,'Sjekkliste noter'!H117,\"\")","v":""}]
[{"$f":"+'Sjekkliste noter'!A119","v":56},{"$f":"IF('Sjekkliste noter'!F119<>\"\",1,0)","v":0},0,{"$f":"IF($C111=1,'Sjekkliste noter'!A119,\"\")","v":""},{"$f":"IF($C111=1,'Sjekkliste noter'!B119,\"\")","v":""},null,{"$f":"IF($C111=1,'Sjekkliste noter'!H119,\"\")","v":""}]
[{"$f":"+'Sjekkliste noter'!#REF!","v":{"$error":"#REF!"}},{"$f":"IF('Sjekkliste noter'!#REF!<>\"\",1,0)","v":{"$error":"#REF!"}},{"$error":"#REF!"},{"$f":"IF($C112=1,'Sjekkliste noter'!#REF!,\"\")","v":{"$error":"#REF!"}},{"$f":"IF($C112=1,'Sjekkliste noter'!#REF!,\"\")","v":{"$error":"#REF!"}},null,{"$f":"IF($C112=1,'Sjekkliste noter'!#REF!,\"\")","v":{"$error":"#REF!"}}]
[{"$f":"+'Sjekkliste noter'!#REF!","v":{"$error":"#REF!"}},{"$f":"IF('Sjekkliste noter'!#REF!<>\"\",1,0)","v":{"$error":"#REF!"}},{"$error":"#REF!"},{"$f":"IF($C113=1,'Sjekkliste noter'!#REF!,\"\")","v":{"$error":"#REF!"}},{"$f":"IF($C113=1,'Sjekkliste noter'!#REF!,\"\")","v":{"$error":"#REF!"}},null,{"$f":"IF($C113=1,'Sjekkliste noter'!#REF!,\"\")","v":{"$error":"#REF!"}}]
[{"$f":"+'Sjekkliste noter'!#REF!","v":{"$error":"#REF!"}},{"$f":"IF('Sjekkliste noter'!#REF!<>\"\",1,0)","v":{"$error":"#REF!"}},{"$error":"#REF!"},{"$f":"IF($C114=1,'Sjekkliste noter'!#REF!,\"\")","v":{"$error":"#REF!"}},{"$f":"IF($C114=1,'Sjekkliste noter'!#REF!,\"\")","v":{"$error":"#REF!"}},null,{"$f":"IF($C114=1,'Sjekkliste noter'!#REF!,\"\")","v":{"$error":"#REF!"}}]
[{"$f":"+'Sjekkliste noter'!#REF!","v":{"$error":"#REF!"}},{"$f":"IF('Sjekkliste noter'!#REF!<>\"\",1,0)","v":{"$error":"#REF!"}},{"$error":"#REF!"},{"$f":"IF($C115=1,'Sjekkliste noter'!#REF!,\"\")","v":{"$error":"#REF!"}},{"$f":"IF($C115=1,'Sjekkliste noter'!#REF!,\"\")","v":{"$error":"#REF!"}},null,{"$f":"IF($C115=1,'Sjekkliste noter'!#REF!,\"\")","v":{"$error":"#REF!"}}]
[{"$f":"+'Sjekkliste noter'!#REF!","v":{"$error":"#REF!"}},{"$f":"IF('Sjekkliste noter'!#REF!<>\"\",1,0)","v":{"$error":"#REF!"}},{"$error":"#REF!"},{"$f":"IF($C116=1,'Sjekkliste noter'!#REF!,\"\")","v":{"$error":"#REF!"}},{"$f":"IF($C116=1,'Sjekkliste noter'!#REF!,\"\")","v":{"$error":"#REF!"}},null,{"$f":"IF($C116=1,'Sjekkliste noter'!#REF!,\"\")","v":{"$error":"#REF!"}}]
[{"$f":"+'Sjekkliste noter'!#REF!","v":{"$error":"#REF!"}},{"$f":"IF('Sjekkliste noter'!#REF!<>\"\",1,0)","v":{"$error":"#REF!"}},{"$error":"#REF!"},{"$f":"IF($C117=1,'Sjekkliste noter'!#REF!,\"\")","v":{"$error":"#REF!"}},{"$f":"IF($C117=1,'Sjekkliste noter'!#REF!,\"\")","v":{"$error":"#REF!"}},null,{"$f":"IF($C117=1,'Sjekkliste noter'!#REF!,\"\")","v":{"$error":"#REF!"}}]
[{"$f":"+'Sjekkliste noter'!#REF!","v":{"$error":"#REF!"}},{"$f":"IF('Sjekkliste noter'!#REF!<>\"\",1,0)","v":{"$error":"#REF!"}},{"$error":"#REF!"},{"$f":"IF($C118=1,'Sjekkliste noter'!#REF!,\"\")","v":{"$error":"#REF!"}},{"$f":"IF($C118=1,'Sjekkliste noter'!#REF!,\"\")","v":{"$error":"#REF!"}},null,{"$f":"IF($C118=1,'Sjekkliste noter'!#REF!,\"\")","v":{"$error":"#REF!"}}]
[{"$f":"+'Sjekkliste noter'!#REF!","v":{"$error":"#REF!"}},{"$f":"IF('Sjekkliste noter'!#REF!<>\"\",1,0)","v":{"$error":"#REF!"}},{"$error":"#REF!"},{"$f":"IF($C119=1,'Sjekkliste noter'!#REF!,\"\")","v":{"$error":"#REF!"}},{"$f":"IF($C119=1,'Sjekkliste noter'!#REF!,\"\")","v":{"$error":"#REF!"}},null,{"$f":"IF($C119=1,'Sjekkliste noter'!#REF!,\"\")","v":{"$error":"#REF!"}}]
[{"$f":"+'Sjekkliste noter'!A121","v":57},{"$f":"IF('Sjekkliste noter'!F121<>\"\",1,0)","v":0},0,{"$f":"IF($C120=1,'Sjekkliste noter'!A121,\"\")","v":""},{"$f":"IF($C120=1,'Sjekkliste noter'!B121,\"\")","v":""},null,{"$f":"IF($C120=1,'Sjekkliste noter'!H121,\"\")","v":""}]
[{"$f":"+'Sjekkliste noter'!#REF!","v":{"$error":"#REF!"}},{"$f":"IF('Sjekkliste noter'!#REF!<>\"\",1,0)","v":{"$error":"#REF!"}},{"$error":"#REF!"},{"$f":"IF($C121=1,'Sjekkliste noter'!#REF!,\"\")","v":{"$error":"#REF!"}},{"$f":"IF($C121=1,'Sjekkliste noter'!#REF!,\"\")","v":{"$error":"#REF!"}},null,{"$f":"IF($C121=1,'Sjekkliste noter'!#REF!,\"\")","v":{"$error":"#REF!"}}]
[{"$f":"+'Sjekkliste noter'!#REF!","v":{"$error":"#REF!"}},{"$f":"IF('Sjekkliste noter'!#REF!<>\"\",1,0)","v":{"$error":"#REF!"}},{"$error":"#REF!"},{"$f":"IF($C122=1,'Sjekkliste noter'!#REF!,\"\")","v":{"$error":"#REF!"}},{"$f":"IF($C122=1,'Sjekkliste noter'!#REF!,\"\")","v":{"$error":"#REF!"}},null,{"$f":"IF($C122=1,'Sjekkliste noter'!#REF!,\"\")","v":{"$error":"#REF!"}}]
[{"$f":"+'Sjekkliste noter'!#REF!","v":{"$error":"#REF!"}},{"$f":"IF('Sjekkliste noter'!#REF!<>\"\",1,0)","v":{"$error":"#REF!"}},{"$error":"#REF!"},{"$f":"IF($C123=1,'Sjekkliste noter'!#REF!,\"\")","v":{"$error":"#REF!"}},{"$f":"IF($C123=1,'Sjekkliste noter'!#REF!,\"\")","v":{"$error":"#REF!"}},null,{"$f":"IF($C123=1,'Sjekkliste noter'!#REF!,\"\")","v":{"$error":"#REF!"}}]
[{"$f":"+'Sjekkliste noter'!#REF!","v":{"$error":"#REF!"}},{"$f":"IF('Sjekkliste noter'!#REF!<>\"\",1,0)","v":{"$error":"#REF!"}},{"$error":"#REF!"},{"$f":"IF($C124=1,'Sjekkliste noter'!#REF!,\"\")","v":{"$error":"#REF!"}},{"$f":"IF($C124=1,'Sjekkliste noter'!#REF!,\"\")","v":{"$error":"#REF!"}},null,{"$f":"IF($C124=1,'Sjekkliste noter'!#REF!,\"\")","v":{"$error":"#REF!"}}]
[{"$f":"+'Sjekkliste noter'!#REF!","v":{"$error":"#REF!"}},{"$f":"IF('Sjekkliste noter'!#REF!<>\"\",1,0)","v":{"$error":"#REF!"}},{"$error":"#REF!"},{"$f":"IF($C125=1,'Sjekkliste noter'!#REF!,\"\")","v":{"$error":"#REF!"}},{"$f":"IF($C125=1,'Sjekkliste noter'!#REF!,\"\")","v":{"$error":"#REF!"}},null,{"$f":"IF($C125=1,'Sjekkliste noter'!#REF!,\"\")","v":{"$error":"#REF!"}}]
[{"$f":"+'Sjekkliste noter'!#REF!","v":{"$error":"#REF!"}},{"$f":"IF('Sjekkliste noter'!#REF!<>\"\",1,0)","v":{"$error":"#REF!"}},{"$error":"#REF!"},{"$f":"IF($C126=1,'Sjekkliste noter'!#REF!,\"\")","v":{"$error":"#REF!"}},{"$f":"IF($C126=1,'Sjekkliste noter'!#REF!,\"\")","v":{"$error":"#REF!"}},null,{"$f":"IF($C126=1,'Sjekkliste noter'!#REF!,\"\")","v":{"$error":"#REF!"}}]
[{"$f":"+'Sjekkliste noter'!#REF!","v":{"$error":"#REF!"}},{"$f":"IF('Sjekkliste noter'!#REF!<>\"\",1,0)","v":{"$error":"#REF!"}},{"$error":"#REF!"},{"$f":"IF($C127=1,'Sjekkliste noter'!#REF!,\"\")","v":{"$error":"#REF!"}},{"$f":"IF($C127=1,'Sjekkliste noter'!#REF!,\"\")","v":{"$error":"#REF!"}},null,{"$f":"IF($C127=1,'Sjekkliste noter'!#REF!,\"\")","v":{"$error":"#REF!"}}]
[{"$f":"+'Sjekkliste noter'!A124","v":58},{"$f":"IF('Sjekkliste noter'!F124<>\"\",1,0)","v":0},0,{"$f":"IF($C128=1,'Sjekkliste noter'!A124,\"\")","v":""},{"$f":"IF($C128=1,'Sjekkliste noter'!B124,\"\")","v":""},null,{"$f":"IF($C128=1,'Sjekkliste noter'!H124,\"\")","v":""}]
[{"$f":"+'Sjekkliste noter'!#REF!","v":{"$error":"#REF!"}},{"$f":"IF('Sjekkliste noter'!#REF!<>\"\",1,0)","v":{"$error":"#REF!"}},{"$error":"#REF!"},{"$f":"IF($C129=1,'Sjekkliste noter'!#REF!,\"\")","v":{"$error":"#REF!"}},{"$f":"IF($C129=1,'Sjekkliste noter'!#REF!,\"\")","v":{"$error":"#REF!"}},null,{"$f":"IF($C129=1,'Sjekkliste noter'!#REF!,\"\")","v":{"$error":"#REF!"}}]
[{"$f":"+'Sjekkliste noter'!A130","v":60},{"$f":"IF('Sjekkliste noter'!F130<>\"\",1,0)","v":0},{"$f":"SUM(B130:B130)","v":0},{"$f":"IF($C130=1,'Sjekkliste noter'!A130,\"\")","v":""},{"$f":"IF($C130=1,'Sjekkliste noter'!B130,\"\")","v":""},null,{"$f":"IF($C130=1,'Sjekkliste noter'!H130,\"\")","v":""}]
[{"$f":"+'Sjekkliste noter'!A134","v":61},{"$f":"IF('Sjekkliste noter'!F134<>\"\",1,0)","v":0},0,{"$f":"IF($C131=1,'Sjekkliste noter'!A134,\"\")","v":""},{"$f":"IF($C131=1,'Sjekkliste noter'!B134,\"\")","v":""},null,{"$f":"IF($C131=1,'Sjekkliste noter'!H134,\"\")","v":""}]
[{"$f":"+'Sjekkliste noter'!#REF!","v":{"$error":"#REF!"}},{"$f":"IF('Sjekkliste noter'!#REF!<>\"\",1,0)","v":{"$error":"#REF!"}},{"$error":"#REF!"},{"$f":"IF($C132=1,'Sjekkliste noter'!#REF!,\"\")","v":{"$error":"#REF!"}},{"$f":"IF($C132=1,'Sjekkliste noter'!#REF!,\"\")","v":{"$error":"#REF!"}},null,{"$f":"IF($C132=1,'Sjekkliste noter'!#REF!,\"\")","v":{"$error":"#REF!"}}]
[{"$f":"+'Sjekkliste noter'!#REF!","v":{"$error":"#REF!"}},{"$f":"IF('Sjekkliste noter'!#REF!<>\"\",1,0)","v":{"$error":"#REF!"}},{"$error":"#REF!"},{"$f":"IF($C133=1,'Sjekkliste noter'!#REF!,\"\")","v":{"$error":"#REF!"}},{"$f":"IF($C133=1,'Sjekkliste noter'!#REF!,\"\")","v":{"$error":"#REF!"}},null,{"$f":"IF($C133=1,'Sjekkliste noter'!#REF!,\"\")","v":{"$error":"#REF!"}}]
[{"$f":"+'Sjekkliste noter'!#REF!","v":{"$error":"#REF!"}},{"$f":"IF('Sjekkliste noter'!#REF!<>\"\",1,0)","v":{"$error":"#REF!"}},{"$error":"#REF!"},{"$f":"IF($C134=1,'Sjekkliste noter'!#REF!,\"\")","v":{"$error":"#REF!"}},{"$f":"IF($C134=1,'Sjekkliste noter'!#REF!,\"\")","v":{"$error":"#REF!"}},null,{"$f":"IF($C134=1,'Sjekkliste noter'!#REF!,\"\")","v":{"$error":"#REF!"}}]
[{"$f":"+'Sjekkliste noter'!A137","v":62},{"$f":"IF('Sjekkliste noter'!F137<>\"\",1,0)","v":0},0,{"$f":"IF($C135=1,'Sjekkliste noter'!A137,\"\")","v":""},{"$f":"IF($C135=1,'Sjekkliste noter'!B137,\"\")","v":""},null,{"$f":"IF($C135=1,'Sjekkliste noter'!H137,\"\")","v":""}]
[{"$f":"+'Sjekkliste noter'!A138","v":63},{"$f":"IF('Sjekkliste noter'!F138<>\"\",1,0)","v":0},0,{"$f":"IF($C136=1,'Sjekkliste noter'!A138,\"\")","v":""},{"$f":"IF($C136=1,'Sjekkliste noter'!B138,\"\")","v":""},null,{"$f":"IF($C136=1,'Sjekkliste noter'!H138,\"\")","v":""}]
[{"$f":"+'Sjekkliste noter'!A139","v":64},{"$f":"IF('Sjekkliste noter'!F139<>\"\",1,0)","v":0},0,{"$f":"IF($C137=1,'Sjekkliste noter'!A139,\"\")","v":""},{"$f":"IF($C137=1,'Sjekkliste noter'!B139,\"\")","v":""},null,{"$f":"IF($C137=1,'Sjekkliste noter'!H139,\"\")","v":""}]
[{"$f":"+'Sjekkliste noter'!A140","v":65},{"$f":"IF('Sjekkliste noter'!F140<>\"\",1,0)","v":0},0,{"$f":"IF($C138=1,'Sjekkliste noter'!A140,\"\")","v":""},{"$f":"IF($C138=1,'Sjekkliste noter'!B140,\"\")","v":""},null,{"$f":"IF($C138=1,'Sjekkliste noter'!H140,\"\")","v":""}]
[{"$f":"+'Sjekkliste noter'!A141","v":66},{"$f":"IF('Sjekkliste noter'!F141<>\"\",1,0)","v":0},0,{"$f":"IF($C139=1,'Sjekkliste noter'!A141,\"\")","v":""},{"$f":"IF($C139=1,'Sjekkliste noter'!B141,\"\")","v":""},null,{"$f":"IF($C139=1,'Sjekkliste noter'!H141,\"\")","v":""}]
[{"$f":"+'Sjekkliste noter'!A142","v":67},{"$f":"IF('Sjekkliste noter'!F142<>\"\",1,0)","v":0},0,{"$f":"IF($C140=1,'Sjekkliste noter'!A142,\"\")","v":""},{"$f":"IF($C140=1,'Sjekkliste noter'!B142,\"\")","v":""},null,{"$f":"IF($C140=1,'Sjekkliste noter'!H142,\"\")","v":""}]
[{"$f":"+'Sjekkliste noter'!A143","v":68},{"$f":"IF('Sjekkliste noter'!F143<>\"\",1,0)","v":0},0,{"$f":"IF($C141=1,'Sjekkliste noter'!A143,\"\")","v":""},{"$f":"IF($C141=1,'Sjekkliste noter'!B143,\"\")","v":""},null,{"$f":"IF($C141=1,'Sjekkliste noter'!H143,\"\")","v":""}]
[{"$f":"+'Sjekkliste noter'!A144","v":69},{"$f":"IF('Sjekkliste noter'!F144<>\"\",1,0)","v":0},0,{"$f":"IF($C142=1,'Sjekkliste noter'!A144,\"\")","v":""},{"$f":"IF($C142=1,'Sjekkliste noter'!B144,\"\")","v":""},null,{"$f":"IF($C142=1,'Sjekkliste noter'!H144,\"\")","v":""}]
[{"$f":"+'Sjekkliste noter'!A145","v":70},{"$f":"IF('Sjekkliste noter'!F145<>\"\",1,0)","v":0},0,{"$f":"IF($C143=1,'Sjekkliste noter'!A145,\"\")","v":""},{"$f":"IF($C143=1,'Sjekkliste noter'!B145,\"\")","v":""},null,{"$f":"IF($C143=1,'Sjekkliste noter'!H145,\"\")","v":""}]
[{"$f":"+'Sjekkliste noter'!A146","v":71},{"$f":"IF('Sjekkliste noter'!F146<>\"\",1,0)","v":0},0,{"$f":"IF($C144=1,'Sjekkliste noter'!A146,\"\")","v":""},{"$f":"IF($C144=1,'Sjekkliste noter'!B146,\"\")","v":""},null,{"$f":"IF($C144=1,'Sjekkliste noter'!H146,\"\")","v":""}]
[{"$f":"+'Sjekkliste noter'!A147","v":72},{"$f":"IF('Sjekkliste noter'!F147<>\"\",1,0)","v":0},0,{"$f":"IF($C145=1,'Sjekkliste noter'!A147,\"\")","v":""},{"$f":"IF($C145=1,'Sjekkliste noter'!B147,\"\")","v":""},null,{"$f":"IF($C145=1,'Sjekkliste noter'!H147,\"\")","v":""}]
[{"$f":"+'Sjekkliste noter'!A148","v":73},{"$f":"IF('Sjekkliste noter'!F148<>\"\",1,0)","v":0},0,{"$f":"IF($C146=1,'Sjekkliste noter'!A148,\"\")","v":""},{"$f":"IF($C146=1,'Sjekkliste noter'!B148,\"\")","v":""},null,{"$f":"IF($C146=1,'Sjekkliste noter'!H148,\"\")","v":""}]
[{"$f":"+'Sjekkliste noter'!A149","v":74},{"$f":"IF('Sjekkliste noter'!F149<>\"\",1,0)","v":0},0,{"$f":"IF($C147=1,'Sjekkliste noter'!A149,\"\")","v":""},{"$f":"IF($C147=1,'Sjekkliste noter'!B149,\"\")","v":""},null,{"$f":"IF($C147=1,'Sjekkliste noter'!H149,\"\")","v":""}]
[{"$f":"+'Sjekkliste noter'!A152","v":75},{"$f":"IF('Sjekkliste noter'!F152<>\"\",1,0)","v":0},0,{"$f":"IF($C148=1,'Sjekkliste noter'!A152,\"\")","v":""},{"$f":"IF($C148=1,'Sjekkliste noter'!B152,\"\")","v":""},null,{"$f":"IF($C148=1,'Sjekkliste noter'!H152,\"\")","v":""}]
[{"$f":"+'Sjekkliste noter'!A153","v":76},{"$f":"IF('Sjekkliste noter'!F153<>\"\",1,0)","v":0},0,{"$f":"IF($C149=1,'Sjekkliste noter'!A153,\"\")","v":""},{"$f":"IF($C149=1,'Sjekkliste noter'!B153,\"\")","v":""},null,{"$f":"IF($C149=1,'Sjekkliste noter'!H153,\"\")","v":""}]
[{"$f":"+'Sjekkliste noter'!A156","v":77},{"$f":"IF('Sjekkliste noter'!F156<>\"\",1,0)","v":0},0,{"$f":"IF($C150=1,'Sjekkliste noter'!A156,\"\")","v":""},{"$f":"IF($C150=1,'Sjekkliste noter'!B156,\"\")","v":""},null,{"$f":"IF($C150=1,'Sjekkliste noter'!H156,\"\")","v":""}]
[{"$f":"+'Sjekkliste noter'!A157","v":78},{"$f":"IF('Sjekkliste noter'!F157<>\"\",1,0)","v":0},0,{"$f":"IF($C151=1,'Sjekkliste noter'!A157,\"\")","v":""},{"$f":"IF($C151=1,'Sjekkliste noter'!B157,\"\")","v":""},null,{"$f":"IF($C151=1,'Sjekkliste noter'!H157,\"\")","v":""}]

{"sheet":"N_IA","index":5,"n_rows":151,"n_cols":7,"rows_kept":151,"cut":false,"hidden":true,"merged":[]}
[null,null,{"$f":"COUNTIF(C2:C500,\"=1\")","v":0},"IA-svar",{"$f":"+FrontPage!B2","v":0},{"$f":"+FrontPage!B3","v":2024},"Kommentarer"]
[{"$f":"+'Sjekkliste noter'!A158","v":79},{"$f":"IF('Sjekkliste noter'!G158<>\"\",1,0)","v":0},{"$f":"SUM(B2:B2)","v":0},{"$f":"IF($C2=1,'Sjekkliste noter'!A158,\"\")","v":""},{"$f":"IF($C2=1,'Sjekkliste noter'!B158,\"\")","v":""},null,{"$f":"IF($C2=1,'Sjekkliste noter'!H158,\"\")","v":""}]
[{"$f":"+'Sjekkliste noter'!A18","v":2},{"$f":"IF('Sjekkliste noter'!G18<>\"\",1,0)","v":0},0,{"$f":"IF($C3=1,'Sjekkliste noter'!A18,\"\")","v":""},{"$f":"IF($C3=1,'Sjekkliste noter'!B18,\"\")","v":""},null,{"$f":"IF($C3=1,'Sjekkliste noter'!H18,\"\")","v":""}]
[{"$f":"+'Sjekkliste noter'!#REF!","v":{"$error":"#REF!"}},{"$f":"IF('Sjekkliste noter'!#REF!<>\"\",1,0)","v":{"$error":"#REF!"}},{"$error":"#REF!"},{"$f":"IF($C4=1,'Sjekkliste noter'!#REF!,\"\")","v":{"$error":"#REF!"}},{"$f":"IF($C4=1,'Sjekkliste noter'!#REF!,\"\")","v":{"$error":"#REF!"}},null,{"$f":"IF($C4=1,'Sjekkliste noter'!#REF!,\"\")","v":{"$error":"#REF!"}}]
[{"$f":"+'Sjekkliste noter'!#REF!","v":{"$error":"#REF!"}},{"$f":"IF('Sjekkliste noter'!#REF!<>\"\",1,0)","v":{"$error":"#REF!"}},{"$error":"#REF!"},{"$f":"IF($C5=1,'Sjekkliste noter'!#REF!,\"\")","v":{"$error":"#REF!"}},{"$f":"IF($C5=1,'Sjekkliste noter'!#REF!,\"\")","v":{"$error":"#REF!"}},null,{"$f":"IF($C5=1,'Sjekkliste noter'!#REF!,\"\")","v":{"$error":"#REF!"}}]
[{"$f":"+'Sjekkliste noter'!#REF!","v":{"$error":"#REF!"}},{"$f":"IF('Sjekkliste noter'!#REF!<>\"\",1,0)","v":{"$error":"#REF!"}},{"$error":"#REF!"},{"$f":"IF($C6=1,'Sjekkliste noter'!#REF!,\"\")","v":{"$error":"#REF!"}},{"$f":"IF($C6=1,'Sjekkliste noter'!#REF!,\"\")","v":{"$error":"#REF!"}},null,{"$f":"IF($C6=1,'Sjekkliste noter'!#REF!,\"\")","v":{"$error":"#REF!"}}]
[{"$f":"+'Sjekkliste noter'!#REF!","v":{"$error":"#REF!"}},{"$f":"IF('Sjekkliste noter'!#REF!<>\"\",1,0)","v":{"$error":"#REF!"}},{"$error":"#REF!"},{"$f":"IF($C7=1,'Sjekkliste noter'!#REF!,\"\")","v":{"$error":"#REF!"}},{"$f":"IF($C7=1,'Sjekkliste noter'!#REF!,\"\")","v":{"$error":"#REF!"}},null,{"$f":"IF($C7=1,'Sjekkliste noter'!#REF!,\"\")","v":{"$error":"#REF!"}}]
[{"$f":"+'Sjekkliste noter'!#REF!","v":{"$error":"#REF!"}},{"$f":"IF('Sjekkliste noter'!#REF!<>\"\",1,0)","v":{"$error":"#REF!"}},{"$error":"#REF!"},{"$f":"IF($C8=1,'Sjekkliste noter'!#REF!,\"\")","v":{"$error":"#REF!"}},{"$f":"IF($C8=1,'Sjekkliste noter'!#REF!,\"\")","v":{"$error":"#REF!"}},null,{"$f":"IF($C8=1,'Sjekkliste noter'!#REF!,\"\")","v":{"$error":"#REF!"}}]
[{"$f":"+'Sjekkliste noter'!#REF!","v":{"$error":"#REF!"}},{"$f":"IF('Sjekkliste noter'!#REF!<>\"\",1,0)","v":{"$error":"#REF!"}},{"$error":"#REF!"},{"$f":"IF($C9=1,'Sjekkliste noter'!#REF!,\"\")","v":{"$error":"#REF!"}},{"$f":"IF($C9=1,'Sjekkliste noter'!#REF!,\"\")","v":{"$error":"#REF!"}},null,{"$f":"IF($C9=1,'Sjekkliste noter'!#REF!,\"\")","v":{"$error":"#REF!"}}]
[{"$f":"+'Sjekkliste noter'!#REF!","v":{"$error":"#REF!"}},{"$f":"IF('Sjekkliste noter'!#REF!<>\"\",1,0)","v":{"$error":"#REF!"}},{"$error":"#REF!"},{"$f":"IF($C10=1,'Sjekkliste noter'!#REF!,\"\")","v":{"$error":"#REF!"}},{"$f":"IF($C10=1,'Sjekkliste noter'!#REF!,\"\")","v":{"$error":"#REF!"}},null,{"$f":"IF($C10=1,'Sjekkliste noter'!#REF!,\"\")","v":{"$error":"#REF!"}}]
[{"$f":"+'Sjekkliste noter'!#REF!","v":{"$error":"#REF!"}},{"$f":"IF('Sjekkliste noter'!#REF!<>\"\",1,0)","v":{"$error":"#REF!"}},{"$error":"#REF!"},{"$f":"IF($C11=1,'Sjekkliste noter'!#REF!,\"\")","v":{"$error":"#REF!"}},{"$f":"IF($C11=1,'Sjekkliste noter'!#REF!,\"\")","v":{"$error":"#REF!"}},null,{"$f":"IF($C11=1,'Sjekkliste noter'!#REF!,\"\")","v":{"$error":"#REF!"}}]
[{"$f":"+'Sjekkliste noter'!#REF!","v":{"$error":"#REF!"}},{"$f":"IF('Sjekkliste noter'!#REF!<>\"\",1,0)","v":{"$error":"#REF!"}},{"$error":"#REF!"},{"$f":"IF($C12=1,'Sjekkliste noter'!#REF!,\"\")","v":{"$error":"#REF!"}},{"$f":"IF($C12=1,'Sjekkliste noter'!#REF!,\"\")","v":{"$error":"#REF!"}},null,{"$f":"IF($C12=1,'Sjekkliste noter'!#REF!,\"\")","v":{"$error":"#REF!"}}]
[{"$f":"+'Sjekkliste noter'!A21","v":3},{"$f":"IF('Sjekkliste noter'!G21<>\"\",1,0)","v":0},0,{"$f":"IF($C13=1,'Sjekkliste noter'!A21,\"\")","v":""},{"$f":"IF($C13=1,'Sjekkliste noter'!B21,\"\")","v":""},null,{"$f":"IF($C13=1,'Sjekkliste noter'!H21,\"\")","v":""}]
[{"$f":"+'Sjekkliste noter'!#REF!","v":{"$error":"#REF!"}},{"$f":"IF('Sjekkliste noter'!#REF!<>\"\",1,0)","v":{"$error":"#REF!"}},{"$error":"#REF!"},{"$f":"IF($C14=1,'Sjekkliste noter'!#REF!,\"\")","v":{"$error":"#REF!"}},{"$f":"IF($C14=1,'Sjekkliste noter'!#REF!,\"\")","v":{"$error":"#REF!"}},null,{"$f":"IF($C14=1,'Sjekkliste noter'!#REF!,\"\")","v":{"$error":"#REF!"}}]
[{"$f":"+'Sjekkliste noter'!A24","v":4},{"$f":"IF('Sjekkliste noter'!G24<>\"\",1,0)","v":0},0,{"$f":"IF($C15=1,'Sjekkliste noter'!A24,\"\")","v":""},{"$f":"IF($C15=1,'Sjekkliste noter'!B24,\"\")","v":""},null,{"$f":"IF($C15=1,'Sjekkliste noter'!H24,\"\")","v":""}]
[{"$f":"+'Sjekkliste noter'!#REF!","v":{"$error":"#REF!"}},{"$f":"IF('Sjekkliste noter'!#REF!<>\"\",1,0)","v":{"$error":"#REF!"}},{"$error":"#REF!"},{"$f":"IF($C16=1,'Sjekkliste noter'!#REF!,\"\")","v":{"$error":"#REF!"}},{"$f":"IF($C16=1,'Sjekkliste noter'!#REF!,\"\")","v":{"$error":"#REF!"}},null,{"$f":"IF($C16=1,'Sjekkliste noter'!#REF!,\"\")","v":{"$error":"#REF!"}}]
[{"$f":"+'Sjekkliste noter'!A26","v":5},{"$f":"IF('Sjekkliste noter'!G26<>\"\",1,0)","v":0},0,{"$f":"IF($C17=1,'Sjekkliste noter'!A26,\"\")","v":""},{"$f":"IF($C17=1,'Sjekkliste noter'!B26,\"\")","v":""},null,{"$f":"IF($C17=1,'Sjekkliste noter'!H26,\"\")","v":""}]
[{"$f":"+'Sjekkliste noter'!A28","v":6},{"$f":"IF('Sjekkliste noter'!G28<>\"\",1,0)","v":0},0,{"$f":"IF($C18=1,'Sjekkliste noter'!A28,\"\")","v":""},{"$f":"IF($C18=1,'Sjekkliste noter'!B28,\"\")","v":""},null,{"$f":"IF($C18=1,'Sjekkliste noter'!H28,\"\")","v":""}]
[{"$f":"+'Sjekkliste noter'!A30","v":7},{"$f":"IF('Sjekkliste noter'!G30<>\"\",1,0)","v":0},0,{"$f":"IF($C19=1,'Sjekkliste noter'!A30,\"\")","v":""},{"$f":"IF($C19=1,'Sjekkliste noter'!B30,\"\")","v":""},null,{"$f":"IF($C19=1,'Sjekkliste noter'!H30,\"\")","v":""}]
[{"$f":"+'Sjekkliste noter'!A31","v":8},{"$f":"IF('Sjekkliste noter'!G31<>\"\",1,0)","v":0},0,{"$f":"IF($C20=1,'Sjekkliste noter'!A31,\"\")","v":""},{"$f":"IF($C20=1,'Sjekkliste noter'!B31,\"\")","v":""},null,{"$f":"IF($C20=1,'Sjekkliste noter'!H31,\"\")","v":""}]
[{"$f":"+'Sjekkliste noter'!A32","v":9},{"$f":"IF('Sjekkliste noter'!G32<>\"\",1,0)","v":0},0,{"$f":"IF($C21=1,'Sjekkliste noter'!A32,\"\")","v":""},{"$f":"IF($C21=1,'Sjekkliste noter'!B32,\"\")","v":""},null,{"$f":"IF($C21=1,'Sjekkliste noter'!H32,\"\")","v":""}]
[{"$f":"+'Sjekkliste noter'!A33","v":10},{"$f":"IF('Sjekkliste noter'!G33<>\"\",1,0)","v":0},0,{"$f":"IF($C22=1,'Sjekkliste noter'!A33,\"\")","v":""},{"$f":"IF($C22=1,'Sjekkliste noter'!B33,\"\")","v":""},null,{"$f":"IF($C22=1,'Sjekkliste noter'!H33,\"\")","v":""}]
[{"$f":"+'Sjekkliste noter'!A34","v":11},{"$f":"IF('Sjekkliste noter'!G34<>\"\",1,0)","v":0},0,{"$f":"IF($C23=1,'Sjekkliste noter'!A34,\"\")","v":""},{"$f":"IF($C23=1,'Sjekkliste noter'!B34,\"\")","v":""},null,{"$f":"IF($C23=1,'Sjekkliste noter'!H34,\"\")","v":""}]
[{"$f":"+'Sjekkliste noter'!A35","v":12},{"$f":"IF('Sjekkliste noter'!G35<>\"\",1,0)","v":0},0,{"$f":"IF($C24=1,'Sjekkliste noter'!A35,\"\")","v":""},{"$f":"IF($C24=1,'Sjekkliste noter'!B35,\"\")","v":""},null,{"$f":"IF($C24=1,'Sjekkliste noter'!H35,\"\")","v":""}]
[{"$f":"+'Sjekkliste noter'!A38","v":13},{"$f":"IF('Sjekkliste noter'!G38<>\"\",1,0)","v":0},0,{"$f":"IF($C25=1,'Sjekkliste noter'!A38,\"\")","v":""},{"$f":"IF($C25=1,'Sjekkliste noter'!B38,\"\")","v":""},null,{"$f":"IF($C25=1,'Sjekkliste noter'!H38,\"\")","v":""}]
[{"$f":"+'Sjekkliste noter'!A39","v":14},{"$f":"IF('Sjekkliste noter'!G39<>\"\",1,0)","v":0},0,{"$f":"IF($C26=1,'Sjekkliste noter'!A39,\"\")","v":""},{"$f":"IF($C26=1,'Sjekkliste noter'!B39,\"\")","v":""},null,{"$f":"IF($C26=1,'Sjekkliste noter'!H39,\"\")","v":""}]
[{"$f":"+'Sjekkliste noter'!A40","v":15},{"$f":"IF('Sjekkliste noter'!G40<>\"\",1,0)","v":0},0,{"$f":"IF($C27=1,'Sjekkliste noter'!A40,\"\")","v":""},{"$f":"IF($C27=1,'Sjekkliste noter'!B40,\"\")","v":""},null,{"$f":"IF($C27=1,'Sjekkliste noter'!H40,\"\")","v":""}]
[{"$f":"+'Sjekkliste noter'!A41","v":16},{"$f":"IF('Sjekkliste noter'!G41<>\"\",1,0)","v":0},0,{"$f":"IF($C28=1,'Sjekkliste noter'!A41,\"\")","v":""},{"$f":"IF($C28=1,'Sjekkliste noter'!B41,\"\")","v":""},null,{"$f":"IF($C28=1,'Sjekkliste noter'!H41,\"\")","v":""}]
[{"$f":"+'Sjekkliste noter'!A42","v":17},{"$f":"IF('Sjekkliste noter'!G42<>\"\",1,0)","v":0},0,{"$f":"IF($C29=1,'Sjekkliste noter'!A42,\"\")","v":""},{"$f":"IF($C29=1,'Sjekkliste noter'!B42,\"\")","v":""},null,{"$f":"IF($C29=1,'Sjekkliste noter'!H42,\"\")","v":""}]
[{"$f":"+'Sjekkliste noter'!#REF!","v":{"$error":"#REF!"}},{"$f":"IF('Sjekkliste noter'!#REF!<>\"\",1,0)","v":{"$error":"#REF!"}},{"$error":"#REF!"},{"$f":"IF($C30=1,'Sjekkliste noter'!#REF!,\"\")","v":{"$error":"#REF!"}},{"$f":"IF($C30=1,'Sjekkliste noter'!#REF!,\"\")","v":{"$error":"#REF!"}},null,{"$f":"IF($C30=1,'Sjekkliste noter'!#REF!,\"\")","v":{"$error":"#REF!"}}]
[{"$f":"+'Sjekkliste noter'!#REF!","v":{"$error":"#REF!"}},{"$f":"IF('Sjekkliste noter'!#REF!<>\"\",1,0)","v":{"$error":"#REF!"}},{"$error":"#REF!"},{"$f":"IF($C31=1,'Sjekkliste noter'!#REF!,\"\")","v":{"$error":"#REF!"}},{"$f":"IF($C31=1,'Sjekkliste noter'!#REF!,\"\")","v":{"$error":"#REF!"}},null,{"$f":"IF($C31=1,'Sjekkliste noter'!#REF!,\"\")","v":{"$error":"#REF!"}}]
[{"$f":"+'Sjekkliste noter'!#REF!","v":{"$error":"#REF!"}},{"$f":"IF('Sjekkliste noter'!#REF!<>\"\",1,0)","v":{"$error":"#REF!"}},{"$error":"#REF!"},{"$f":"IF($C32=1,'Sjekkliste noter'!#REF!,\"\")","v":{"$error":"#REF!"}},{"$f":"IF($C32=1,'Sjekkliste noter'!#REF!,\"\")","v":{"$error":"#REF!"}},null,{"$f":"IF($C32=1,'Sjekkliste noter'!#REF!,\"\")","v":{"$error":"#REF!"}}]
[{"$f":"+'Sjekkliste noter'!A44","v":18},{"$f":"IF('Sjekkliste noter'!G44<>\"\",1,0)","v":0},0,{"$f":"IF($C33=1,'Sjekkliste noter'!A44,\"\")","v":""},{"$f":"IF($C33=1,'Sjekkliste noter'!B44,\"\")","v":""},null,{"$f":"IF($C33=1,'Sjekkliste noter'!H44,\"\")","v":""}]
[{"$f":"+'Sjekkliste noter'!A46","v":19},{"$f":"IF('Sjekkliste noter'!G46<>\"\",1,0)","v":0},{"$f":"SUM(B34:B34)","v":0},{"$f":"IF($C34=1,'Sjekkliste noter'!A46,\"\")","v":""},{"$f":"IF($C34=1,'Sjekkliste noter'!B46,\"\")","v":""},null,{"$f":"IF($C34=1,'Sjekkliste noter'!H46,\"\")","v":""}]
[{"$f":"+'Sjekkliste noter'!A47","v":20},{"$f":"IF('Sjekkliste noter'!G47<>\"\",1,0)","v":0},0,{"$f":"IF($C35=1,'Sjekkliste noter'!A47,\"\")","v":""},{"$f":"IF($C35=1,'Sjekkliste noter'!B47,\"\")","v":""},null,{"$f":"IF($C35=1,'Sjekkliste noter'!H47,\"\")","v":""}]
[{"$f":"+'Sjekkliste noter'!A48","v":21},{"$f":"IF('Sjekkliste noter'!G48<>\"\",1,0)","v":0},0,{"$f":"IF($C36=1,'Sjekkliste noter'!A48,\"\")","v":""},{"$f":"IF($C36=1,'Sjekkliste noter'!B48,\"\")","v":""},null,{"$f":"IF($C36=1,'Sjekkliste noter'!H48,\"\")","v":""}]
[{"$f":"+'Sjekkliste noter'!#REF!","v":{"$error":"#REF!"}},{"$f":"IF('Sjekkliste noter'!#REF!<>\"\",1,0)","v":{"$error":"#REF!"}},{"$error":"#REF!"},{"$f":"IF($C37=1,'Sjekkliste noter'!#REF!,\"\")","v":{"$error":"#REF!"}},{"$f":"IF($C37=1,'Sjekkliste noter'!#REF!,\"\")","v":{"$error":"#REF!"}},null,{"$f":"IF($C37=1,'Sjekkliste noter'!#REF!,\"\")","v":{"$error":"#REF!"}}]
[{"$f":"+'Sjekkliste noter'!#REF!","v":{"$error":"#REF!"}},{"$f":"IF('Sjekkliste noter'!#REF!<>\"\",1,0)","v":{"$error":"#REF!"}},{"$error":"#REF!"},{"$f":"IF($C38=1,'Sjekkliste noter'!#REF!,\"\")","v":{"$error":"#REF!"}},{"$f":"IF($C38=1,'Sjekkliste noter'!#REF!,\"\")","v":{"$error":"#REF!"}},null,{"$f":"IF($C38=1,'Sjekkliste noter'!#REF!,\"\")","v":{"$error":"#REF!"}}]
[{"$f":"+'Sjekkliste noter'!#REF!","v":{"$error":"#REF!"}},{"$f":"IF('Sjekkliste noter'!#REF!<>\"\",1,0)","v":{"$error":"#REF!"}},{"$error":"#REF!"},{"$f":"IF($C39=1,'Sjekkliste noter'!#REF!,\"\")","v":{"$error":"#REF!"}},{"$f":"IF($C39=1,'Sjekkliste noter'!#REF!,\"\")","v":{"$error":"#REF!"}},null,{"$f":"IF($C39=1,'Sjekkliste noter'!#REF!,\"\")","v":{"$error":"#REF!"}}]
[{"$f":"+'Sjekkliste noter'!A50","v":22},{"$f":"IF('Sjekkliste noter'!G50<>\"\",1,0)","v":0},0,{"$f":"IF($C40=1,'Sjekkliste noter'!A50,\"\")","v":""},{"$f":"IF($C40=1,'Sjekkliste noter'!B50,\"\")","v":""},null,{"$f":"IF($C40=1,'Sjekkliste noter'!H50,\"\")","v":""}]
[{"$f":"+'Sjekkliste noter'!A54","v":23},{"$f":"IF('Sjekkliste noter'!G54<>\"\",1,0)","v":0},0,{"$f":"IF($C41=1,'Sjekkliste noter'!A54,\"\")","v":""},{"$f":"IF($C41=1,'Sjekkliste noter'!B54,\"\")","v":""},null,{"$f":"IF($C41=1,'Sjekkliste noter'!H54,\"\")","v":""}]
[{"$f":"+'Sjekkliste noter'!A55","v":24},{"$f":"IF('Sjekkliste noter'!G55<>\"\",1,0)","v":0},0,{"$f":"IF($C42=1,'Sjekkliste noter'!A55,\"\")","v":""},{"$f":"IF($C42=1,'Sjekkliste noter'!B55,\"\")","v":""},null,{"$f":"IF($C42=1,'Sjekkliste noter'!H55,\"\")","v":""}]
[{"$f":"+'Sjekkliste noter'!A56","v":25},{"$f":"IF('Sjekkliste noter'!G56<>\"\",1,0)","v":0},0,{"$f":"IF($C43=1,'Sjekkliste noter'!A56,\"\")","v":""},{"$f":"IF($C43=1,'Sjekkliste noter'!B56,\"\")","v":""},null,{"$f":"IF($C43=1,'Sjekkliste noter'!H56,\"\")","v":""}]
[{"$f":"+'Sjekkliste noter'!A58","v":26},{"$f":"IF('Sjekkliste noter'!G58<>\"\",1,0)","v":0},0,{"$f":"IF($C44=1,'Sjekkliste noter'!A58,\"\")","v":""},{"$f":"IF($C44=1,'Sjekkliste noter'!B58,\"\")","v":""},null,{"$f":"IF($C44=1,'Sjekkliste noter'!H58,\"\")","v":""}]
[{"$f":"+'Sjekkliste noter'!#REF!","v":{"$error":"#REF!"}},{"$f":"IF('Sjekkliste noter'!#REF!<>\"\",1,0)","v":{"$error":"#REF!"}},{"$error":"#REF!"},{"$f":"IF($C45=1,'Sjekkliste noter'!#REF!,\"\")","v":{"$error":"#REF!"}},{"$f":"IF($C45=1,'Sjekkliste noter'!#REF!,\"\")","v":{"$error":"#REF!"}},null,{"$f":"IF($C45=1,'Sjekkliste noter'!#REF!,\"\")","v":{"$error":"#REF!"}}]
[{"$f":"+'Sjekkliste noter'!#REF!","v":{"$error":"#REF!"}},{"$f":"IF('Sjekkliste noter'!#REF!<>\"\",1,0)","v":{"$error":"#REF!"}},{"$error":"#REF!"},{"$f":"IF($C46=1,'Sjekkliste noter'!#REF!,\"\")","v":{"$error":"#REF!"}},{"$f":"IF($C46=1,'Sjekkliste noter'!#REF!,\"\")","v":{"$error":"#REF!"}},null,{"$f":"IF($C46=1,'Sjekkliste noter'!#REF!,\"\")","v":{"$error":"#REF!"}}]
[{"$f":"+'Sjekkliste noter'!#REF!","v":{"$error":"#REF!"}},{"$f":"IF('Sjekkliste noter'!#REF!<>\"\",1,0)","v":{"$error":"#REF!"}},{"$error":"#REF!"},{"$f":"IF($C47=1,'Sjekkliste noter'!#REF!,\"\")","v":{"$error":"#REF!"}},{"$f":"IF($C47=1,'Sjekkliste noter'!#REF!,\"\")","v":{"$error":"#REF!"}},null,{"$f":"IF($C47=1,'Sjekkliste noter'!#REF!,\"\")","v":{"$error":"#REF!"}}]
[{"$f":"+'Sjekkliste noter'!A62","v":27},{"$f":"IF('Sjekkliste noter'!G62<>\"\",1,0)","v":0},0,{"$f":"IF($C48=1,'Sjekkliste noter'!A62,\"\")","v":""},{"$f":"IF($C48=1,'Sjekkliste noter'!B62,\"\")","v":""},null,{"$f":"IF($C48=1,'Sjekkliste noter'!H62,\"\")","v":""}]
[{"$f":"+'Sjekkliste noter'!A63","v":28},{"$f":"IF('Sjekkliste noter'!G63<>\"\",1,0)","v":0},0,{"$f":"IF($C49=1,'Sjekkliste noter'!A63,\"\")","v":""},{"$f":"IF($C49=1,'Sjekkliste noter'!B63,\"\")","v":""},null,{"$f":"IF($C49=1,'Sjekkliste noter'!H63,\"\")","v":""}]
[{"$f":"+'Sjekkliste noter'!A64","v":29},{"$f":"IF('Sjekkliste noter'!G64<>\"\",1,0)","v":0},0,{"$f":"IF($C50=1,'Sjekkliste noter'!A64,\"\")","v":""},{"$f":"IF($C50=1,'Sjekkliste noter'!B64,\"\")","v":""},null,{"$f":"IF($C50=1,'Sjekkliste noter'!H64,\"\")","v":""}]
[{"$f":"+'Sjekkliste noter'!#REF!","v":{"$error":"#REF!"}},{"$f":"IF('Sjekkliste noter'!#REF!<>\"\",1,0)","v":{"$error":"#REF!"}},{"$error":"#REF!"},{"$f":"IF($C51=1,'Sjekkliste noter'!#REF!,\"\")","v":{"$error":"#REF!"}},{"$f":"IF($C51=1,'Sjekkliste noter'!#REF!,\"\")","v":{"$error":"#REF!"}},null,{"$f":"IF($C51=1,'Sjekkliste noter'!#REF!,\"\")","v":{"$error":"#REF!"}}]
[{"$f":"+'Sjekkliste noter'!#REF!","v":{"$error":"#REF!"}},{"$f":"IF('Sjekkliste noter'!#REF!<>\"\",1,0)","v":{"$error":"#REF!"}},{"$error":"#REF!"},{"$f":"IF($C52=1,'Sjekkliste noter'!#REF!,\"\")","v":{"$error":"#REF!"}},{"$f":"IF($C52=1,'Sjekkliste noter'!#REF!,\"\")","v":{"$error":"#REF!"}},null,{"$f":"IF($C52=1,'Sjekkliste noter'!#REF!,\"\")","v":{"$error":"#REF!"}}]
[{"$f":"+'Sjekkliste noter'!A68","v":30},{"$f":"IF('Sjekkliste noter'!G68<>\"\",1,0)","v":0},0,{"$f":"IF($C53=1,'Sjekkliste noter'!A68,\"\")","v":""},{"$f":"IF($C53=1,'Sjekkliste noter'!B68,\"\")","v":""},null,{"$f":"IF($C53=1,'Sjekkliste noter'!H68,\"\")","v":""}]
[{"$f":"+'Sjekkliste noter'!A69","v":31},{"$f":"IF('Sjekkliste noter'!G69<>\"\",1,0)","v":0},0,{"$f":"IF($C54=1,'Sjekkliste noter'!A69,\"\")","v":""},{"$f":"IF($C54=1,'Sjekkliste noter'!B69,\"\")","v":""},null,{"$f":"IF($C54=1,'Sjekkliste noter'!H69,\"\")","v":""}]
[{"$f":"+'Sjekkliste noter'!A70","v":32},{"$f":"IF('Sjekkliste noter'!G70<>\"\",1,0)","v":0},0,{"$f":"IF($C55=1,'Sjekkliste noter'!A70,\"\")","v":""},{"$f":"IF($C55=1,'Sjekkliste noter'!B70,\"\")","v":""},null,{"$f":"IF($C55=1,'Sjekkliste noter'!H70,\"\")","v":""}]
[{"$f":"+'Sjekkliste noter'!#REF!","v":{"$error":"#REF!"}},{"$f":"IF('Sjekkliste noter'!#REF!<>\"\",1,0)","v":{"$error":"#REF!"}},{"$error":"#REF!"},{"$f":"IF($C56=1,'Sjekkliste noter'!#REF!,\"\")","v":{"$error":"#REF!"}},{"$f":"IF($C56=1,'Sjekkliste noter'!#REF!,\"\")","v":{"$error":"#REF!"}},null,{"$f":"IF($C56=1,'Sjekkliste noter'!#REF!,\"\")","v":{"$error":"#REF!"}}]
[{"$f":"+'Sjekkliste noter'!#REF!","v":{"$error":"#REF!"}},{"$f":"IF('Sjekkliste noter'!#REF!<>\"\",1,0)","v":{"$error":"#REF!"}},{"$error":"#REF!"},{"$f":"IF($C57=1,'Sjekkliste noter'!#REF!,\"\")","v":{"$error":"#REF!"}},{"$f":"IF($C57=1,'Sjekkliste noter'!#REF!,\"\")","v":{"$error":"#REF!"}},null,{"$f":"IF($C57=1,'Sjekkliste noter'!#REF!,\"\")","v":{"$error":"#REF!"}}]
[{"$f":"+'Sjekkliste noter'!#REF!","v":{"$error":"#REF!"}},{"$f":"IF('Sjekkliste noter'!#REF!<>\"\",1,0)","v":{"$error":"#REF!"}},{"$error":"#REF!"},{"$f":"IF($C58=1,'Sjekkliste noter'!#REF!,\"\")","v":{"$error":"#REF!"}},{"$f":"IF($C58=1,'Sjekkliste noter'!#REF!,\"\")","v":{"$error":"#REF!"}},null,{"$f":"IF($C58=1,'Sjekkliste noter'!#REF!,\"\")","v":{"$error":"#REF!"}}]
[{"$f":"+'Sjekkliste noter'!#REF!","v":{"$error":"#REF!"}},{"$f":"IF('Sjekkliste noter'!#REF!<>\"\",1,0)","v":{"$error":"#REF!"}},{"$error":"#REF!"},{"$f":"IF($C59=1,'Sjekkliste noter'!#REF!,\"\")","v":{"$error":"#REF!"}},{"$f":"IF($C59=1,'Sjekkliste noter'!#REF!,\"\")","v":{"$error":"#REF!"}},null,{"$f":"IF($C59=1,'Sjekkliste noter'!#REF!,\"\")","v":{"$error":"#REF!"}}]
[{"$f":"+'Sjekkliste noter'!#REF!","v":{"$error":"#REF!"}},{"$f":"IF('Sjekkliste noter'!#REF!<>\"\",1,0)","v":{"$error":"#REF!"}},{"$error":"#REF!"},{"$f":"IF($C60=1,'Sjekkliste noter'!#REF!,\"\")","v":{"$error":"#REF!"}},{"$f":"IF($C60=1,'Sjekkliste noter'!#REF!,\"\")","v":{"$error":"#REF!"}},null,{"$f":"IF($C60=1,'Sjekkliste noter'!#REF!,\"\")","v":{"$error":"#REF!"}}]
[{"$f":"+'Sjekkliste noter'!#REF!","v":{"$error":"#REF!"}},{"$f":"IF('Sjekkliste noter'!#REF!<>\"\",1,0)","v":{"$error":"#REF!"}},{"$error":"#REF!"},{"$f":"IF($C61=1,'Sjekkliste noter'!#REF!,\"\")","v":{"$error":"#REF!"}},{"$f":"IF($C61=1,'Sjekkliste noter'!#REF!,\"\")","v":{"$error":"#REF!"}},null,{"$f":"IF($C61=1,'Sjekkliste noter'!#REF!,\"\")","v":{"$error":"#REF!"}}]
[{"$f":"+'Sjekkliste noter'!#REF!","v":{"$error":"#REF!"}},{"$f":"IF('Sjekkliste noter'!#REF!<>\"\",1,0)","v":{"$error":"#REF!"}},{"$error":"#REF!"},{"$f":"IF($C62=1,'Sjekkliste noter'!#REF!,\"\")","v":{"$error":"#REF!"}},{"$f":"IF($C62=1,'Sjekkliste noter'!#REF!,\"\")","v":{"$error":"#REF!"}},null,{"$f":"IF($C62=1,'Sjekkliste noter'!#REF!,\"\")","v":{"$error":"#REF!"}}]
[{"$f":"+'Sjekkliste noter'!#REF!","v":{"$error":"#REF!"}},{"$f":"IF('Sjekkliste noter'!#REF!<>\"\",1,0)","v":{"$error":"#REF!"}},{"$error":"#REF!"},{"$f":"IF($C63=1,'Sjekkliste noter'!#REF!,\"\")","v":{"$error":"#REF!"}},{"$f":"IF($C63=1,'Sjekkliste noter'!#REF!,\"\")","v":{"$error":"#REF!"}},null,{"$f":"IF($C63=1,'Sjekkliste noter'!#REF!,\"\")","v":{"$error":"#REF!"}}]
[{"$f":"+'Sjekkliste noter'!A72","v":33},{"$f":"IF('Sjekkliste noter'!G72<>\"\",1,0)","v":0},0,{"$f":"IF($C64=1,'Sjekkliste noter'!A72,\"\")","v":""},{"$f":"IF($C64=1,'Sjekkliste noter'!B72,\"\")","v":""},null,{"$f":"IF($C64=1,'Sjekkliste noter'!H72,\"\")","v":""}]
[{"$f":"+'Sjekkliste noter'!A74","v":34},{"$f":"IF('Sjekkliste noter'!G74<>\"\",1,0)","v":0},0,{"$f":"IF($C65=1,'Sjekkliste noter'!A74,\"\")","v":""},{"$f":"IF($C65=1,'Sjekkliste noter'!B74,\"\")","v":""},null,{"$f":"IF($C65=1,'Sjekkliste noter'!H74,\"\")","v":""}]
[{"$f":"+'Sjekkliste noter'!#REF!","v":{"$error":"#REF!"}},{"$f":"IF('Sjekkliste noter'!#REF!<>\"\",1,0)","v":{"$error":"#REF!"}},{"$f":"SUM(B66:B66)","v":{"$error":"#REF!"}},{"$f":"IF($C66=1,'Sjekkliste noter'!#REF!,\"\")","v":{"$error":"#REF!"}},{"$f":"IF($C66=1,'Sjekkliste noter'!#REF!,\"\")","v":{"$error":"#REF!"}},null,{"$f":"IF($C66=1,'Sjekkliste noter'!#REF!,\"\")","v":{"$error":"#REF!"}}]
[{"$f":"+'Sjekkliste noter'!A77","v":35},{"$f":"IF('Sjekkliste noter'!G77<>\"\",1,0)","v":0},0,{"$f":"IF($C67=1,'Sjekkliste noter'!A77,\"\")","v":""},{"$f":"IF($C67=1,'Sjekkliste noter'!B77,\"\")","v":""},null,{"$f":"IF($C67=1,'Sjekkliste noter'!H77,\"\")","v":""}]
[{"$f":"+'Sjekkliste noter'!A78","v":36},{"$f":"IF('Sjekkliste noter'!G78<>\"\",1,0)","v":0},0,{"$f":"IF($C68=1,'Sjekkliste noter'!A78,\"\")","v":""},{"$f":"IF($C68=1,'Sjekkliste noter'!B78,\"\")","v":""},null,{"$f":"IF($C68=1,'Sjekkliste noter'!H78,\"\")","v":""}]
[{"$f":"+'Sjekkliste noter'!#REF!","v":{"$error":"#REF!"}},{"$f":"IF('Sjekkliste noter'!#REF!<>\"\",1,0)","v":{"$error":"#REF!"}},{"$error":"#REF!"},{"$f":"IF($C69=1,'Sjekkliste noter'!#REF!,\"\")","v":{"$error":"#REF!"}},{"$f":"IF($C69=1,'Sjekkliste noter'!#REF!,\"\")","v":{"$error":"#REF!"}},null,{"$f":"IF($C69=1,'Sjekkliste noter'!#REF!,\"\")","v":{"$error":"#REF!"}}]
[{"$f":"+'Sjekkliste noter'!A80","v":37},{"$f":"IF('Sjekkliste noter'!G80<>\"\",1,0)","v":0},0,{"$f":"IF($C70=1,'Sjekkliste noter'!A80,\"\")","v":""},{"$f":"IF($C70=1,'Sjekkliste noter'!B80,\"\")","v":""},null,{"$f":"IF($C70=1,'Sjekkliste noter'!H80,\"\")","v":""}]
[{"$f":"+'Sjekkliste noter'!A81","v":38},{"$f":"IF('Sjekkliste noter'!G81<>\"\",1,0)","v":0},0,{"$f":"IF($C71=1,'Sjekkliste noter'!A81,\"\")","v":""},{"$f":"IF($C71=1,'Sjekkliste noter'!B81,\"\")","v":""},null,{"$f":"IF($C71=1,'Sjekkliste noter'!H81,\"\")","v":""}]
[{"$f":"+'Sjekkliste noter'!A82","v":39},{"$f":"IF('Sjekkliste noter'!G82<>\"\",1,0)","v":0},0,{"$f":"IF($C72=1,'Sjekkliste noter'!A82,\"\")","v":""},{"$f":"IF($C72=1,'Sjekkliste noter'!B82,\"\")","v":""},null,{"$f":"IF($C72=1,'Sjekkliste noter'!H82,\"\")","v":""}]
[{"$f":"+'Sjekkliste noter'!#REF!","v":{"$error":"#REF!"}},{"$f":"IF('Sjekkliste noter'!#REF!<>\"\",1,0)","v":{"$error":"#REF!"}},{"$error":"#REF!"},{"$f":"IF($C73=1,'Sjekkliste noter'!#REF!,\"\")","v":{"$error":"#REF!"}},{"$f":"IF($C73=1,'Sjekkliste noter'!#REF!,\"\")","v":{"$error":"#REF!"}},null,{"$f":"IF($C73=1,'Sjekkliste noter'!#REF!,\"\")","v":{"$error":"#REF!"}}]
[{"$f":"+'Sjekkliste noter'!A86","v":40},{"$f":"IF('Sjekkliste noter'!G86<>\"\",1,0)","v":0},0,{"$f":"IF($C74=1,'Sjekkliste noter'!A86,\"\")","v":""},{"$f":"IF($C74=1,'Sjekkliste noter'!B86,\"\")","v":""},null,{"$f":"IF($C74=1,'Sjekkliste noter'!H86,\"\")","v":""}]
[{"$f":"+'Sjekkliste noter'!A89","v":41},{"$f":"IF('Sjekkliste noter'!G89<>\"\",1,0)","v":0},0,{"$f":"IF($C75=1,'Sjekkliste noter'!A89,\"\")","v":""},{"$f":"IF($C75=1,'Sjekkliste noter'!B89,\"\")","v":""},null,{"$f":"IF($C75=1,'Sjekkliste noter'!H89,\"\")","v":""}]
[{"$f":"+'Sjekkliste noter'!A92","v":42},{"$f":"IF('Sjekkliste noter'!G92<>\"\",1,0)","v":0},0,{"$f":"IF($C76=1,'Sjekkliste noter'!A92,\"\")","v":""},{"$f":"IF($C76=1,'Sjekkliste noter'!B92,\"\")","v":""},null,{"$f":"IF($C76=1,'Sjekkliste noter'!H92,\"\")","v":""}]
[{"$f":"+'Sjekkliste noter'!A93","v":43},{"$f":"IF('Sjekkliste noter'!G93<>\"\",1,0)","v":0},0,{"$f":"IF($C77=1,'Sjekkliste noter'!A93,\"\")","v":""},{"$f":"IF($C77=1,'Sjekkliste noter'!B93,\"\")","v":""},null,{"$f":"IF($C77=1,'Sjekkliste noter'!H93,\"\")","v":""}]
[{"$f":"+'Sjekkliste noter'!A94","v":44},{"$f":"IF('Sjekkliste noter'!G94<>\"\",1,0)","v":0},0,{"$f":"IF($C78=1,'Sjekkliste noter'!A94,\"\")","v":""},{"$f":"IF($C78=1,'Sjekkliste noter'!B94,\"\")","v":""},null,{"$f":"IF($C78=1,'Sjekkliste noter'!H94,\"\")","v":""}]
[{"$f":"+'Sjekkliste noter'!A96","v":45},{"$f":"IF('Sjekkliste noter'!G96<>\"\",1,0)","v":0},0,{"$f":"IF($C79=1,'Sjekkliste noter'!A96,\"\")","v":""},{"$f":"IF($C79=1,'Sjekkliste noter'!B96,\"\")","v":""},null,{"$f":"IF($C79=1,'Sjekkliste noter'!H96,\"\")","v":""}]
[{"$f":"+'Sjekkliste noter'!A97","v":46},{"$f":"IF('Sjekkliste noter'!G97<>\"\",1,0)","v":0},0,{"$f":"IF($C80=1,'Sjekkliste noter'!A97,\"\")","v":""},{"$f":"IF($C80=1,'Sjekkliste noter'!B97,\"\")","v":""},null,{"$f":"IF($C80=1,'Sjekkliste noter'!H97,\"\")","v":""}]
[{"$f":"+'Sjekkliste noter'!#REF!","v":{"$error":"#REF!"}},{"$f":"IF('Sjekkliste noter'!#REF!<>\"\",1,0)","v":{"$error":"#REF!"}},{"$error":"#REF!"},{"$f":"IF($C81=1,'Sjekkliste noter'!#REF!,\"\")","v":{"$error":"#REF!"}},{"$f":"IF($C81=1,'Sjekkliste noter'!#REF!,\"\")","v":{"$error":"#REF!"}},null,{"$f":"IF($C81=1,'Sjekkliste noter'!#REF!,\"\")","v":{"$error":"#REF!"}}]
[{"$f":"+'Sjekkliste noter'!A101","v":47},{"$f":"IF('Sjekkliste noter'!G101<>\"\",1,0)","v":0},0,{"$f":"IF($C82=1,'Sjekkliste noter'!A101,\"\")","v":""},{"$f":"IF($C82=1,'Sjekkliste noter'!B101,\"\")","v":""},null,{"$f":"IF($C82=1,'Sjekkliste noter'!H101,\"\")","v":""}]
[{"$f":"+'Sjekkliste noter'!A102","v":48},{"$f":"IF('Sjekkliste noter'!G102<>\"\",1,0)","v":0},0,{"$f":"IF($C83=1,'Sjekkliste noter'!A102,\"\")","v":""},{"$f":"IF($C83=1,'Sjekkliste noter'!B102,\"\")","v":""},null,{"$f":"IF($C83=1,'Sjekkliste noter'!H102,\"\")","v":""}]
[{"$f":"+'Sjekkliste noter'!A103","v":49},{"$f":"IF('Sjekkliste noter'!G103<>\"\",1,0)","v":0},0,{"$f":"IF($C84=1,'Sjekkliste noter'!A103,\"\")","v":""},{"$f":"IF($C84=1,'Sjekkliste noter'!B103,\"\")","v":""},null,{"$f":"IF($C84=1,'Sjekkliste noter'!H103,\"\")","v":""}]
[{"$f":"+'Sjekkliste noter'!A104","v":50},{"$f":"IF('Sjekkliste noter'!G104<>\"\",1,0)","v":0},0,{"$f":"IF($C85=1,'Sjekkliste noter'!A104,\"\")","v":""},{"$f":"IF($C85=1,'Sjekkliste noter'!B104,\"\")","v":""},null,{"$f":"IF($C85=1,'Sjekkliste noter'!H104,\"\")","v":""}]
[{"$f":"+'Sjekkliste noter'!#REF!","v":{"$error":"#REF!"}},{"$f":"IF('Sjekkliste noter'!#REF!<>\"\",1,0)","v":{"$error":"#REF!"}},{"$error":"#REF!"},{"$f":"IF($C86=1,'Sjekkliste noter'!#REF!,\"\")","v":{"$error":"#REF!"}},{"$f":"IF($C86=1,'Sjekkliste noter'!#REF!,\"\")","v":{"$error":"#REF!"}},null,{"$f":"IF($C86=1,'Sjekkliste noter'!#REF!,\"\")","v":{"$error":"#REF!"}}]
[{"$f":"+'Sjekkliste noter'!#REF!","v":{"$error":"#REF!"}},{"$f":"IF('Sjekkliste noter'!#REF!<>\"\",1,0)","v":{"$error":"#REF!"}},{"$error":"#REF!"},{"$f":"IF($C87=1,'Sjekkliste noter'!#REF!,\"\")","v":{"$error":"#REF!"}},{"$f":"IF($C87=1,'Sjekkliste noter'!#REF!,\"\")","v":{"$error":"#REF!"}},null,{"$f":"IF($C87=1,'Sjekkliste noter'!#REF!,\"\")","v":{"$error":"#REF!"}}]
[{"$f":"+'Sjekkliste noter'!#REF!","v":{"$error":"#REF!"}},{"$f":"IF('Sjekkliste noter'!#REF!<>\"\",1,0)","v":{"$error":"#REF!"}},{"$error":"#REF!"},{"$f":"IF($C88=1,'Sjekkliste noter'!#REF!,\"\")","v":{"$error":"#REF!"}},{"$f":"IF($C88=1,'Sjekkliste noter'!#REF!,\"\")","v":{"$error":"#REF!"}},null,{"$f":"IF($C88=1,'Sjekkliste noter'!#REF!,\"\")","v":{"$error":"#REF!"}}]
[{"$f":"+'Sjekkliste noter'!#REF!","v":{"$error":"#REF!"}},{"$f":"IF('Sjekkliste noter'!#REF!<>\"\",1,0)","v":{"$error":"#REF!"}},{"$error":"#REF!"},{"$f":"IF($C89=1,'Sjekkliste noter'!#REF!,\"\")","v":{"$error":"#REF!"}},{"$f":"IF($C89=1,'Sjekkliste noter'!#REF!,\"\")","v":{"$error":"#REF!"}},null,{"$f":"IF($C89=1,'Sjekkliste noter'!#REF!,\"\")","v":{"$error":"#REF!"}}]
[{"$f":"+'Sjekkliste noter'!#REF!","v":{"$error":"#REF!"}},{"$f":"IF('Sjekkliste noter'!#REF!<>\"\",1,0)","v":{"$error":"#REF!"}},{"$error":"#REF!"},{"$f":"IF($C90=1,'Sjekkliste noter'!#REF!,\"\")","v":{"$error":"#REF!"}},{"$f":"IF($C90=1,'Sjekkliste noter'!#REF!,\"\")","v":{"$error":"#REF!"}},null,{"$f":"IF($C90=1,'Sjekkliste noter'!#REF!,\"\")","v":{"$error":"#REF!"}}]
[{"$f":"+'Sjekkliste noter'!#REF!","v":{"$error":"#REF!"}},{"$f":"IF('Sjekkliste noter'!#REF!<>\"\",1,0)","v":{"$error":"#REF!"}},{"$error":"#REF!"},{"$f":"IF($C91=1,'Sjekkliste noter'!#REF!,\"\")","v":{"$error":"#REF!"}},{"$f":"IF($C91=1,'Sjekkliste noter'!#REF!,\"\")","v":{"$error":"#REF!"}},null,{"$f":"IF($C91=1,'Sjekkliste noter'!#REF!,\"\")","v":{"$error":"#REF!"}}]
[{"$f":"+'Sjekkliste noter'!#REF!","v":{"$error":"#REF!"}},{"$f":"IF('Sjekkliste noter'!#REF!<>\"\",1,0)","v":{"$error":"#REF!"}},{"$error":"#REF!"},{"$f":"IF($C92=1,'Sjekkliste noter'!#REF!,\"\")","v":{"$error":"#REF!"}},{"$f":"IF($C92=1,'Sjekkliste noter'!#REF!,\"\")","v":{"$error":"#REF!"}},null,{"$f":"IF($C92=1,'Sjekkliste noter'!#REF!,\"\")","v":{"$error":"#REF!"}}]
[{"$f":"+'Sjekkliste noter'!#REF!","v":{"$error":"#REF!"}},{"$f":"IF('Sjekkliste noter'!#REF!<>\"\",1,0)","v":{"$error":"#REF!"}},{"$error":"#REF!"},{"$f":"IF($C93=1,'Sjekkliste noter'!#REF!,\"\")","v":{"$error":"#REF!"}},{"$f":"IF($C93=1,'Sjekkliste noter'!#REF!,\"\")","v":{"$error":"#REF!"}},null,{"$f":"IF($C93=1,'Sjekkliste noter'!#REF!,\"\")","v":{"$error":"#REF!"}}]
[{"$f":"+'Sjekkliste noter'!#REF!","v":{"$error":"#REF!"}},{"$f":"IF('Sjekkliste noter'!#REF!<>\"\",1,0)","v":{"$error":"#REF!"}},{"$error":"#REF!"},{"$f":"IF($C94=1,'Sjekkliste noter'!#REF!,\"\")","v":{"$error":"#REF!"}},{"$f":"IF($C94=1,'Sjekkliste noter'!#REF!,\"\")","v":{"$error":"#REF!"}},null,{"$f":"IF($C94=1,'Sjekkliste noter'!#REF!,\"\")","v":{"$error":"#REF!"}}]
[{"$f":"+'Sjekkliste noter'!#REF!","v":{"$error":"#REF!"}},{"$f":"IF('Sjekkliste noter'!#REF!<>\"\",1,0)","v":{"$error":"#REF!"}},{"$error":"#REF!"},{"$f":"IF($C95=1,'Sjekkliste noter'!#REF!,\"\")","v":{"$error":"#REF!"}},{"$f":"IF($C95=1,'Sjekkliste noter'!#REF!,\"\")","v":{"$error":"#REF!"}},null,{"$f":"IF($C95=1,'Sjekkliste noter'!#REF!,\"\")","v":{"$error":"#REF!"}}]
[{"$f":"+'Sjekkliste noter'!#REF!","v":{"$error":"#REF!"}},{"$f":"IF('Sjekkliste noter'!#REF!<>\"\",1,0)","v":{"$error":"#REF!"}},{"$error":"#REF!"},{"$f":"IF($C96=1,'Sjekkliste noter'!#REF!,\"\")","v":{"$error":"#REF!"}},{"$f":"IF($C96=1,'Sjekkliste noter'!#REF!,\"\")","v":{"$error":"#REF!"}},null,{"$f":"IF($C96=1,'Sjekkliste noter'!#REF!,\"\")","v":{"$error":"#REF!"}}]
[{"$f":"+'Sjekkliste noter'!#REF!","v":{"$error":"#REF!"}},{"$f":"IF('Sjekkliste noter'!#REF!<>\"\",1,0)","v":{"$error":"#REF!"}},{"$error":"#REF!"},{"$f":"IF($C97=1,'Sjekkliste noter'!#REF!,\"\")","v":{"$error":"#REF!"}},{"$f":"IF($C97=1,'Sjekkliste noter'!#REF!,\"\")","v":{"$error":"#REF!"}},null,{"$f":"IF($C97=1,'Sjekkliste noter'!#REF!,\"\")","v":{"$error":"#REF!"}}]
[{"$f":"+'Sjekkliste noter'!#REF!","v":{"$error":"#REF!"}},{"$f":"IF('Sjekkliste noter'!#REF!<>\"\",1,0)","v":{"$error":"#REF!"}},{"$f":"SUM(B98:B98)","v":{"$error":"#REF!"}},{"$f":"IF($C98=1,'Sjekkliste noter'!#REF!,\"\")","v":{"$error":"#REF!"}},{"$f":"IF($C98=1,'Sjekkliste noter'!#REF!,\"\")","v":{"$error":"#REF!"}},null,{"$f":"IF($C98=1,'Sjekkliste noter'!#REF!,\"\")","v":{"$error":"#REF!"}}]
[{"$f":"+'Sjekkliste noter'!#REF!","v":{"$error":"#REF!"}},{"$f":"IF('Sjekkliste noter'!#REF!<>\"\",1,0)","v":{"$error":"#REF!"}},{"$error":"#REF!"},{"$f":"IF($C99=1,'Sjekkliste noter'!#REF!,\"\")","v":{"$error":"#REF!"}},{"$f":"IF($C99=1,'Sjekkliste noter'!#REF!,\"\")","v":{"$error":"#REF!"}},null,{"$f":"IF($C99=1,'Sjekkliste noter'!#REF!,\"\")","v":{"$error":"#REF!"}}]
[{"$f":"+'Sjekkliste noter'!#REF!","v":{"$error":"#REF!"}},{"$f":"IF('Sjekkliste noter'!#REF!<>\"\",1,0)","v":{"$error":"#REF!"}},{"$error":"#REF!"},{"$f":"IF($C100=1,'Sjekkliste noter'!#REF!,\"\")","v":{"$error":"#REF!"}},{"$f":"IF($C100=1,'Sjekkliste noter'!#REF!,\"\")","v":{"$error":"#REF!"}},null,{"$f":"IF($C100=1,'Sjekkliste noter'!#REF!,\"\")","v":{"$error":"#REF!"}}]
[{"$f":"+'Sjekkliste noter'!#REF!","v":{"$error":"#REF!"}},{"$f":"IF('Sjekkliste noter'!#REF!<>\"\",1,0)","v":{"$error":"#REF!"}},{"$error":"#REF!"},{"$f":"IF($C101=1,'Sjekkliste noter'!#REF!,\"\")","v":{"$error":"#REF!"}},{"$f":"IF($C101=1,'Sjekkliste noter'!#REF!,\"\")","v":{"$error":"#REF!"}},null,{"$f":"IF($C101=1,'Sjekkliste noter'!#REF!,\"\")","v":{"$error":"#REF!"}}]
[{"$f":"+'Sjekkliste noter'!A107","v":51},{"$f":"IF('Sjekkliste noter'!G107<>\"\",1,0)","v":0},0,{"$f":"IF($C102=1,'Sjekkliste noter'!A107,\"\")","v":""},{"$f":"IF($C102=1,'Sjekkliste noter'!B107,\"\")","v":""},null,{"$f":"IF($C102=1,'Sjekkliste noter'!H107,\"\")","v":""}]
[{"$f":"+'Sjekkliste noter'!A109","v":52},{"$f":"IF('Sjekkliste noter'!G109<>\"\",1,0)","v":0},0,{"$f":"IF($C103=1,'Sjekkliste noter'!A109,\"\")","v":""},{"$f":"IF($C103=1,'Sjekkliste noter'!B109,\"\")","v":""},null,{"$f":"IF($C103=1,'Sjekkliste noter'!H109,\"\")","v":""}]
[{"$f":"+'Sjekkliste noter'!A112","v":53},{"$f":"IF('Sjekkliste noter'!G112<>\"\",1,0)","v":0},0,{"$f":"IF($C104=1,'Sjekkliste noter'!A112,\"\")","v":""},{"$f":"IF($C104=1,'Sjekkliste noter'!B112,\"\")","v":""},null,{"$f":"IF($C104=1,'Sjekkliste noter'!H112,\"\")","v":""}]
[{"$f":"+'Sjekkliste noter'!A114","v":54},{"$f":"IF('Sjekkliste noter'!G114<>\"\",1,0)","v":0},0,{"$f":"IF($C105=1,'Sjekkliste noter'!A114,\"\")","v":""},{"$f":"IF($C105=1,'Sjekkliste noter'!B114,\"\")","v":""},null,{"$f":"IF($C105=1,'Sjekkliste noter'!H114,\"\")","v":""}]
[{"$f":"+'Sjekkliste noter'!#REF!","v":{"$error":"#REF!"}},{"$f":"IF('Sjekkliste noter'!#REF!<>\"\",1,0)","v":{"$error":"#REF!"}},{"$error":"#REF!"},{"$f":"IF($C106=1,'Sjekkliste noter'!#REF!,\"\")","v":{"$error":"#REF!"}},{"$f":"IF($C106=1,'Sjekkliste noter'!#REF!,\"\")","v":{"$error":"#REF!"}},null,{"$f":"IF($C106=1,'Sjekkliste noter'!#REF!,\"\")","v":{"$error":"#REF!"}}]
[{"$f":"+'Sjekkliste noter'!#REF!","v":{"$error":"#REF!"}},{"$f":"IF('Sjekkliste noter'!#REF!<>\"\",1,0)","v":{"$error":"#REF!"}},{"$error":"#REF!"},{"$f":"IF($C107=1,'Sjekkliste noter'!#REF!,\"\")","v":{"$error":"#REF!"}},{"$f":"IF($C107=1,'Sjekkliste noter'!#REF!,\"\")","v":{"$error":"#REF!"}},null,{"$f":"IF($C107=1,'Sjekkliste noter'!#REF!,\"\")","v":{"$error":"#REF!"}}]
[{"$f":"+'Sjekkliste noter'!#REF!","v":{"$error":"#REF!"}},{"$f":"IF('Sjekkliste noter'!#REF!<>\"\",1,0)","v":{"$error":"#REF!"}},{"$error":"#REF!"},{"$f":"IF($C108=1,'Sjekkliste noter'!#REF!,\"\")","v":{"$error":"#REF!"}},{"$f":"IF($C108=1,'Sjekkliste noter'!#REF!,\"\")","v":{"$error":"#REF!"}},null,{"$f":"IF($C108=1,'Sjekkliste noter'!#REF!,\"\")","v":{"$error":"#REF!"}}]
[{"$f":"+'Sjekkliste noter'!#REF!","v":{"$error":"#REF!"}},{"$f":"IF('Sjekkliste noter'!#REF!<>\"\",1,0)","v":{"$error":"#REF!"}},{"$error":"#REF!"},{"$f":"IF($C109=1,'Sjekkliste noter'!#REF!,\"\")","v":{"$error":"#REF!"}},{"$f":"IF($C109=1,'Sjekkliste noter'!#REF!,\"\")","v":{"$error":"#REF!"}},null,{"$f":"IF($C109=1,'Sjekkliste noter'!#REF!,\"\")","v":{"$error":"#REF!"}}]
[{"$f":"+'Sjekkliste noter'!A117","v":55},{"$f":"IF('Sjekkliste noter'!G117<>\"\",1,0)","v":0},0,{"$f":"IF($C110=1,'Sjekkliste noter'!A117,\"\")","v":""},{"$f":"IF($C110=1,'Sjekkliste noter'!B117,\"\")","v":""},null,{"$f":"IF($C110=1,'Sjekkliste noter'!H117,\"\")","v":""}]
[{"$f":"+'Sjekkliste noter'!A119","v":56},{"$f":"IF('Sjekkliste noter'!G119<>\"\",1,0)","v":0},0,{"$f":"IF($C111=1,'Sjekkliste noter'!A119,\"\")","v":""},{"$f":"IF($C111=1,'Sjekkliste noter'!B119,\"\")","v":""},null,{"$f":"IF($C111=1,'Sjekkliste noter'!H119,\"\")","v":""}]
[{"$f":"+'Sjekkliste noter'!#REF!","v":{"$error":"#REF!"}},{"$f":"IF('Sjekkliste noter'!#REF!<>\"\",1,0)","v":{"$error":"#REF!"}},{"$error":"#REF!"},{"$f":"IF($C112=1,'Sjekkliste noter'!#REF!,\"\")","v":{"$error":"#REF!"}},{"$f":"IF($C112=1,'Sjekkliste noter'!#REF!,\"\")","v":{"$error":"#REF!"}},null,{"$f":"IF($C112=1,'Sjekkliste noter'!#REF!,\"\")","v":{"$error":"#REF!"}}]
[{"$f":"+'Sjekkliste noter'!#REF!","v":{"$error":"#REF!"}},{"$f":"IF('Sjekkliste noter'!#REF!<>\"\",1,0)","v":{"$error":"#REF!"}},{"$error":"#REF!"},{"$f":"IF($C113=1,'Sjekkliste noter'!#REF!,\"\")","v":{"$error":"#REF!"}},{"$f":"IF($C113=1,'Sjekkliste noter'!#REF!,\"\")","v":{"$error":"#REF!"}},null,{"$f":"IF($C113=1,'Sjekkliste noter'!#REF!,\"\")","v":{"$error":"#REF!"}}]
[{"$f":"+'Sjekkliste noter'!#REF!","v":{"$error":"#REF!"}},{"$f":"IF('Sjekkliste noter'!#REF!<>\"\",1,0)","v":{"$error":"#REF!"}},{"$error":"#REF!"},{"$f":"IF($C114=1,'Sjekkliste noter'!#REF!,\"\")","v":{"$error":"#REF!"}},{"$f":"IF($C114=1,'Sjekkliste noter'!#REF!,\"\")","v":{"$error":"#REF!"}},null,{"$f":"IF($C114=1,'Sjekkliste noter'!#REF!,\"\")","v":{"$error":"#REF!"}}]
[{"$f":"+'Sjekkliste noter'!#REF!","v":{"$error":"#REF!"}},{"$f":"IF('Sjekkliste noter'!#REF!<>\"\",1,0)","v":{"$error":"#REF!"}},{"$error":"#REF!"},{"$f":"IF($C115=1,'Sjekkliste noter'!#REF!,\"\")","v":{"$error":"#REF!"}},{"$f":"IF($C115=1,'Sjekkliste noter'!#REF!,\"\")","v":{"$error":"#REF!"}},null,{"$f":"IF($C115=1,'Sjekkliste noter'!#REF!,\"\")","v":{"$error":"#REF!"}}]
[{"$f":"+'Sjekkliste noter'!#REF!","v":{"$error":"#REF!"}},{"$f":"IF('Sjekkliste noter'!#REF!<>\"\",1,0)","v":{"$error":"#REF!"}},{"$error":"#REF!"},{"$f":"IF($C116=1,'Sjekkliste noter'!#REF!,\"\")","v":{"$error":"#REF!"}},{"$f":"IF($C116=1,'Sjekkliste noter'!#REF!,\"\")","v":{"$error":"#REF!"}},null,{"$f":"IF($C116=1,'Sjekkliste noter'!#REF!,\"\")","v":{"$error":"#REF!"}}]
[{"$f":"+'Sjekkliste noter'!#REF!","v":{"$error":"#REF!"}},{"$f":"IF('Sjekkliste noter'!#REF!<>\"\",1,0)","v":{"$error":"#REF!"}},{"$error":"#REF!"},{"$f":"IF($C117=1,'Sjekkliste noter'!#REF!,\"\")","v":{"$error":"#REF!"}},{"$f":"IF($C117=1,'Sjekkliste noter'!#REF!,\"\")","v":{"$error":"#REF!"}},null,{"$f":"IF($C117=1,'Sjekkliste noter'!#REF!,\"\")","v":{"$error":"#REF!"}}]
[{"$f":"+'Sjekkliste noter'!#REF!","v":{"$error":"#REF!"}},{"$f":"IF('Sjekkliste noter'!#REF!<>\"\",1,0)","v":{"$error":"#REF!"}},{"$error":"#REF!"},{"$f":"IF($C118=1,'Sjekkliste noter'!#REF!,\"\")","v":{"$error":"#REF!"}},{"$f":"IF($C118=1,'Sjekkliste noter'!#REF!,\"\")","v":{"$error":"#REF!"}},null,{"$f":"IF($C118=1,'Sjekkliste noter'!#REF!,\"\")","v":{"$error":"#REF!"}}]
[{"$f":"+'Sjekkliste noter'!#REF!","v":{"$error":"#REF!"}},{"$f":"IF('Sjekkliste noter'!#REF!<>\"\",1,0)","v":{"$error":"#REF!"}},{"$error":"#REF!"},{"$f":"IF($C119=1,'Sjekkliste noter'!#REF!,\"\")","v":{"$error":"#REF!"}},{"$f":"IF($C119=1,'Sjekkliste noter'!#REF!,\"\")","v":{"$error":"#REF!"}},null,{"$f":"IF($C119=1,'Sjekkliste noter'!#REF!,\"\")","v":{"$error":"#REF!"}}]
[{"$f":"+'Sjekkliste noter'!A121","v":57},{"$f":"IF('Sjekkliste noter'!G121<>\"\",1,0)","v":0},0,{"$f":"IF($C120=1,'Sjekkliste noter'!A121,\"\")","v":""},{"$f":"IF($C120=1,'Sjekkliste noter'!B121,\"\")","v":""},null,{"$f":"IF($C120=1,'Sjekkliste noter'!H121,\"\")","v":""}]
[{"$f":"+'Sjekkliste noter'!#REF!","v":{"$error":"#REF!"}},{"$f":"IF('Sjekkliste noter'!#REF!<>\"\",1,0)","v":{"$error":"#REF!"}},{"$error":"#REF!"},{"$f":"IF($C121=1,'Sjekkliste noter'!#REF!,\"\")","v":{"$error":"#REF!"}},{"$f":"IF($C121=1,'Sjekkliste noter'!#REF!,\"\")","v":{"$error":"#REF!"}},null,{"$f":"IF($C121=1,'Sjekkliste noter'!#REF!,\"\")","v":{"$error":"#REF!"}}]
[{"$f":"+'Sjekkliste noter'!#REF!","v":{"$error":"#REF!"}},{"$f":"IF('Sjekkliste noter'!#REF!<>\"\",1,0)","v":{"$error":"#REF!"}},{"$error":"#REF!"},{"$f":"IF($C122=1,'Sjekkliste noter'!#REF!,\"\")","v":{"$error":"#REF!"}},{"$f":"IF($C122=1,'Sjekkliste noter'!#REF!,\"\")","v":{"$error":"#REF!"}},null,{"$f":"IF($C122=1,'Sjekkliste noter'!#REF!,\"\")","v":{"$error":"#REF!"}}]
[{"$f":"+'Sjekkliste noter'!#REF!","v":{"$error":"#REF!"}},{"$f":"IF('Sjekkliste noter'!#REF!<>\"\",1,0)","v":{"$error":"#REF!"}},{"$error":"#REF!"},{"$f":"IF($C123=1,'Sjekkliste noter'!#REF!,\"\")","v":{"$error":"#REF!"}},{"$f":"IF($C123=1,'Sjekkliste noter'!#REF!,\"\")","v":{"$error":"#REF!"}},null,{"$f":"IF($C123=1,'Sjekkliste noter'!#REF!,\"\")","v":{"$error":"#REF!"}}]
[{"$f":"+'Sjekkliste noter'!#REF!","v":{"$error":"#REF!"}},{"$f":"IF('Sjekkliste noter'!#REF!<>\"\",1,0)","v":{"$error":"#REF!"}},{"$error":"#REF!"},{"$f":"IF($C124=1,'Sjekkliste noter'!#REF!,\"\")","v":{"$error":"#REF!"}},{"$f":"IF($C124=1,'Sjekkliste noter'!#REF!,\"\")","v":{"$error":"#REF!"}},null,{"$f":"IF($C124=1,'Sjekkliste noter'!#REF!,\"\")","v":{"$error":"#REF!"}}]
[{"$f":"+'Sjekkliste noter'!#REF!","v":{"$error":"#REF!"}},{"$f":"IF('Sjekkliste noter'!#REF!<>\"\",1,0)","v":{"$error":"#REF!"}},{"$error":"#REF!"},{"$f":"IF($C125=1,'Sjekkliste noter'!#REF!,\"\")","v":{"$error":"#REF!"}},{"$f":"IF($C125=1,'Sjekkliste noter'!#REF!,\"\")","v":{"$error":"#REF!"}},null,{"$f":"IF($C125=1,'Sjekkliste noter'!#REF!,\"\")","v":{"$error":"#REF!"}}]
[{"$f":"+'Sjekkliste noter'!#REF!","v":{"$error":"#REF!"}},{"$f":"IF('Sjekkliste noter'!#REF!<>\"\",1,0)","v":{"$error":"#REF!"}},{"$error":"#REF!"},{"$f":"IF($C126=1,'Sjekkliste noter'!#REF!,\"\")","v":{"$error":"#REF!"}},{"$f":"IF($C126=1,'Sjekkliste noter'!#REF!,\"\")","v":{"$error":"#REF!"}},null,{"$f":"IF($C126=1,'Sjekkliste noter'!#REF!,\"\")","v":{"$error":"#REF!"}}]
[{"$f":"+'Sjekkliste noter'!#REF!","v":{"$error":"#REF!"}},{"$f":"IF('Sjekkliste noter'!#REF!<>\"\",1,0)","v":{"$error":"#REF!"}},{"$error":"#REF!"},{"$f":"IF($C127=1,'Sjekkliste noter'!#REF!,\"\")","v":{"$error":"#REF!"}},{"$f":"IF($C127=1,'Sjekkliste noter'!#REF!,\"\")","v":{"$error":"#REF!"}},null,{"$f":"IF($C127=1,'Sjekkliste noter'!#REF!,\"\")","v":{"$error":"#REF!"}}]
[{"$f":"+'Sjekkliste noter'!A124","v":58},{"$f":"IF('Sjekkliste noter'!G124<>\"\",1,0)","v":0},0,{"$f":"IF($C128=1,'Sjekkliste noter'!A124,\"\")","v":""},{"$f":"IF($C128=1,'Sjekkliste noter'!B124,\"\")","v":""},null,{"$f":"IF($C128=1,'Sjekkliste noter'!H124,\"\")","v":""}]
[{"$f":"+'Sjekkliste noter'!#REF!","v":{"$error":"#REF!"}},{"$f":"IF('Sjekkliste noter'!#REF!<>\"\",1,0)","v":{"$error":"#REF!"}},{"$error":"#REF!"},{"$f":"IF($C129=1,'Sjekkliste noter'!#REF!,\"\")","v":{"$error":"#REF!"}},{"$f":"IF($C129=1,'Sjekkliste noter'!#REF!,\"\")","v":{"$error":"#REF!"}},null,{"$f":"IF($C129=1,'Sjekkliste noter'!#REF!,\"\")","v":{"$error":"#REF!"}}]
[{"$f":"+'Sjekkliste noter'!A130","v":60},{"$f":"IF('Sjekkliste noter'!G130<>\"\",1,0)","v":0},{"$f":"SUM(B130:B130)","v":0},{"$f":"IF($C130=1,'Sjekkliste noter'!A130,\"\")","v":""},{"$f":"IF($C130=1,'Sjekkliste noter'!B130,\"\")","v":""},null,{"$f":"IF($C130=1,'Sjekkliste noter'!H130,\"\")","v":""}]
[{"$f":"+'Sjekkliste noter'!A134","v":61},{"$f":"IF('Sjekkliste noter'!G134<>\"\",1,0)","v":0},0,{"$f":"IF($C131=1,'Sjekkliste noter'!A134,\"\")","v":""},{"$f":"IF($C131=1,'Sjekkliste noter'!B134,\"\")","v":""},null,{"$f":"IF($C131=1,'Sjekkliste noter'!H134,\"\")","v":""}]
[{"$f":"+'Sjekkliste noter'!#REF!","v":{"$error":"#REF!"}},{"$f":"IF('Sjekkliste noter'!#REF!<>\"\",1,0)","v":{"$error":"#REF!"}},{"$error":"#REF!"},{"$f":"IF($C132=1,'Sjekkliste noter'!#REF!,\"\")","v":{"$error":"#REF!"}},{"$f":"IF($C132=1,'Sjekkliste noter'!#REF!,\"\")","v":{"$error":"#REF!"}},null,{"$f":"IF($C132=1,'Sjekkliste noter'!#REF!,\"\")","v":{"$error":"#REF!"}}]
[{"$f":"+'Sjekkliste noter'!#REF!","v":{"$error":"#REF!"}},{"$f":"IF('Sjekkliste noter'!#REF!<>\"\",1,0)","v":{"$error":"#REF!"}},{"$error":"#REF!"},{"$f":"IF($C133=1,'Sjekkliste noter'!#REF!,\"\")","v":{"$error":"#REF!"}},{"$f":"IF($C133=1,'Sjekkliste noter'!#REF!,\"\")","v":{"$error":"#REF!"}},null,{"$f":"IF($C133=1,'Sjekkliste noter'!#REF!,\"\")","v":{"$error":"#REF!"}}]
[{"$f":"+'Sjekkliste noter'!#REF!","v":{"$error":"#REF!"}},{"$f":"IF('Sjekkliste noter'!#REF!<>\"\",1,0)","v":{"$error":"#REF!"}},{"$error":"#REF!"},{"$f":"IF($C134=1,'Sjekkliste noter'!#REF!,\"\")","v":{"$error":"#REF!"}},{"$f":"IF($C134=1,'Sjekkliste noter'!#REF!,\"\")","v":{"$error":"#REF!"}},null,{"$f":"IF($C134=1,'Sjekkliste noter'!#REF!,\"\")","v":{"$error":"#REF!"}}]
[{"$f":"+'Sjekkliste noter'!A137","v":62},{"$f":"IF('Sjekkliste noter'!G137<>\"\",1,0)","v":0},0,{"$f":"IF($C135=1,'Sjekkliste noter'!A137,\"\")","v":""},{"$f":"IF($C135=1,'Sjekkliste noter'!B137,\"\")","v":""},null,{"$f":"IF($C135=1,'Sjekkliste noter'!H137,\"\")","v":""}]
[{"$f":"+'Sjekkliste noter'!A138","v":63},{"$f":"IF('Sjekkliste noter'!G138<>\"\",1,0)","v":0},0,{"$f":"IF($C136=1,'Sjekkliste noter'!A138,\"\")","v":""},{"$f":"IF($C136=1,'Sjekkliste noter'!B138,\"\")","v":""},null,{"$f":"IF($C136=1,'Sjekkliste noter'!H138,\"\")","v":""}]
[{"$f":"+'Sjekkliste noter'!A139","v":64},{"$f":"IF('Sjekkliste noter'!G139<>\"\",1,0)","v":0},0,{"$f":"IF($C137=1,'Sjekkliste noter'!A139,\"\")","v":""},{"$f":"IF($C137=1,'Sjekkliste noter'!B139,\"\")","v":""},null,{"$f":"IF($C137=1,'Sjekkliste noter'!H139,\"\")","v":""}]
[{"$f":"+'Sjekkliste noter'!A140","v":65},{"$f":"IF('Sjekkliste noter'!G140<>\"\",1,0)","v":0},0,{"$f":"IF($C138=1,'Sjekkliste noter'!A140,\"\")","v":""},{"$f":"IF($C138=1,'Sjekkliste noter'!B140,\"\")","v":""},null,{"$f":"IF($C138=1,'Sjekkliste noter'!H140,\"\")","v":""}]
[{"$f":"+'Sjekkliste noter'!A141","v":66},{"$f":"IF('Sjekkliste noter'!G141<>\"\",1,0)","v":0},0,{"$f":"IF($C139=1,'Sjekkliste noter'!A141,\"\")","v":""},{"$f":"IF($C139=1,'Sjekkliste noter'!B141,\"\")","v":""},null,{"$f":"IF($C139=1,'Sjekkliste noter'!H141,\"\")","v":""}]
[{"$f":"+'Sjekkliste noter'!A142","v":67},{"$f":"IF('Sjekkliste noter'!G142<>\"\",1,0)","v":0},0,{"$f":"IF($C140=1,'Sjekkliste noter'!A142,\"\")","v":""},{"$f":"IF($C140=1,'Sjekkliste noter'!B142,\"\")","v":""},null,{"$f":"IF($C140=1,'Sjekkliste noter'!H142,\"\")","v":""}]
[{"$f":"+'Sjekkliste noter'!A143","v":68},{"$f":"IF('Sjekkliste noter'!G143<>\"\",1,0)","v":0},0,{"$f":"IF($C141=1,'Sjekkliste noter'!A143,\"\")","v":""},{"$f":"IF($C141=1,'Sjekkliste noter'!B143,\"\")","v":""},null,{"$f":"IF($C141=1,'Sjekkliste noter'!H143,\"\")","v":""}]
[{"$f":"+'Sjekkliste noter'!A144","v":69},{"$f":"IF('Sjekkliste noter'!G144<>\"\",1,0)","v":0},0,{"$f":"IF($C142=1,'Sjekkliste noter'!A144,\"\")","v":""},{"$f":"IF($C142=1,'Sjekkliste noter'!B144,\"\")","v":""},null,{"$f":"IF($C142=1,'Sjekkliste noter'!H144,\"\")","v":""}]
[{"$f":"+'Sjekkliste noter'!A145","v":70},{"$f":"IF('Sjekkliste noter'!G145<>\"\",1,0)","v":0},0,{"$f":"IF($C143=1,'Sjekkliste noter'!A145,\"\")","v":""},{"$f":"IF($C143=1,'Sjekkliste noter'!B145,\"\")","v":""},null,{"$f":"IF($C143=1,'Sjekkliste noter'!H145,\"\")","v":""}]
[{"$f":"+'Sjekkliste noter'!A146","v":71},{"$f":"IF('Sjekkliste noter'!G146<>\"\",1,0)","v":0},0,{"$f":"IF($C144=1,'Sjekkliste noter'!A146,\"\")","v":""},{"$f":"IF($C144=1,'Sjekkliste noter'!B146,\"\")","v":""},null,{"$f":"IF($C144=1,'Sjekkliste noter'!H146,\"\")","v":""}]
[{"$f":"+'Sjekkliste noter'!A147","v":72},{"$f":"IF('Sjekkliste noter'!G147<>\"\",1,0)","v":0},0,{"$f":"IF($C145=1,'Sjekkliste noter'!A147,\"\")","v":""},{"$f":"IF($C145=1,'Sjekkliste noter'!B147,\"\")","v":""},null,{"$f":"IF($C145=1,'Sjekkliste noter'!H147,\"\")","v":""}]
[{"$f":"+'Sjekkliste noter'!A148","v":73},{"$f":"IF('Sjekkliste noter'!G148<>\"\",1,0)","v":0},0,{"$f":"IF($C146=1,'Sjekkliste noter'!A148,\"\")","v":""},{"$f":"IF($C146=1,'Sjekkliste noter'!B148,\"\")","v":""},null,{"$f":"IF($C146=1,'Sjekkliste noter'!H148,\"\")","v":""}]
[{"$f":"+'Sjekkliste noter'!A149","v":74},{"$f":"IF('Sjekkliste noter'!G149<>\"\",1,0)","v":0},0,{"$f":"IF($C147=1,'Sjekkliste noter'!A149,\"\")","v":""},{"$f":"IF($C147=1,'Sjekkliste noter'!B149,\"\")","v":""},null,{"$f":"IF($C147=1,'Sjekkliste noter'!H149,\"\")","v":""}]
[{"$f":"+'Sjekkliste noter'!A152","v":75},{"$f":"IF('Sjekkliste noter'!G152<>\"\",1,0)","v":0},0,{"$f":"IF($C148=1,'Sjekkliste noter'!A152,\"\")","v":""},{"$f":"IF($C148=1,'Sjekkliste noter'!B152,\"\")","v":""},null,{"$f":"IF($C148=1,'Sjekkliste noter'!H152,\"\")","v":""}]
[{"$f":"+'Sjekkliste noter'!A153","v":76},{"$f":"IF('Sjekkliste noter'!G153<>\"\",1,0)","v":0},0,{"$f":"IF($C149=1,'Sjekkliste noter'!A153,\"\")","v":""},{"$f":"IF($C149=1,'Sjekkliste noter'!B153,\"\")","v":""},null,{"$f":"IF($C149=1,'Sjekkliste noter'!H153,\"\")","v":""}]
[{"$f":"+'Sjekkliste noter'!A156","v":77},{"$f":"IF('Sjekkliste noter'!G156<>\"\",1,0)","v":0},0,{"$f":"IF($C150=1,'Sjekkliste noter'!A156,\"\")","v":""},{"$f":"IF($C150=1,'Sjekkliste noter'!B156,\"\")","v":""},null,{"$f":"IF($C150=1,'Sjekkliste noter'!H156,\"\")","v":""}]
[{"$f":"+'Sjekkliste noter'!A157","v":78},{"$f":"IF('Sjekkliste noter'!G157<>\"\",1,0)","v":0},0,{"$f":"IF($C151=1,'Sjekkliste noter'!A157,\"\")","v":""},{"$f":"IF($C151=1,'Sjekkliste noter'!B157,\"\")","v":""},null,{"$f":"IF($C151=1,'Sjekkliste noter'!H157,\"\")","v":""}]

{"sheet":"sjekkliste_noter_matrix","index":6,"n_rows":164,"n_cols":42,"rows_kept":164,"cut":false,"hidden":true,"merged":[]}
["F0","E0",{"$f":"\"F\"&COLUMN(A1)","v":"F1"},{"$f":"\"F\"&COLUMN(B1)","v":"F2"},"F3","F4","F5","F6","F7","F8","F9","F8F9",{"$f":"\"F\"&COLUMN(J1)","v":"F10"},{"$f":"\"F\"&COLUMN(K1)","v":"F11"},{"$f":"\"F\"&COLUMN(L1)","v":"F12"},"F13","F14","F15","F16","F17","F18","F19","F20","F21","F22",{"$f":"\"E\"&COLUMN(A1)","v":"E1"},"E2","E3","E4","E5","E6","E7","E8","E9","E10","E11",{"$f":"\"E\"&COLUMN(L1)","v":"E12"},{"$f":"\"E\"&COLUMN(M1)","v":"E13"},{"$f":"\"E\"&COLUMN(N1)","v":"E14"},{"$f":"\"E\"&COLUMN(O1)","v":"E15"},"E16","E17"]
["x","x","x","x","x","x","x","x","x","x","x","x","x","x","x","x","x","x","x","x","x","x","x","x","x","x","x","x","x","x","x","x","x","x","x","x","x","x","x","x","x","x"]
["x","x","x","x","x","x","x","x","x","x","x","x","x","x","x","x","x","x","x","x","x","x","x","x","x","x","x","x","x","x","x","x","x","x","x","x","x","x","x","x","x","x"]
["x","x","x","x","x","x","x","x","x","x","x","x","x","x","x","x","x","x","x","x","x","x","x","x","x","x","x","x","x","x","x","x","x","x","x","x","x","x","x","x","x","x"]
["x","x","x","x","x","x","x","x","x","x","x","x","x","x","x","x","x","x","x","x","x","x","x","x","x","x","x","x","x","x","x","x","x","x","x","x","x","x","x","x","x","x"]
["x","x","x","x","x","x","x","x","x","x","x","x","x","x","x","x","x","x","x","x","x","x","x","x","x","x","x","x","x","x","x","x","x","x","x","x","x","x","x","x","x","x"]
["x","x","x","x","x","x","x","x","x","x","x","x","x","x","x","x","x","x","x","x","x","x","x","x","x","x","x","x","x","x","x","x","x","x","x","x","x","x","x","x","x","x"]
["x",null,"x","x","x","x","x","x","x","x","x","x","x","x","x","x","x","x","x","x","x","x","x","x","x",null,"","","","","","","","",""]
["x",null,"x","x","x","x","x","x","x","x","x","x","x","x","x","x","x","x","x","x","x","x","x","x","x",null,"","","","","","","","",""]
["x",null,"x","x","x","x","x","x","x","x","x","x","x","x","x","x","x","x","x","x","x","x","x","x","x",null,"","","","","","","","",""]
["x",null,"x","x","x","x","x","x","x","x","x","x","x","x","x","x","x","x","x","x","x","x","x","x","x",null,"","","","","","","","",""]
["x",null,"x","x","x","x","x","x","x","x","x","x","x","x","x","x","x","x","x","x","x","x","x","x","x",null,"","","","","","","","",""]
["x",null,"x","x","x","x","x","x","x","x","x","x","x","x","x","x","x","x","x","x","x","x","x","x","x",null,"","","","","","","","",""]
["x",null,"x","x","x","x","x","x","x","x","x","x","x","x","x","x","x","x","x","x","x","x","x","x","x",null,"","","","","","","","",""]
["x","x","x","x","x","x","x","x","x","x","x","x","x","x","x","x","x","x","x","x","x","x","x","x","x","x","","","","","","","","",""]
["x",null,"x","x","x","x","x","x","x","x","x","x","x","x","x","x","x","x","x","x","x","x","x","x","x",null,"","","","","","","","x",""]
["x","x","x","x","x","x","x","x","x","x","x","x","x","x","x","x","x","x","x","x","x","x","x","x","x","x","","","","","","","","",""]
["x",null,"x","x","x","x","x","x","x","x","x","x","x","x","x","x","x","x","x","x","x","x","x","x","x",null,"","","","","","","","x",""]
["x",null,"x","x","x","x","x","x","x","x","x","x","x","x","x","x","x","x","x","x","x","x","x","x","x",null,"","","","","","","","x",""]
["x",null,"x","x","x","x","x","x","x","x","x","x","x","x","x","x","x","x","x","x","x","x","x","x","x",null,"","","","","","","","x",""]
["x",null,"x","x","x","x","x","x","x","x","x","x","x","x","x","x","x","x","x","x","x","x","x","x","x",null,"","","","","","","","x",""]
["x",null,"x","x","x","x","x","x","x","x","x","x","x","x","x","x","x","x","x","x","x","x","x","x","x",null,"","","","","","","","x",""]
["x",null,"x","x","x","x","x","x","x","x","x","x","x","x","x","x","x","x","x","x","x","x","x","x","x",null,"","","","","","","","x",""]
["x",null,"x","x","x","x","x","x","x","x","x","x","x","x","x","x","x","x","x","x","x","x","x","x","x",null,"","","","","","","","x",""]
["x",null,"x","x","x","x","x","x","x","x","x","x","x","x","x","x","x","x","x","x","x","x","x","x","x",null,"","","","","","","","x",""]
["x",null,"x","x","x","x","x","x","x","x","x","x","x","x","x","x","x","x","x","x","x","x","x","x","x",null,"","","","","","","","x",""]
["x","x","x","x","x","x","x","x","x","x","x","x","x","x","x","x","x","x","x","x","x","x","x","x","x","x","","","","","","","",null,""]
["x",null,"x","x","x","x","x","x","x","x","x","x","x",null,"x","x","x","x","x","x","x","x","x","x","x",null,"","","","","","","",null,""]
["x",null,"x","x","x","x","x","x","x","x","x","x","x",null,"x","x","x","x","x","x","x","x","x","x","x",null,"","","","","","","","",""]
["x",null,"x","x","x","x","x","x","x","x","x","x","x",null,"x","x","x","x","x","x","x","x","x","x","x",null,"","","","","","","","",""]
["x",null,"x","x","x","x","x","x","x","x","x","x","x",null,"x","x","x","x","x","x","x","x","x","x","x",null,"","","","","","","","",""]
["x",null,"x","x","x","x","x","x","x","x","x","x","x",null,"x","x","x","x","x","x","x","x","x","x","x",null,"","","","","","","","",""]
["x",null,"x","x","x","x","x","x","x","x","x","x","x",null,"x","x","x","x","x","x","x","x","x","x","x",null,"","","","","","","","",""]
["x",null,"x","x","x","x","x","x","x","x","x","x","x",null,"x","x","x","x","x","x","x","x","x","x","x",null,"","","","","","","","",""]
["x",null,"x","x","x","x","x","x","x","x","x","x","x",null,"x","x","x","x","x","x","x","x","x","x","x",null,"","","","","","","","",""]
["x","x","x","x","x","x","x","x","x","x","x","x","x","x","x","x","x","x","x","x","x","x","x","x","x","x","","","","","","","","",""]
["x",null,"x","x",null,"x","x","x","x","x","x","x","x","x","x","x","x","x","x","x","x","x","x","x","x",null,"","","","","","","","",""]
["x",null,"x","x",null,"x","x","x","x","x","x","x","x","x","x","x","x","x","x","x","x","x","x","x","x",null,"","","","","","","","",""]
["x",null,"x","x",null,"x","x","x","x","x","x","x","x","x","x","x","x","x","x","x","x","x","x","x","x",null,"","","","","","","","",""]
["x",null,"x","x",null,"x","x","x","x","x","x","x","x","x","x","x","x","x","x","x","x","x","x","x","x",null,"","","","","","","","",""]
["x",null,"x","x",null,"x","x","x","x","x","x","x","x","x","x","x","x","x","x","x","x","x","x","x","x",null,"","","","","","","","",""]
["x",null,"x","x",null,"x","x","x","x","x","x","x","x","x","x","x","x","x","x","x","x","x","x","x","x",null,"","","","","","","","",""]
["x","x","x","x","x","x","x","x","x","x","x","x","x","x","x","x","x","x","x","x","x","x","x","x","x","x","","","","","","","","",""]
["x",null,"x","x","x","x","x","x","x","x","x","x","x","x","x","x","x","x","x","x","x","x","x","x","x",null,"x","","","","","","","",""]
["x",null,"x","x","x","x","x","x","x","x","x","x","x","x","x","x","x","x","x","x","x","x","x","x","x",null,"x","","","","","","","",""]
["x",null,"x","x","x","x","x","x","x","x","x","x","x","x","x","x","x","x","x","x","x","x","x","x","x",null,"x","","","","","","","",""]
["x",null,"x","x","x","x","x","x","x","x","x","x","x","x","x","x","x","x","x","x","x","x","x","x","x",null,"x","","","","","","","",""]
["x",null,"x","x","x","x","x","x","x","x","x","x","x","x","x","x","x","x","x","x","x","x","x","x","x",null,"x","","","","","","","",""]
["x","x","x","x","x","x","x","x","x","x","x","x","x","x","x","x","x","x","x","x","x","x","x","x","x","x","","","","","","","","",""]
["x",null,"x","x","x","x","x","x","x","x","x","x","x","x","x","x","x","x","x","x",null,"x","x","x","x",null,"","x","","","","","","",""]
["x","x","x","x","x","x","x","x","x","x","x","x","x","x","x","x","x","x","x","x",null,"x","x","x","x","x","","x","","","","","","",""]
["x",null,"x","x","x","x","x","x","x","x","x","x","x","x","x","x","x","x","x","x",null,"x","x","x","x",null,"","x","","","","","","",""]
["x",null,"x","x","x","x","x","x","x","x","x","x","x","x","x","x","x","x","x","x",null,"x","x","x","x",null,"","x","","","","","","",""]
["x",null,"x","x","x","x","x","x","x","x","x","x","x","x","x","x","x","x","x","x",null,"x","x","x","x",null,"","x","","","","","","",""]
["x",null,"x","x","x","x","x","x","x","x","x","x","x","x","x","x","x","x","x","x",null,"x","x","x","x",null,"","x","","","","","","",""]
["x",null,"x","x","x","x","x","x","x","x","x","x","x","x","x","x","x","x","x","x",null,"x","x","x","x",null,"","x","","","","","","",""]
["x",null,"x","x","x","x","x",null,"x","x","x","x","x","x","x","x","x","x","x","x",null,"x","x","x","x",null,"","x","","","","","","",""]
["x",null,"x","x","x","x","x",null,"x","x","x","x","x","x","x","x","x","x","x","x",null,"x","x","x","x",null,"","x","","","","","","",""]
["x","x","x","x","x","x","x","x","x","x","x","x","x","x","x","x","x","x","x","x","x","x","x","x","x","x","","","","","","","","",""]
["x",null,"x","x","x","x","x","x","x","x","x","x","x","x","x","x","x","x","x","x","x",null,"x","x","x",null,"","","x","","","","","",""]
["x",null,"x","x","x","x","x","x","x","x","x","x","x","x","x","x","x","x","x","x","x",null,"x","x","x",null,"","","x","","","","","",""]
["x",null,"x","x","x","x","x","x","x","x","x","x","x","x","x","x","x","x","x","x","x",null,"x","x","x",null,"","","x","","","","","",""]
["x",null,"x","x","x","x","x","x","x","x","x","x","x","x","x","x","x","x","x","x","x",null,"x","x","x",null,"","","x","","","","","",""]
["x",null,"x","x","x","x","x","x","x","x","x","x","x","x","x","x","x","x","x","x","x",null,"x","x","x",null,"","","x","","","","","",""]
["x","x","x","x","x","x","x","x","x","x","x","x","x","x","x","x","x","x","x","x","x","x","x","x","x","x","","","","","","","","",""]
["x",null,"x","x","x","x","x","x","x","x","x","x","x","x","x","x","x","x","x","x","x","x",null,"x","x",null,"","","","x","","","","",""]
["x",null,"x","x","x","x","x","x","x","x","x","x","x","x","x","x","x","x","x","x","x","x",null,"x","x",null,"","","","x","","","","",""]
["x",null,"x","x","x","x","x","x","x","x","x","x","x","x","x","x","x","x","x","x","x","x",null,"x","x",null,"","","","x","","","","",""]
["x",null,"x","x","x","x","x","x","x","x","x","x","x","x","x","x","x","x","x","x","x","x",null,"x","x",null,"","","","x","","","","",""]
["x",null,"x","x","x","x","x","x","x","x","x","x","x","x","x","x","x","x","x","x","x","x",null,"x","x",null,"","","","x","","","","",""]
["x","x","x","x","x","x","x","x","x","x","x","x","x","x","x","x","x","x","x","x","x","x","x","x","x","x","","","","","","","","",""]
["x",null,"x","x","x","x","x","x","x","x","x","x","x","x","x","x","x","x","x","x","x","x","x","x","x",null,"","","","","","","","","",null,null,null,null,null,"x"]
["x",null,"x","x","x","x","x","x","x","x","x","x","x","x","x","x","x","x","x","x","x","x","x","x","x",null,"","","","","","","","","",null,null,null,null,null,"x"]
["x",null,"x","x","x","x","x","x","x","x","x","x","x","x","x","x","x","x","x","x","x","x","x","x","x",null,"","","","","","","","","",null,null,null,null,null,"x"]
["x",null,"x","x","x","x","x","x","x","x","x","x","x","x","x","x","x","x","x","x","x","x","x","x","x",null,"","","","","","","","","",null,null,null,null,null,"x"]
["x","x","x","x","x","x","x","x","x","x","x","x","x","x","x","x","x","x","x","x","x","x","x","x","x","x","","","","","","","","",""]
["x",null,"x","x","x","x","x","x","x","x","x","x",null,"x","x","x","x","x","x","x","x","x","x","x","x",null,"","","","","","","","","",null,null,null,null,null,"x"]
["x",null,"x","x","x","x","x","x","x","x","x","x",null,"x","x","x","x","x","x","x","x","x","x","x","x",null,"","","","","","","","","",null,null,null,null,null,"x"]
["x","x","x","x","x","x","x","x","x","x","x","x","x","x","x","x","x","x","x","x","x","x","x","x","x","x","","","","","","","","",""]
["x",null,"x","x","x","x","x","x","x","x","x","x","x","x","x","x","x","x","x","x","x","x","x","x","x",null,"","","","","","","","",""]
["x",null,"x","x","x","x","x","x","x","x","x","x","x","x","x","x","x","x","x","x","x","x","x","x","x",null,"","","","","","","","",""]
["x",null,"x","x","x","x","x","x","x","x","x","x","x","x","x","x","x","x","x","x","x","x","x","x","x",null,"","","","","","","","",""]
["x","x","x","x","x","x","x","x","x","x","x","x","x","x","x","x","x","x","x","x","x","x","x","x","x","x","","","","","","","","",""]
["x",null,"x","x","x","x","x","x","x","x","x","x","x","x","x","x","x","x","x","x","x","x","x","x","x",null,"","","","","x","","","",""]
["x",null,"x","x","x","x","x","x","x","x","x","x","x","x","x","x","x","x","x","x","x","x","x","x","x",null,"","","","","x","","","",""]
["x",null,"x","x","x","x","x","x","x","x","x","x","x","x","x","x","x","x","x","x","x","x","x","x","x",null,"","","","","x","","","",""]
["x",null,"x","x","x","x","x","x","x","x","x","x","x","x","x","x","x","x","x","x","x","x","x","x","x",null,"","","","","x","","","",""]
["x",null,"x","x","x","x","x","x","x","x","x","x","x","x","x","x","x","x","x","x","x","x","x","x","x",null,"","","","","x","","","",""]
["x",null,"x","x","x","x","x","x","x","x","x","x","x","x","x","x","x","x","x","x","x","x","x","x","x",null,"","","","","x","","","",""]
["x",null,"x","x","x","x","x","x","x","x","x","x","x","x","x","x","x","x","x","x","x","x","x","x","x",null,"","","","","x","","","",""]
["x",null,"x","x","x","x","x","x","x","x","x","x","x","x","x","x","x","x","x","x","x","x","x","x","x",null,"","","","","x","","","",""]
["x",null,"x","x","x","x","x","x","x","x","x","x","x","x","x","x","x","x","x","x","x","x","x","x","x",null,"","","","","x","","","",""]
["x",null,"x","x","x","x","x","x","x","x","x","x","x","x","x","x","x","x","x","x","x","x","x","x","x",null,"","","","","x","","","",""]
["x",null,"x","x","x","x","x","x","x","x","x","x","x","x","x","x","x","x","x","x","x","x","x","x","x",null,"","","","","x","","","",""]
["x",null,"x","x","x","x","x","x","x","x","x","x","x","x","x","x","x","x","x","x","x","x","x","x","x",null,"","","","","x","","","",""]
["x",null,"x","x","x","x","x","x","x","x","x","x","x","x","x","x","x","x","x","x","x","x","x","x","x",null,"","","","","x","","","",""]
["x",null,"x","x","x","x","x","x","x","x","x","x","x","x","x","x","x","x","x","x","x","x","x","x","x",null,"","","","","x","","","",""]
["x","x","x","x","x","x","x","x","x","x","x","x","x","x","x","x","x","x","x","x","x","x","x","x","x","x","","","","","","","","",""]
["x",null,"x","x","x","x","x","x","x","x","x","x","x","x","x","x","x","x","x","x","x","x","x","x","x",null,"","","","","","","","",""]
["x",null,"x","x","x","x","x","x","x","x","x","x","x","x","x","x","x","x","x","x","x","x","x","x","x",null,"","","","","","","","",""]
["x",null,"x","x","x","x","x","x","x","x","x","x","x","x","x","x","x","x","x","x","x","x","x","x","x",null,"","","","","","","","",""]
["x",null,"x","x","x","x","x","x","x","x","x","x","x","x","x","x","x","x","x","x","x","x","x","x","x",null,"","","","","","","","",""]
["x",null,"x","x","x","x","x","x","x","x","x","x","x","x","x","x","x","x","x","x","x","x","x","x","x",null,"","","","","","","","",""]
["x",null,"x","x","x","x","x","x","x","x","x","x","x","x","x","x","x","x","x","x","x","x","x","x","x",null,"","","","","","","","",""]
["x",null,"x","x","x","x","x","x","x","x","x","x","x","x","x","x","x","x","x","x","x","x","x","x","x",null,"","","","","","","","",""]
["x","x","x","x","x","x","x","x","x","x","x","x","x","x","x","x","x","x","x","x","x","x","x","x","x","x","","","","","","","","",""]
["x",null,"x","x","x","x","x","x","x","x","x","x","x","x","x","x","x","x","x","x","x","x","x","x","x",null,"","","","","","","","",""]
["x",null,"x","x","x","x","x","x","x","x","x","x","x","x","x","x","x","x","x","x","x","x","x","x","x",null,"","","","","","","","",""]
["x",null,"x","x","x","x","x","x","x","x","x","x","x","x","x","x","x","x","x","x","x","x","x","x","x",null,"","","","","","","","",""]
["x",null,"x","x","x","x","x","x","x","x","x","x","x","x","x","x","x","x","x","x","x","x","x","x","x",null,"","","","","","","","",""]
["x","x","x","x","x","x","x","x","x","x","x","x","x","x","x","x","x","x","x","x","x","x","x","x","x","x","","","","","","","","",""]
["x",null,null,"x","x","x","x","x","x","x","x","x","x","x","x","x","x","x","x","x","x","x","x","x","x",null,"","","","","","","","",""]
["x",null,null,"x","x","x","x","x","x","x","x","x","x","x","x","x","x","x","x","x","x","x","x","x","x",null,"","","","","","","","",""]
["x",null,null,"x","x","x","x","x","x","x","x","x","x","x","x","x","x","x","x","x","x","x","x","x","x",null,"","","","","","","","",""]
["x",null,null,"x","x","x","x","x","x","x","x","x","x","x","x","x","x","x","x","x","x","x","x","x","x",null,"","","","","","","","",""]
["x","x","x","x","x","x","x","x","x","x","x","x","x","x","x","x","x","x","x","x","x","x","x","x","x","x","","","","","","","","",""]
["x",null,null,"x","x","x","x","x","x","x","x","x","x","x","x","x","x","x","x","x","x","x","x","x","x",null,"","","","","","","","","",null,null,null,null,null,"x"]
["x",null,null,"x","x","x","x","x","x","x","x","x","x","x","x","x","x","x","x","x","x","x","x","x","x",null,"","","","","","","","","",null,null,null,null,null,"x"]
["x",null,"x","x","x","x","x","x","x","x","x","x","x","x","x","x","x","x","x","x","x","x","x","x","x",null,"","","","","","","","","",null,null,null,null,null,"x"]
["x","x","x","x","x","x","x","x","x","x","x","x","x","x","x","x","x","x","x","x","x","x","x","x","x","x","","","","","","","","",""]
["x",null,"x","x","x","x","x","x","x","x","x","x","x","x","x","x","x","x","x","x","x","x","x","x","x",null,"","","","","","","","","",null,null,null,null,null,"x"]
["x",null,"x","x","x","x","x","x","x","x","x","x","x","x","x","x","x","x","x","x","x","x","x","x","x",null,"","","","","","","","","",null,null,null,null,null,"x"]
["x","x","x","x","x","x","x","x","x","x","x","x","x","x","x","x","x","x","x","x","x","x","x","x","x","x","","","","","","","","",""]
["x",null,"x","x","x","x",null,"x","x","x","x","x","x","x","x","x","x","x","x","x","x","x","x","x","x",null,"","","","","","","","",""]
["x",null,"x","x","x","x",null,"x","x","x","x","x","x","x","x","x","x","x","x","x","x","x","x","x","x",null,"","","","","","","","",""]
["x","x","x","x","x","x","x","x","x","x","x","x","x","x","x","x","x","x","x","x","x","x","x","x","x","x","","","","","","","","",""]
["x",null,"x","x","x","x",null,"x","x","x","x","x","x","x","x","x","x","x","x","x","x","x","x","x","x",null,"","","","","","","","",""]
["x",null,"x","x","x","x",null,"x","x","x","x","x","x","x","x","x","x","x","x","x","x","x","x","x","x",null,"","","","","","","","",""]
["x","x","x","x","x","x","x","x","x","x","x","x","x","x","x","x","x","x","x","x","x","x","x","x","x","x","","","","","","","","",""]
["x",null,"x","x","x","x","x","x","x","x","x","x","x","x","x","x","x","x","x","x","x","x","x","x","x",null,"","","","","","","","",""]
["x",null,"x","x","x","x","x","x","x","x","x","x","x","x","x","x","x","x","x","x","x","x","x","x","x",null,"","","","","","","","",""]
["x","x","x","x","x","x","x","x","x","x","x","x","x","x","x","x","x","x","x","x","x","x","x","x","x","x","","","","","","","","",""]
["x",null,"x","x","x","x","x","x","x","x","x","x","x","x","x","x","x","x","x","x","x","x","x","x","x",null,"","","","","","","","",""]
["x",null,"x","x","x","x","x","x","x","x","x","x","x","x","x","x","x","x","x","x","x","x","x","x","x",null,"","","","","","","","",""]
["x","x","x","x","x","x","x","x","x","x","x","x","x","x","x","x","x","x","x","x","x","x","x","x","x","x","","","","","","","","",""]
["x",null,"x","x","x","x","x","x","x","x","x","x","x","x","x",null,null,null,null,null,"x","x","x","x",null,null,"","","","","","",null,"","x"]
["x",null,"x","x","x","x","x","x","x","x","x","x","x","x","x",null,null,null,null,null,"x","x","x","x",null,null,"","","","","","",null,"","x"]
["x",null,"x","x","x","x","x","x","x","x","x","x","x","x","x",null,null,null,null,null,"x","x","x","x",null,null,"","","","","","",null,"","x"]
["x",null,"x","x","x","x","x","x","x","x","x","x","x","x","x",null,null,null,null,null,"x","x","x","x",null,null,"","","","","","",null,"","x"]
["x",null,"x","x","x","x","x","x","x","x","x","x","x","x","x",null,null,null,null,null,"x","x","x","x",null,null,"","","","","","",null,"","x"]
["x",null,"x","x","x","x","x","x","x","x","x","x","x","x","x",null,null,null,null,null,"x","x","x","x",null,null,"","","","","","",null,"","x"]
["x",null,"x","x","x","x","x","x","x","x","x","x","x","x","x",null,null,null,null,null,"x","x","x","x",null,null,"","","","","","",null,"","x"]
["x",null,"x","x","x","x","x","x","x","x","x","x","x","x","x",null,null,null,null,null,"x","x","x","x",null,null,"","","","","","",null,"","x"]
["x",null,"x","x","x","x","x","x","x","x","x","x","x","x","x",null,null,null,null,null,"x","x","x","x",null,null,"","","","","","",null,"","x"]
["x",null,"x","x","x","x","x","x","x","x","x","x","x","x","x",null,null,null,null,null,"x","x","x","x",null,null,"","","","","","",null,"","x"]
["x",null,"x","x","x","x","x","x","x","x","x","x","x","x","x",null,null,null,null,null,"x","x","x","x",null,null,"","","","","","",null,"","x"]
["x",null,"x","x","x","x","x","x","x","x","x","x","x","x","x",null,null,null,null,null,"x","x","x","x",null,null,"","","","","","",null,"","x"]
["x",null,"x","x","x","x","x","x","x","x","x","x","x","x","x",null,null,null,null,null,"x","x","x","x",null,null,"","","","","","",null,"","x"]
["x",null,"x","x","x","x","x","x","x","x","x","x","x","x","x",null,null,null,null,null,"x","x","x","x",null,null,"","","","","","",null,"","x"]
["x","x","x","x","x","x","x","x","x","x","x","x","x","x","x","x","x","x","x","x","x","x","x","x","x",null,"","","","","","","","",""]
["x",null,"x","x","x","x","x","x","x","x","x","x","x","x",null,null,null,"x",null,null,"x","x","x","x",null,null,"","","","","","","",null,"",null,null,"x"]
["x",null,"x","x","x","x","x","x","x","x","x","x","x","x",null,null,null,"x",null,null,"x","x","x","x",null,null,"","","","","","","",null,"",null,null,"x"]
["x",null,"x","x","x","x","x","x","x","x","x","x","x","x",null,null,null,"x",null,null,"x","x","x","x",null,null,"","","","","","","",null,"",null,null,"x"]
["x","x","x","x","x","x","x","x","x","x","x","x","x","x","x","x","x","x","x","x","x","x","x","x","x",null,"","","","","","","","",""]
["x",null,"x","x","x","x","x","x","x","x","x","x","x","x",null,null,null,null,"x",null,"x","x","x","x",null,null,"","","","","","","","",null,null,null,null,"x"]
["x",null,"x","x","x","x","x","x","x","x","x","x","x","x",null,null,null,null,"x",null,"x","x","x","x",null,null,"","","","","","","","",null,null,null,null,"x"]
["x",null,"x","x","x","x","x","x","x","x","x","x","x","x",null,null,null,null,"x",null,"x","x","x","x",null,null,"","","","","","","","",null,null,null,null,"x"]
["x",null,"x","x","x","x","x","x","x","x","x","x","x","x",null,null,null,null,"x",null,"x","x","x","x",null,null,"","","","","","","","",null,null,null,null,"x"]
["x","x","x","x","x","x","x","x","x","x","x","x","x","x","x","x","x","x","x","x","x","x","x","x","x",null,"","","","","","","","",""]
["x",null,"x","x","x","x","x","x","x","x","x","x","x","x",null,null,null,null,null,null,"x","x","x","x","x",null,"","","","","","","","",null,null,null,null,null,null,null,"x"]
["x",null,"x","x","x","x","x","x","x","x","x","x","x","x",null,null,null,null,null,null,"x","x","x","x","x",null,"","","","","","","","",null,null,null,null,null,null,null,"x"]
["x",null,"x","x","x","x","x","x","x","x","x","x","x","x",null,null,null,null,null,null,"x","x","x","x","x",null,"","","","","","","","",null,null,null,null,null,null,null,"x"]
["x",null,"x","x","x","x","x","x","x","x","x","x","x","x",null,null,null,null,null,null,"x","x","x","x","x",null,"","","","","","","","",null,null,null,null,null,null,null,"x"]
["x",null,"x","x","x","x","x","x","x","x","x","x","x","x",null,null,null,null,null,null,"x","x","x","x","x",null,"","","","","","","","",null,null,null,null,null,null,null,"x"]

{"sheet":"meta_data","index":7,"n_rows":43,"n_cols":6,"rows_kept":43,"cut":false,"hidden":true,"merged":[]}
["Key","Beskrivelse","trigger_code","Indicates wether the algo shall loop through the matrix on releated column"]
[{"$f":"+TRANSPOSE(sjekkliste_noter_matrix!A1:AP1)","v":"F0"},"Full",true]
["E0","Endring",false]
["F1","Har selskapet ansatte",false]
["F2","Ytelsespensjon",true,null,null,"ikke lengre i bruk"]
["F3","FOU",false]
["F4","langs. Tilvirkningskontrakter",true,null,null,"ikke lengre i bruk"]
["F5","Datterselskap",false]
["F6","Konsernregnskap",false]
["F7","Restrukturering",true,null,null,"ikke lengre i bruk"]
["F8","Fusjon",true,null,null,"ikke lengre i bruk"]
["F9","Fisjon",true,null,null,"ikke lengre i bruk"]
["F8F9","Fusjon og Fisjon",false,null,null,"ikke lengre i bruk"]
["F10","Samvirkeforetak",false]
["F11","Goodwill",false]
["F12","Borettslag",true]
["F13","Betalingsforetak",true]
["F14","E-pengeforetak",true]
["F15","Eiendomsmegler",true]
["F16","Inkassovirksomhet",true]
["F17","Ingen av delene",false]
["F18","Datter",false]
["F19","TS",false]
["F20","FKV",false]
["F21","Andre aksjer",true,null,null,"ikke lengre i bruk"]
["F22","Barnehage",true]
["E1","Policy",false]
["E2","Driftsmidler",false]
["E3","Datter",false]
["E4","TS",false]
["E5","FKV",false]
["E6","Fordring mm",false]
["E7","Pensjon",false,null,null,"ikke lengre i bruk"]
["E8","Ytelser",false,null,null,"ikke lengre i bruk"]
["E9","Regnskapsprinsipper",false]
["E10","Borettslag",false]
["E11","Betalingsforetak",false]
["E12","E-pengeforetak",false]
["E13","Eiendomsmegler",false]
["E14","Inkassovirksomhet",false]
["E15","Ingen av delene",true]
["E16","Pliktige noteopplysninger",true]
["E17","Barnehage",false]

{"sheet":"Sjekkliste formelle forhold","index":8,"n_rows":72,"n_cols":11,"rows_kept":72,"cut":false,"hidden":false,"merged":[[4,0,4,7],[18,1,19,1],[41,1,42,1],[41,4,42,4],[41,5,42,5],[41,6,42,6],[41,7,42,7]]}
["Formelle forhold i årsregnskapet - små foretak",null,null,"Utfylt:",{"$f":"+FrontPage!B4","v":0}]
["Klient:",{"$f":"+FrontPage!B2","v":0},null,"Review:",{"$f":"+FrontPage!B5","v":0},null,null,null,null,"Ikke besvart:",{"$f":"FrontPage!B10","v":24}]
["År:",{"$f":"FrontPage!B3","v":2024},null,null,null,null,null,null,null,"Ja-svar:",{"$f":"FrontPage!C10","v":0}]
[null,null,null,null,null,null,null,null,null,"Nei-svar:",{"$f":"FrontPage!D10","v":0}]
["Enkelte selskaper har tilleggskrav ihht regnskapsloven eller forskrifter til regnskapsloven, disse fremgår nederst i denne sjekklisten. ",null,null,null,null,null,null,null,null,"IA-svar:",{"$f":"FrontPage!E10","v":12}]
[null,"Spørsmål",null,"Ref. ","Ja","Nei","I/A","Kommentar",null,"Sum:",{"$f":"SUM(K2:K5)","v":36}]
["Generelt"]
[null,"Inneholder årsregnskapet:",null,"rskl § 3-2"]
[1,"• resultatregnskap",null,null,null,null,null,null,null,{"$f":"IF(F9<>\"\",\"Du har satt X for at forholdet ikke er avklart. Gi en nærmere foklaring i kommentarfeltet.\",\"\")","v":""}]
[{"$f":"1+A9","v":2},"• balanse",null,null,null,null,null,null,null,{"$f":"IF(F10<>\"\",\"Du har satt X for at forholdet ikke er avklart. Gi en nærmere foklaring i kommentarfeltet.\",\"\")","v":""}]
[{"$f":"1+A10","v":3},"• noter",null,null,null,null,null,null,null,{"$f":"IF(F11<>\"\",\"Du har satt X for at forholdet ikke er avklart. Gi en nærmere foklaring i kommentarfeltet.\",\"\")","v":""}]
[{"$f":"1+A11","v":4},"• eventuelt en egen oppstilling over endringer i egenkapitalen",null,null,null,null,null,null,null,{"$f":"IF(F12<>\"\",\"Du har satt X for at forholdet ikke er avklart. Gi en nærmere foklaring i kommentarfeltet.\",\"\")","v":""}]
[{"$f":"1+A12","v":5},"Er det gitt referanser til noteopplysninger fra resultatregnskap og balanse?",null,null,null,null,null,null,null,{"$f":"IF(F13<>\"\",\"Du har satt X for at forholdet ikke er avklart. Gi en nærmere foklaring i kommentarfeltet.\",\"\")","v":""}]
["Valuta og språk"]
[{"$f":"+A13+1","v":6},"Er regnskapsvalutaen norske kroner, alternativt den funksjonelle valutaen?",null,"rskl § 3-4",null,null,null,null,null,{"$f":"IF(F15<>\"\",\"Du har satt X for at forholdet ikke er avklart. Gi en nærmere foklaring i kommentarfeltet.\",\"\")","v":""}]
[{"$f":"+A15+1","v":7},"Er årsregnskapet presentert i norske kroner, euro, eller den funksjonelle valutaen?",null,null,null,null,null,null,null,{"$f":"IF(F16<>\"\",\"Du har satt X for at forholdet ikke er avklart. Gi en nærmere foklaring i kommentarfeltet.\",\"\")","v":""}]
[{"$f":"+A16+1","v":8},"Er årsregnskapet og årsberetningen på norsk?\nSkattekontoret kan ved enkeltvedtak tillate at årsregnskapet avlegges på et annet språk, jf. Rskl § 3-4, 3. ledd.",null,null,null,null,null,null,null,{"$f":"IF(F17<>\"\",\"Du har satt X for at forholdet ikke er avklart. Gi en nærmere foklaring i kommentarfeltet.\",\"\")","v":""}]
["Sammenligning med foregående årsregnskap"]
[null,"Etter hovedregelen i rskl skal tallene omarbeides for å bli sammenlignbare, med mindre annet følger av god regnskapsskikk. Små foretak kan unnlate å omarbeide sammenligningstallene. ",null,"rskl § 6-6 "]
[null,null,null,"NRS 8 pkt 3.3.1"]
[{"$f":"+A17+1","v":9},"Er det vist tilsvarende tall fra foregående årsregnskap, og er de omarbeidet i nødvendig grad? ",null,"rskl § 6-6",null,null,null,null,null,{"$f":"IF(F21<>\"\",\"Du har satt X for at forholdet ikke er avklart. Gi en nærmere foklaring i kommentarfeltet.\",\"\")","v":""}]
["Oppdeling eller sammenslåing av poster"]
[null,"Når den regnskapspliktiges forhold tilsier det, skal det i resultatregnskap og balanse foretas en ytterligere oppdeling av poster og tilføyelser av poster og delsummer som ikke inngår i oppstillingsplanene.",null,"rskl § 6-3"]
[null,"Dette kan for eksempel gjelde tilføyelse av egen post for lån fra aksjonær."]
[{"$f":"+A21+1","v":10},"Er det foretatt en ytterligere oppdeling av resultatregnskap og balanse eller tilføyelse av poster eller delsummer der foretakets forhold tilsier det?",null,"rskl § 6-3",null,null,null,null,null,{"$f":"IF(F25<>\"\",\"Du har satt X for at forholdet ikke er avklart. Gi en nærmere foklaring i kommentarfeltet.\",\"\")","v":""}]
[null,"Poster skal slås sammen hvis sammenslåingen fører til et mer oversiktlig årsregnskap, med følgende unntak:\n• Bare linjer innenfor hvert romertall kan slås sammen, og linjer kan ikke slås sammen på tvers av romertall\n• Egenkapitalposter kan ikke slås sammen",null,"rskl § 6-3"]
[{"$f":"+A25+1","v":11},"Er poster slått sammen i resultatregnskap og balanse hvis sammenslåingen fører til et mer oversiktlig årsregnskap?",null,"rskl § 6-3",null,null,null,null,null,{"$f":"IF(F27<>\"\",\"Du har satt X for at forholdet ikke er avklart. Gi en nærmere foklaring i kommentarfeltet.\",\"\")","v":""}]
[{"$f":"+A27+1","v":12},"Er poster i oppstillingsplanen for resultatregnskapet som er slått sammen spesifisert i note?",null,"rskl § 7-38",null,null,null,null,null,{"$f":"IF(F28<>\"\",\"Du har satt X for at forholdet ikke er avklart. Gi en nærmere foklaring i kommentarfeltet.\",\"\")","v":""}]
["Underskrift"]
[{"$f":"+A28+1","v":13},"Er årsregnskapet underskrevet av samtlige styremedlemmer og eventuelt av daglig leder, alternativt av deltakerne eller medlemmene hvis foretaket ikke har styre eller daglig leder?",null,"rskl § 3-5",null,null,null,null,null,{"$f":"IF(F30<>\"\",\"Du har satt X for at forholdet ikke er avklart. Gi en nærmere foklaring i kommentarfeltet.\",\"\")","v":""}]
[{"$f":"+A30+1","v":14},"Dersom den som skal underskrive har innvendinger mot årsregnskapet, har vedkommende underskrevet med påtegnet forbehold og gitt nærmere redegjørelse?",null,"rskl § 3-5",null,null,null,null,null,{"$f":"IF(F31<>\"\",\"Du har satt X for at forholdet ikke er avklart. Gi en nærmere foklaring i kommentarfeltet.\",\"\")","v":""}]
[{"$f":"+A31+1","v":15},"Er årsregnskapet avlagt innenfor lovens frist?",null,"rskl § 3-1",null,null,null,null,null,{"$f":"IF(F32<>\"\",\"Du har satt X for at forholdet ikke er avklart. Gi en nærmere foklaring i kommentarfeltet.\",\"\")","v":""}]
["Resultatregnskapet"]
[{"$f":"+A32+1","v":16},"Er resultatregnskapet satt opp i henhold til Regnskapslovens oppstillingsplan?",null,"rskl § 6-1",null,null,null,null,null,{"$f":"IF(F34<>\"\",\"Du har satt X for at forholdet ikke er avklart. Gi en nærmere foklaring i kommentarfeltet.\",\"\")","v":""}]
[null,"Det ikke tillatt å klassifisere resultatposter som ekstraordinære. Det kan imidlertid foreligge særlige poster som krever spesifikasjon på egen linje, for eksempel en uvanlig stor nedskrivning av varelager eller restruktureringskostnader. ",null,"rskl § 6-1"]
[null,"Små foretak kan velge om prinsippendringer og korrigeringer av tidligere års feil skal føres etter hovedregelen, dvs direkte over egenkapitalen, eller resultatføres. Dersom virkningen av en prinsippendring eller korrigering av en vesentlig feil i tidlgiere årsregnskap resultatføres, skal den spesifiseres på egen linje som en særlig post. ",null,"rskl § 4-3"]
[{"$f":"+A34+1","v":17},"Dersom det foreligger særlige poster, er disse spesifisert og benevnt etter inntektens eller kostnadens innhold?",null,"NRS 8 pkt 7.3 "]
["Resultatdisponering",null,null,null,null,null,null,{"$f":"IF(F38<>\"\",\"Du har satt X for at forholdet ikke er avklart. Gi en nærmere foklaring i kommentarfeltet.\",\"\")","v":""}]
[null,"Små foretak kan velge om forslag til anvendelse av overskudd eller dekning av tap skal stå i tilknytning til resultatregnskapet, i eventuell oppstilling over endringer i egenkapitalen, i noter eller årsberetningen. NRS 8 anbefaler at opplysningen gis i tilknytning til resultatregnskapet, eventuelt i årsberetningen.",null,"NRS 8 pkt 3.1",null,null,null,null,null,{"$f":"IF(F39<>\"\",\"Du har satt X for at forholdet ikke er avklart. Gi en nærmere foklaring i kommentarfeltet.\",\"\")","v":""}]
[{"$f":"+A37+1","v":18},"Er det opplyst om forslag til anvendelse av overskudd eller dekning av tap i samsvar med bestemmelsene i regnskapsstandarden?",null,"NRS 8 pkt 3.1",null,null,null,null,null,{"$f":"IF(F40<>\"\",\"Du har satt X for at forholdet ikke er avklart. Gi en nærmere foklaring i kommentarfeltet.\",\"\")","v":""}]
[{"$f":"+A40+1","v":19},"Er det gitt opplysning om eventuelt tilleggsutbytte eller ekstraordinært utbytte som er regnskapsført i uttaksåret sammen med disponeringen av årets resultat, samt dekning av dette, slik NRS 8 sier at det bør spesifiseres?",null,"NRS 8 pkt 5.3.1",null,null,null,null,null,{"$f":"IF(F41<>\"\",\"Du har satt X for at forholdet ikke er avklart. Gi en nærmere foklaring i kommentarfeltet.\",\"\")","v":""}]
[{"$f":"+A41+1","v":20},"Er det gitt opplysning i årsregnskap eller årsberetning om konsernbidrag fra morselskap til datterselskap som er ført som investering i morselskapets regnskap?",null,"asl. § 8-5 og ",null,null,null,null,null,{"$f":"IF(F42<>\"\",\"Du har satt X for at forholdet ikke er avklart. Gi en nærmere foklaring i kommentarfeltet.\",\"\")","v":""}]
[null,null,null,"§ 8-2"]
["Balansen",null,null," "]
[{"$f":"+A42+1","v":21},"Er balansen spesifisert i henhold til regnskapslovens oppstillingsplan, evt.etter likviditet, dersom dette gir mer relevante og pålitelige opplysninger?",null,"rskl § 6-2",null,null,null,null,null,{"$f":"IF(F45<>\"\",\"Du har satt X for at forholdet ikke er avklart. Gi en nærmere foklaring i kommentarfeltet.\",\"\")","v":""}]
[{"$f":"+A45+1","v":22},"Er eiendeler bestemt til varig eie eller bruk, og fordringer som ikke skal tilbakebetales innen ett år, klassifisert som anleggsmidler, og øvrige eiendeler klassifisert som omløpsmidler?",null,null,null,null,null,null,null,{"$f":"IF(F46<>\"\",\"Du har satt X for at forholdet ikke er avklart. Gi en nærmere foklaring i kommentarfeltet.\",\"\")","v":""}]
[null,"Beholding av egne aksjer: Pålydende på egne aksjer skal enten føres på en egen linje under aksjekapital, eller trekkes ut av linjen for aksjekapital. Dersom man velger å trekke det ut av linjen for aksjekapital skal dette spesifiseres i note. Evt. overskytende beløp skal føres mot annen egenkapital. Dersom kjøpesummen er lavere enn pålydende skal differansen føres på linjen for annen innskutt egenkapital."]
[{"$f":"+A46+1","v":23},"Er eventuell beholdning av egne aksjer ført opp i samsvar med regnskapslovens krav?",null,"rskl § 6-2, 2. ledd.",null,null,null,null,null,{"$f":"IF(F48<>\"\",\"Du har satt X for at forholdet ikke er avklart. Gi en nærmere foklaring i kommentarfeltet.\",\"\")","v":""}]
[{"$f":"+A48+1","v":24},"Inngår tilleggsutbytte eller ekstraordinært utbytte som er besluttet før balansedagen, og som står ubetalt på balansedagen, i kortsiktig gjeld?",null,"NRS 8 pkt 6.2.1.7.1"]
["Konsernregnskap"]
[null,"Små foretak har ikke plikt til å utarbeide konsernregnskap. Dersom et av selskapene i konsernet har aksjer, grunnfondsbevis eller obligasjoner notert på børs eller lignende, har selskapet allikevel plikt til å utarbeide konsernregnskap.",null,"rskl § 3-2, 4. ledd"]
[null,"Hvis små foretak frivillig utarbeider konsernregnskap, kan de forenklede reglene for små foretak brukes også i konsernregnskapet. Konsernregnskapet må utarbeides etter ensartede regnskapsprinsipper og vurderingsregler. ",null,"NRS 8 pkt 2.1.1."]
[null,"Morselskapet bør bruke konsernets regnskapsprinsipper og vurderingsregler i selskapsregnskapet.",null,"NRS 8 pkt 2.1.1."]
[null,"Dersom små foretak utarbeider konsernregnskap, skal alle formelle forhold knyttet til konsernregnskap følges:"]
[{"$f":"+A49+1","v":25},"Er eventuelle minoritetsinteresser ført opp under egenkapital i balansen og som fradrag i årsresultatet i resultatregnskapet; slik at regnskapet viser årsresultat før og etter minoritetsinteresser?",null,"rskl § 6-5"]
[{"$f":"+A55+1","v":26},"Bygger konsernregnskapet på de konsoliderte selskapenes selskapsregnskap? Dersom datterselskap ikke benytter samme prinsipper som konsernet, er disse regnskapene da omarbeidet for konsolideringsformål?",null,"rskl § 3-6"]
[{"$f":"+A56+1","v":27},"Dersom utenlandske datterselskap har et annet regnskapsår enn morselskapet, bygger da konsernregnskapet på et delårsregnskap som er avgitt ved regnskapsårets slutt (eventuelt max 3 mnd +/- med tillegg for vesentlige transaksjoner)?"]
["Tilleggskrav for borettslag"]
[null,"Borettslag kan opplyse om regnskapsårets og etterfølgende års budsjettall i tillegg til sammenligningstall og i oppstillingen over disponible midler."]
[{"$f":"+A57+1","v":28},"Er det utarbeidet en egen oppstilling over disponible midler og endringer i disse? (kan evt. gjøres i note)",null,"Forskrift om årsregnskap og årsberetning for borettslag § 2"]
["Tilleggskrav for betalingsforetak"]
[{"$f":"+A60+1","v":29},"Dersom foretaket driver andre forretningsaktiviteter enn betalingstjenester, er regnskapet for betalingstjenestevirksomheten fremstilt separat?",null,"Finansforetaksforskriften § 2-6"]
["Tilleggskrav for e-pengeforetak"]
[{"$f":"+A62+1","v":30},"Dersom foretaket driver andre forretningsaktiviteter enn betalingstjenester og e-pengevirksomhet, er regnskapet for betalingstjenestevirksomheten/e-pengevirksomheten fremstilt separat?",null,"Finansforetaksforskriften § 2-10"]
["Tilleggskrav for eiendomsmeglere"]
[{"$f":"+A64+1","v":31},"Er det påsett at klientmidler ikke er oppført i selskapets balanse?",null,"Forskrift om årsregnskap for eiendomsmeglere § 2"]
["Tilleggskrav for inkassovirksomhet"]
[36,"Er inntekter fra inkassosaker presentert på egen linje under salgsinntekter?",null,"Forskrift om årsregnskap for inkassovirksomhet § 3-1"]
[37,"Er opptjente, ikke fakturerte inntekter fra inkassosaker presentert på egen linje i balansen under kundefordringer som opptjente, ikke fakturerte inkassosaker?",null,"§ 3-2"]
[38,"Dersom mottatt betaling fra inkassosaken overstiger opptjent inntekt fra inkassosaken, er det overskytende presentert i balansen på egen linje som mottatte, ikke opptjente inkassoinntekter under kortsiktig gjeld?",null,"§ 3-3"]
[39,"Er det påsett at klientmidler ikke er oppført i selskapets balanse?",null,"§ 3-4"]
[40,"Er utlegg som inkassovirksomheten har på vegne av oppdragsgiver presentert på egen linje under andre fordringer?",null,"§ 3-5"]

{"sheet":"sjekkliste_formelle_matrix","index":9,"n_rows":73,"n_cols":42,"rows_kept":73,"cut":false,"hidden":true,"merged":[]}
[{"$f":"sjekkliste_noter_matrix!A1","v":"F0"},{"$f":"sjekkliste_noter_matrix!B1","v":"E0"},{"$f":"sjekkliste_noter_matrix!C1","v":"F1"},{"$f":"sjekkliste_noter_matrix!D1","v":"F2"},{"$f":"sjekkliste_noter_matrix!E1","v":"F3"},{"$f":"sjekkliste_noter_matrix!F1","v":"F4"},{"$f":"sjekkliste_noter_matrix!G1","v":"F5"},{"$f":"sjekkliste_noter_matrix!H1","v":"F6"},{"$f":"sjekkliste_noter_matrix!I1","v":"F7"},{"$f":"sjekkliste_noter_matrix!J1","v":"F8"},{"$f":"sjekkliste_noter_matrix!K1","v":"F9"},{"$f":"sjekkliste_noter_matrix!L1","v":"F8F9"},{"$f":"sjekkliste_noter_matrix!M1","v":"F10"},{"$f":"sjekkliste_noter_matrix!N1","v":"F11"},{"$f":"sjekkliste_noter_matrix!O1","v":"F12"},{"$f":"sjekkliste_noter_matrix!P1","v":"F13"},{"$f":"sjekkliste_noter_matrix!Q1","v":"F14"},{"$f":"sjekkliste_noter_matrix!R1","v":"F15"},{"$f":"sjekkliste_noter_matrix!S1","v":"F16"},{"$f":"sjekkliste_noter_matrix!T1","v":"F17"},{"$f":"sjekkliste_noter_matrix!U1","v":"F18"},{"$f":"sjekkliste_noter_matrix!V1","v":"F19"},{"$f":"sjekkliste_noter_matrix!W1","v":"F20"},{"$f":"sjekkliste_noter_matrix!X1","v":"F21"},"F22",{"$f":"sjekkliste_noter_matrix!Z1","v":"E1"},{"$f":"sjekkliste_noter_matrix!AA1","v":"E2"},{"$f":"sjekkliste_noter_matrix!AB1","v":"E3"},{"$f":"sjekkliste_noter_matrix!AC1","v":"E4"},{"$f":"sjekkliste_noter_matrix!AD1","v":"E5"},{"$f":"sjekkliste_noter_matrix!AE1","v":"E6"},{"$f":"sjekkliste_noter_matrix!AF1","v":"E7"},{"$f":"sjekkliste_noter_matrix!AG1","v":"E8"},{"$f":"sjekkliste_noter_matrix!AH1","v":"E9"},{"$f":"sjekkliste_noter_matrix!AI1","v":"E10"},{"$f":"sjekkliste_noter_matrix!AJ1","v":"E11"},{"$f":"sjekkliste_noter_matrix!AK1","v":"E12"},{"$f":"sjekkliste_noter_matrix!AL1","v":"E13"},{"$f":"sjekkliste_noter_matrix!AM1","v":"E14"},{"$f":"sjekkliste_noter_matrix!AN1","v":"E15"},"E16","E17"]
["x","x","x","x","x","x","x","x","x","x","x","x","x","x","x","x","x","x","x","x","x","x","x","x","x","x","x","x","x","x","x","x","x","x","x","x","x","x","x","x","x","x"]
["x","x","x","x","x","x","x","x","x","x","x","x","x","x","x","x","x","x","x","x","x","x","x","x","x","x","x","x","x","x","x","x","x","x","x","x","x","x","x","x","x","x"]
["x","x","x","x","x","x","x","x","x","x","x","x","x","x","x","x","x","x","x","x","x","x","x","x","x","x","x","x","x","x","x","x","x","x","x","x","x","x","x","x","x","x"]
["x","x","x","x","x","x","x","x","x","x","x","x","x","x","x","x","x","x","x","x","x","x","x","x","x","x","x","x","x","x","x","x","x","x","x","x","x","x","x","x","x","x"]
["x","x","x","x","x","x","x","x","x","x","x","x","x","x","x","x","x","x","x","x","x","x","x","x","x","x","x","x","x","x","x","x","x","x","x","x","x","x","x","x","x","x"]
["x","x","x","x","x","x","x","x","x","x","x","x","x","x","x","x","x","x","x","x","x","x","x","x","x","x","x","x","x","x","x","x","x","x","x","x","x","x","x","x","x","x"]
["x",null,"x","x","x","x","x","x","x","x","x","x","x","x","x","x","x","x","x","x","x","x","x","x","x"]
["x",null,"x","x","x","x","x","x","x","x","x","x","x","x","x","x","x","x","x","x","x","x","x","x","x"]
["x",null,"x","x","x","x","x","x","x","x","x","x","x","x","x","x","x","x","x","x","x","x","x","x","x"]
["x",null,"x","x","x","x","x","x","x","x","x","x","x","x","x","x","x","x","x","x","x","x","x","x","x"]
["x",null,"x","x","x","x","x","x","x","x","x","x","x","x","x","x","x","x","x","x","x","x","x","x","x"]
["x",null,"x","x","x","x","x","x","x","x","x","x","x","x","x","x","x","x","x","x","x","x","x","x","x"]
["x","x","x","x","x","x","x","x","x","x","x","x","x","x","x","x","x","x","x","x","x","x","x","x","x","x"]
["x",null,"x","x","x","x","x","x","x","x","x","x","x","x","x","x","x","x","x","x","x","x","x","x","x"]
["x",null,"x","x","x","x","x","x","x","x","x","x","x","x","x","x","x","x","x","x","x","x","x","x","x"]
["x",null,"x","x","x","x","x","x","x","x","x","x","x","x","x","x","x","x","x","x","x","x","x","x","x"]
["x","x","x","x","x","x","x","x","x","x","x","x","x","x","x","x","x","x","x","x","x","x","x","x","x","x"]
["x",null,"x","x","x","x","x","x","x","x","x","x","x","x","x","x","x","x","x","x","x","x","x","x","x"]
["x",null,"x","x","x","x","x","x","x","x","x","x","x","x","x","x","x","x","x","x","x","x","x","x","x"]
["x",null,"x","x","x","x","x","x","x","x","x","x","x","x","x","x","x","x","x","x","x","x","x","x","x"]
["x","x","x","x","x","x","x","x","x","x","x","x","x","x","x","x","x","x","x","x","x","x","x","x","x","x"]
["x","x","x","x","x","x","x","x","x","x","x","x","x","x","x","x","x","x","x","x","x","x","x","x","x"]
["x",null,"x","x","x","x","x","x","x","x","x","x","x","x","x","x","x","x","x","x","x","x","x","x","x"]
["x",null,"x","x","x","x","x","x","x","x","x","x","x","x","x","x","x","x","x","x","x","x","x","x","x"]
["x",null,"x","x","x","x","x","x","x","x","x","x","x","x","x","x","x","x","x","x","x","x","x","x","x"]
["x",null,"x","x","x","x","x","x","x","x","x","x","x","x","x","x","x","x","x","x","x","x","x","x","x"]
["x",null,"x","x","x","x","x","x","x","x","x","x","x","x","x","x","x","x","x","x","x","x","x","x","x"]
["x","x","x","x","x","x","x","x","x","x","x","x","x","x","x","x","x","x","x","x","x","x","x","x","x","x"]
["x",null,"x","x","x","x","x","x","x","x","x","x","x","x","x","x","x","x","x","x","x","x","x","x","x"]
["x",null,"x","x","x","x","x","x","x","x","x","x","x","x","x","x","x","x","x","x","x","x","x","x","x"]
["x",null,"x","x","x","x","x","x","x","x","x","x","x","x","x","x","x","x","x","x","x","x","x","x","x"]
["x","x","x","x","x","x","x","x","x","x","x","x","x","x","x","x","x","x","x","x","x","x","x","x","x","x"]
["x",null,"x","x","x","x","x","x","x","x","x","x","x","x","x","x","x","x","x","x","x","x","x","x","x"]
["x",null,"x","x","x","x","x","x","x","x","x","x","x","x","x","x","x","x","x","x","x","x","x","x","x"]
["x",null,"x","x","x","x","x","x","x","x","x","x","x","x","x","x","x","x","x","x","x","x","x","x","x"]
["x",null,"x","x","x","x","x","x","x","x","x","x","x","x","x","x","x","x","x","x","x","x","x","x","x"]
["x","x","x","x","x","x","x","x","x","x","x","x","x","x","x","x","x","x","x","x","x","x","x","x","x","x"]
["x",null,"x","x","x","x","x","x","x","x","x","x","x","x","x","x","x","x","x","x","x","x","x","x","x"]
["x",null,"x","x","x","x","x","x","x","x","x","x","x","x","x","x","x","x","x","x","x","x","x","x","x"]
["x",null,"x","x","x","x","x","x","x","x","x","x","x","x","x","x","x","x","x","x","x","x","x","x","x"]
["x",null,"x","x","x","x","x","x","x","x","x","x","x","x","x","x","x","x","x","x","x","x","x","x","x"]
["x",null,"x","x","x","x","x","x","x","x","x","x","x","x","x","x","x","x","x","x","x","x","x","x","x"]
["x","x","x","x","x","x","x","x","x","x","x","x","x","x","x","x","x","x","x","x","x","x","x","x","x","x"]
["x",null,"x","x","x","x","x","x","x","x","x","x","x","x","x","x","x","x","x","x","x","x","x","x","x"]
["x",null,"x","x","x","x","x","x","x","x","x","x","x","x","x","x","x","x","x","x","x","x","x","x","x"]
["x",null,"x","x","x","x","x","x","x","x","x","x","x","x","x","x","x","x","x","x","x","x","x","x","x"]
["x",null,"x","x","x","x","x","x","x","x","x","x","x","x","x","x","x","x","x","x","x","x","x","x","x"]
["x",null,"x","x","x","x","x","x","x","x","x","x","x","x","x","x","x","x","x","x","x","x","x","x","x"]
["x","x","x","x","x","x","x","x","x","x","x","x","x","x","x","x","x","x","x","x","x","x","x","x","x","x"]
["x",null,"x","x","x","x","x",null,"x","x","x","x","x","x","x","x","x","x","x","x","x","x","x","x","x"]
["x",null,"x","x","x","x","x",null,"x","x","x","x","x","x","x","x","x","x","x","x","x","x","x","x","x"]
["x",null,"x","x","x","x","x",null,"x","x","x","x","x","x","x","x","x","x","x","x","x","x","x","x","x"]
["x",null,"x","x","x","x","x",null,"x","x","x","x","x","x","x","x","x","x","x","x","x","x","x","x","x"]
["x",null,"x","x","x","x","x",null,"x","x","x","x","x","x","x","x","x","x","x","x","x","x","x","x","x"]
["x",null,"x","x","x","x","x",null,"x","x","x","x","x","x","x","x","x","x","x","x","x","x","x","x","x"]
["x",null,"x","x","x","x","x",null,"x","x","x","x","x","x","x","x","x","x","x","x","x","x","x","x","x"]
["x","x","x","x","x","x","x","x","x","x","x","x","x","x","x","x","x","x","x","x","x","x","x","x","x","x"]
["x",null,"x","x","x","x","x","x","x","x","x","x","x","x","x",null,null,null,null,null,"x","x","x","x","x",null,null,null,null,null,null,null,null,null,"x"]
["x",null,"x","x","x","x","x","x","x","x","x","x","x","x","x",null,null,null,null,null,"x","x","x","x","x",null,null,null,null,null,null,null,null,null,"x"]
["x","x","x","x","x","x","x","x","x","x","x","x","x","x","x","x","x","x","x","x","x","x","x","x","x","x"]
["x",null,"x","x","x","x","x","x","x","x","x","x","x","x",null,"x",null,null,null,null,"x","x","x","x","x",null,null,null,null,null,null,null,null,null,null,"x"]
["x","x","x","x","x","x","x","x","x","x","x","x","x","x","x","x","x","x","x","x","x","x","x","x","x","x"]
["x",null,"x","x","x","x","x","x","x","x","x","x","x","x",null,null,"x",null,null,null,"x","x","x","x","x",null,null,null,null,null,null,null,null,null,null,null,"x"]
["x","x","x","x","x","x","x","x","x","x","x","x","x","x","x","x","x","x","x","x","x","x","x","x","x","x"]
["x",null,"x","x","x","x","x","x","x","x","x","x","x","x",null,null,null,"x",null,null,"x","x","x","x","x",null,null,null,null,null,null,null,null,null,null,null,null,"x"]
["x","x","x","x","x","x","x","x","x","x","x","x","x","x","x","x","x","x","x","x","x","x","x","x","x","x"]
["x",null,"x","x","x","x","x","x","x","x","x","x","x","x",null,null,null,null,"x",null,"x","x","x","x","x",null,null,null,null,null,null,null,null,null,null,null,null,null,"x"]
["x",null,"x","x","x","x","x","x","x","x","x","x","x","x",null,null,null,null,"x",null,"x","x","x","x","x",null,null,null,null,null,null,null,null,null,null,null,null,null,"x"]
["x",null,"x","x","x","x","x","x","x","x","x","x","x","x",null,null,null,null,"x",null,"x","x","x","x","x",null,null,null,null,null,null,null,null,null,null,null,null,null,"x"]
["x",null,"x","x","x","x","x","x","x","x","x","x","x","x",null,null,null,null,"x",null,"x","x","x","x","x",null,null,null,null,null,null,null,null,null,null,null,null,null,"x"]
["x",null,"x","x","x","x","x","x","x","x","x","x","x","x",null,null,null,null,"x",null,"x","x","x","x","x",null,null,null,null,null,null,null,null,null,null,null,null,null,"x"]
[null,null,null,null,null,null,null,null,null,null,null,null,null,null,null,null,null,null,null,null,null,null,null,null,null,null,null,null,null,null,null,null,null,null,null,null,null,null,"x"]

{"sheet":"F_Ubesv.","index":10,"n_rows":28,"n_cols":4,"rows_kept":28,"cut":false,"hidden":true,"merged":[]}
["Ikke besvart","Spørsmål",2018,"Kommentar"]
[1,"• resultatregnskap"]
[2,"• balanse"]
[3,"• noter"]
[4,"• eventuelt en egen oppstilling over endringer i egenkapitalen"]
[5,"Er det gitt referanser til noteopplysninger fra resultatregnskap og balanse?"]
[6,"Er regnskapsvalutaen norske kroner, alternativt den funksjonelle valutaen?"]
[7,"Er årsregnskapet presentert i norske kroner, euro, eller den funksjonelle valutaen?"]
[8,"Er årsregnskapet og årsberetningen på norsk?\nSkattekontoret kan ved enkeltvedtak tillate at årsregnskapet avlegges på et annet språk, jf. Rskl § 3-4, 3. ledd."]
[9,"Er det vist tilsvarende tall fra foregående årsregnskap, og er de omarbeidet i nødvendig grad? "]
[10,"Er det foretatt en ytterligere oppdeling av resultatregnskap og balanse eller tilføyelse av poster eller delsummer der foretakets forhold tilsier det?"]
[11,"Er poster slått sammen i resultatregnskap og balanse hvis sammenslåingen fører til et mer oversiktlig årsregnskap?"]
[12,"Er poster i oppstillingsplanen for resultatregnskapet som er slått sammen spesifisert i note?"]
[13,"Er årsregnskapet underskrevet av samtlige styremedlemmer og eventuelt av daglig leder, alternativt av deltakerne eller medlemmene hvis foretaket ikke har styre eller daglig leder?"]
[14,"Dersom den som skal underskrive har innvendinger mot årsregnskapet, har vedkommende underskrevet med påtegnet forbehold og gitt nærmere redegjørelse i årsberetningen?"]
[15,"Er årsregnskapet avlagt innenfor lovens frist?"]
[16,"Er resultatregnskapet satt opp i henhold til Regnskapslovens oppstillingsplan?"]
[17,"Dersom det foreligger særlige poster, er disse spesifisert og benevnt etter inntektens eller kostnadens innhold?"]
[18,"Er det opplyst om forslag til anvendelse av overskudd eller dekning av tap i samsvar med bestemmelsene i regnskapsstandarden?"]
[19,"Hvis det er delt ut tilleggsutbytte eller ekstraordinært utbytte som er regnskapsført i uttaksåret, er det da gitt opplysning om dette utbyttet sammen med disponeringen av årets resultat?"]
[20,"Er det gitt opplysning i årsregnskap eller årsberetning om konsernbidrag fra morselskap til datterselskap som er ført som investering i morselskapets regnskap?"]
[21,"Er balansen spesifisert i henhold til regnskapslovens oppstillingsplan, evt.etter likviditet, dersom dette gir mer relevante og pålitelige opplysninger?"]
[22,"Er eiendeler bestemt til varig eie eller bruk, og fordringer som ikke skal tilbakebetales innen ett år, klassifisert som anleggsmidler, og øvrige eiendeler klassifisert som omløpsmidler?"]
[23,"Er eventuell beholdning av egne aksjer ført opp i samsvar med regnskapslovens krav?"]
[24,"Inngår tilleggsutbytte eller ekstraordinært utbytte som er besluttet før balansedagen, og som står ubetalt på balansedagen, i kortsiktig gjeld?"]
[25,"Er eventuelle minoritetsinteresser ført opp under egenkapital i balansen og som fradrag i årsresultatet i resultatregnskapet; slik at regnskapet viser årsresultat før og etter minoritetsinteresser?"]
[26,"Bygger konsernregnskapet på de konsoliderte selskapenes selskapsregnskap? Dersom datterselskap ikke benytter samme prinsipper som konsernet, er disse regnskapene da omarbeidet for konsolideringsformål?"]
[27,"Dersom utenlandske datterselskap har et annet regnskapsår enn morselskapet, bygger da konsernregnskapet på et delårsregnskap som er avgitt ved regnskapsårets slutt (eventuelt max 3 mnd +/- med tillegg for vesentlige transaksjoner)?"]

{"sheet":"F_Ja","index":11,"n_rows":37,"n_cols":7,"rows_kept":37,"cut":false,"hidden":true,"merged":[]}
[null,null,{"$f":"COUNTIF(C2:C118,\"=1\")","v":0},"Ja-svar",{"$f":"+FrontPage!B2","v":0},{"$f":"+FrontPage!B3","v":2024},"Kommentarer"]
[{"$f":"+'Sjekkliste formelle forhold'!A37","v":17},{"$f":"IF('Sjekkliste formelle forhold'!E37<>\"\",1,0)","v":0},{"$f":"SUM(B2:B2)","v":0},{"$f":"IF($C2=1,'Sjekkliste formelle forhold'!A37,\"\")","v":""},{"$f":"IF($C2=1,'Sjekkliste formelle forhold'!B37,\"\")","v":""},null,{"$f":"IF($C2=1,'Sjekkliste formelle forhold'!H37,\"\")","v":""}]
[{"$f":"+'Sjekkliste formelle forhold'!A40","v":18},{"$f":"IF('Sjekkliste formelle forhold'!E40<>\"\",1,0)","v":0},0,{"$f":"IF($C3=1,'Sjekkliste formelle forhold'!A40,\"\")","v":""},{"$f":"IF($C3=1,'Sjekkliste formelle forhold'!B40,\"\")","v":""},null,{"$f":"IF($C3=1,'Sjekkliste formelle forhold'!H40,\"\")","v":""}]
[{"$f":"+'Sjekkliste formelle forhold'!A41","v":19},{"$f":"IF('Sjekkliste formelle forhold'!E41<>\"\",1,0)","v":0},0,{"$f":"IF($C4=1,'Sjekkliste formelle forhold'!A41,\"\")","v":""},{"$f":"IF($C4=1,'Sjekkliste formelle forhold'!B41,\"\")","v":""},null,{"$f":"IF($C4=1,'Sjekkliste formelle forhold'!H41,\"\")","v":""}]
[{"$f":"+'Sjekkliste formelle forhold'!A42","v":20},{"$f":"IF('Sjekkliste formelle forhold'!E42<>\"\",1,0)","v":0},0,{"$f":"IF($C5=1,'Sjekkliste formelle forhold'!A42,\"\")","v":""},{"$f":"IF($C5=1,'Sjekkliste formelle forhold'!B42,\"\")","v":""},null,{"$f":"IF($C5=1,'Sjekkliste formelle forhold'!H42,\"\")","v":""}]
[{"$f":"+'Sjekkliste formelle forhold'!A9","v":1},{"$f":"IF('Sjekkliste formelle forhold'!E9<>\"\",1,0)","v":0},0,{"$f":"IF($C6=1,'Sjekkliste formelle forhold'!A9,\"\")","v":""},{"$f":"IF($C6=1,'Sjekkliste formelle forhold'!B9,\"\")","v":""},null,{"$f":"IF($C6=1,'Sjekkliste formelle forhold'!H9,\"\")","v":""}]
[{"$f":"+'Sjekkliste formelle forhold'!A10","v":2},{"$f":"IF('Sjekkliste formelle forhold'!E10<>\"\",1,0)","v":0},0,{"$f":"IF($C7=1,'Sjekkliste formelle forhold'!A10,\"\")","v":""},{"$f":"IF($C7=1,'Sjekkliste formelle forhold'!B10,\"\")","v":""},null,{"$f":"IF($C7=1,'Sjekkliste formelle forhold'!H10,\"\")","v":""}]
[{"$f":"+'Sjekkliste formelle forhold'!A11","v":3},{"$f":"IF('Sjekkliste formelle forhold'!E11<>\"\",1,0)","v":0},0,{"$f":"IF($C8=1,'Sjekkliste formelle forhold'!A11,\"\")","v":""},{"$f":"IF($C8=1,'Sjekkliste formelle forhold'!B11,\"\")","v":""},null,{"$f":"IF($C8=1,'Sjekkliste formelle forhold'!H11,\"\")","v":""}]
[{"$f":"+'Sjekkliste formelle forhold'!A12","v":4},{"$f":"IF('Sjekkliste formelle forhold'!E12<>\"\",1,0)","v":0},0,{"$f":"IF($C9=1,'Sjekkliste formelle forhold'!A12,\"\")","v":""},{"$f":"IF($C9=1,'Sjekkliste formelle forhold'!B12,\"\")","v":""},null,{"$f":"IF($C9=1,'Sjekkliste formelle forhold'!H12,\"\")","v":""}]
[{"$f":"+'Sjekkliste formelle forhold'!A13","v":5},{"$f":"IF('Sjekkliste formelle forhold'!E13<>\"\",1,0)","v":0},0,{"$f":"IF($C10=1,'Sjekkliste formelle forhold'!A13,\"\")","v":""},{"$f":"IF($C10=1,'Sjekkliste formelle forhold'!B13,\"\")","v":""},null,{"$f":"IF($C10=1,'Sjekkliste formelle forhold'!H13,\"\")","v":""}]
[{"$f":"+'Sjekkliste formelle forhold'!A15","v":6},{"$f":"IF('Sjekkliste formelle forhold'!E15<>\"\",1,0)","v":0},0,{"$f":"IF($C11=1,'Sjekkliste formelle forhold'!A15,\"\")","v":""},{"$f":"IF($C11=1,'Sjekkliste formelle forhold'!B15,\"\")","v":""},null,{"$f":"IF($C11=1,'Sjekkliste formelle forhold'!H15,\"\")","v":""}]
[{"$f":"+'Sjekkliste formelle forhold'!A16","v":7},{"$f":"IF('Sjekkliste formelle forhold'!E16<>\"\",1,0)","v":0},0,{"$f":"IF($C12=1,'Sjekkliste formelle forhold'!A16,\"\")","v":""},{"$f":"IF($C12=1,'Sjekkliste formelle forhold'!B16,\"\")","v":""},null,{"$f":"IF($C12=1,'Sjekkliste formelle forhold'!H16,\"\")","v":""}]
[{"$f":"+'Sjekkliste formelle forhold'!A17","v":8},{"$f":"IF('Sjekkliste formelle forhold'!E17<>\"\",1,0)","v":0},0,{"$f":"IF($C13=1,'Sjekkliste formelle forhold'!A17,\"\")","v":""},{"$f":"IF($C13=1,'Sjekkliste formelle forhold'!B17,\"\")","v":""},null,{"$f":"IF($C13=1,'Sjekkliste formelle forhold'!H17,\"\")","v":""}]
[{"$f":"+'Sjekkliste formelle forhold'!A21","v":9},{"$f":"IF('Sjekkliste formelle forhold'!E21<>\"\",1,0)","v":0},0,{"$f":"IF($C14=1,'Sjekkliste formelle forhold'!A21,\"\")","v":""},{"$f":"IF($C14=1,'Sjekkliste formelle forhold'!B21,\"\")","v":""},null,{"$f":"IF($C14=1,'Sjekkliste formelle forhold'!H21,\"\")","v":""}]
[{"$f":"+'Sjekkliste formelle forhold'!A25","v":10},{"$f":"IF('Sjekkliste formelle forhold'!E25<>\"\",1,0)","v":0},0,{"$f":"IF($C15=1,'Sjekkliste formelle forhold'!A25,\"\")","v":""},{"$f":"IF($C15=1,'Sjekkliste formelle forhold'!B25,\"\")","v":""},null,{"$f":"IF($C15=1,'Sjekkliste formelle forhold'!H25,\"\")","v":""}]
[{"$f":"+'Sjekkliste formelle forhold'!A27","v":11},{"$f":"IF('Sjekkliste formelle forhold'!E27<>\"\",1,0)","v":0},0,{"$f":"IF($C16=1,'Sjekkliste formelle forhold'!A27,\"\")","v":""},{"$f":"IF($C16=1,'Sjekkliste formelle forhold'!B27,\"\")","v":""},null,{"$f":"IF($C16=1,'Sjekkliste formelle forhold'!H27,\"\")","v":""}]
[{"$f":"+'Sjekkliste formelle forhold'!A28","v":12},{"$f":"IF('Sjekkliste formelle forhold'!E28<>\"\",1,0)","v":0},0,{"$f":"IF($C17=1,'Sjekkliste formelle forhold'!A28,\"\")","v":""},{"$f":"IF($C17=1,'Sjekkliste formelle forhold'!B28,\"\")","v":""},null,{"$f":"IF($C17=1,'Sjekkliste formelle forhold'!H28,\"\")","v":""}]
[{"$f":"+'Sjekkliste formelle forhold'!A30","v":13},{"$f":"IF('Sjekkliste formelle forhold'!E30<>\"\",1,0)","v":0},0,{"$f":"IF($C18=1,'Sjekkliste formelle forhold'!A30,\"\")","v":""},{"$f":"IF($C18=1,'Sjekkliste formelle forhold'!B30,\"\")","v":""},null,{"$f":"IF($C18=1,'Sjekkliste formelle forhold'!H30,\"\")","v":""}]
[{"$f":"+'Sjekkliste formelle forhold'!A31","v":14},{"$f":"IF('Sjekkliste formelle forhold'!E31<>\"\",1,0)","v":0},0,{"$f":"IF($C19=1,'Sjekkliste formelle forhold'!A31,\"\")","v":""},{"$f":"IF($C19=1,'Sjekkliste formelle forhold'!B31,\"\")","v":""},null,{"$f":"IF($C19=1,'Sjekkliste formelle forhold'!H31,\"\")","v":""}]
[{"$f":"+'Sjekkliste formelle forhold'!A32","v":15},{"$f":"IF('Sjekkliste formelle forhold'!E32<>\"\",1,0)","v":0},0,{"$f":"IF($C20=1,'Sjekkliste formelle forhold'!A32,\"\")","v":""},{"$f":"IF($C20=1,'Sjekkliste formelle forhold'!B32,\"\")","v":""},null,{"$f":"IF($C20=1,'Sjekkliste formelle forhold'!H32,\"\")","v":""}]
[{"$f":"+'Sjekkliste formelle forhold'!A34","v":16},{"$f":"IF('Sjekkliste formelle forhold'!E34<>\"\",1,0)","v":0},0,{"$f":"IF($C21=1,'Sjekkliste formelle forhold'!A34,\"\")","v":""},{"$f":"IF($C21=1,'Sjekkliste formelle forhold'!B34,\"\")","v":""},null,{"$f":"IF($C21=1,'Sjekkliste formelle forhold'!H34,\"\")","v":""}]
[{"$f":"+'Sjekkliste formelle forhold'!A45","v":21},{"$f":"IF('Sjekkliste formelle forhold'!E45<>\"\",1,0)","v":0},0,{"$f":"IF($C22=1,'Sjekkliste formelle forhold'!A45,\"\")","v":""},{"$f":"IF($C22=1,'Sjekkliste formelle forhold'!B45,\"\")","v":""},null,{"$f":"IF($C22=1,'Sjekkliste formelle forhold'!H45,\"\")","v":""}]
[{"$f":"+'Sjekkliste formelle forhold'!A46","v":22},{"$f":"IF('Sjekkliste formelle forhold'!E46<>\"\",1,0)","v":0},0,{"$f":"IF($C23=1,'Sjekkliste formelle forhold'!A46,\"\")","v":""},{"$f":"IF($C23=1,'Sjekkliste formelle forhold'!B46,\"\")","v":""},null,{"$f":"IF($C23=1,'Sjekkliste formelle forhold'!H46,\"\")","v":""}]
[{"$f":"+'Sjekkliste formelle forhold'!A48","v":23},{"$f":"IF('Sjekkliste formelle forhold'!E48<>\"\",1,0)","v":0},0,{"$f":"IF($C24=1,'Sjekkliste formelle forhold'!A48,\"\")","v":""},{"$f":"IF($C24=1,'Sjekkliste formelle forhold'!B48,\"\")","v":""},null,{"$f":"IF($C24=1,'Sjekkliste formelle forhold'!H48,\"\")","v":""}]
[{"$f":"+'Sjekkliste formelle forhold'!A49","v":24},{"$f":"IF('Sjekkliste formelle forhold'!E49<>\"\",1,0)","v":0},0,{"$f":"IF($C25=1,'Sjekkliste formelle forhold'!A49,\"\")","v":""},{"$f":"IF($C25=1,'Sjekkliste formelle forhold'!B49,\"\")","v":""},null,{"$f":"IF($C25=1,'Sjekkliste formelle forhold'!H49,\"\")","v":""}]
[{"$f":"+'Sjekkliste formelle forhold'!A55","v":25},{"$f":"IF('Sjekkliste formelle forhold'!E55<>\"\",1,0)","v":0},0,{"$f":"IF($C26=1,'Sjekkliste formelle forhold'!A55,\"\")","v":""},{"$f":"IF($C26=1,'Sjekkliste formelle forhold'!B55,\"\")","v":""},null,{"$f":"IF($C26=1,'Sjekkliste formelle forhold'!H55,\"\")","v":""}]
[{"$f":"+'Sjekkliste formelle forhold'!A56","v":26},{"$f":"IF('Sjekkliste formelle forhold'!E56<>\"\",1,0)","v":0},0,{"$f":"IF($C27=1,'Sjekkliste formelle forhold'!A56,\"\")","v":""},{"$f":"IF($C27=1,'Sjekkliste formelle forhold'!B56,\"\")","v":""},null,{"$f":"IF($C27=1,'Sjekkliste formelle forhold'!H56,\"\")","v":""}]
[{"$f":"+'Sjekkliste formelle forhold'!A57","v":27},{"$f":"IF('Sjekkliste formelle forhold'!E57<>\"\",1,0)","v":0},0,{"$f":"IF($C28=1,'Sjekkliste formelle forhold'!A57,\"\")","v":""},{"$f":"IF($C28=1,'Sjekkliste formelle forhold'!B57,\"\")","v":""},null,{"$f":"IF($C28=1,'Sjekkliste formelle forhold'!H57,\"\")","v":""}]
[{"$f":"+'Sjekkliste formelle forhold'!A60","v":28},{"$f":"IF('Sjekkliste formelle forhold'!E60<>\"\",1,0)","v":0},0,{"$f":"IF($C29=1,'Sjekkliste formelle forhold'!A60,\"\")","v":""},{"$f":"IF($C29=1,'Sjekkliste formelle forhold'!B60,\"\")","v":""},null,{"$f":"IF($C29=1,'Sjekkliste formelle forhold'!H60,\"\")","v":""}]
[{"$f":"+'Sjekkliste formelle forhold'!A62","v":29},{"$f":"IF('Sjekkliste formelle forhold'!E62<>\"\",1,0)","v":0},0,{"$f":"IF($C30=1,'Sjekkliste formelle forhold'!A62,\"\")","v":""},{"$f":"IF($C30=1,'Sjekkliste formelle forhold'!B62,\"\")","v":""},null,{"$f":"IF($C30=1,'Sjekkliste formelle forhold'!H62,\"\")","v":""}]
[{"$f":"+'Sjekkliste formelle forhold'!A64","v":30},{"$f":"IF('Sjekkliste formelle forhold'!E64<>\"\",1,0)","v":0},0,{"$f":"IF($C31=1,'Sjekkliste formelle forhold'!A64,\"\")","v":""},{"$f":"IF($C31=1,'Sjekkliste formelle forhold'!B64,\"\")","v":""},null,{"$f":"IF($C31=1,'Sjekkliste formelle forhold'!H64,\"\")","v":""}]
[{"$f":"+'Sjekkliste formelle forhold'!A66","v":31},{"$f":"IF('Sjekkliste formelle forhold'!E66<>\"\",1,0)","v":0},0,{"$f":"IF($C32=1,'Sjekkliste formelle forhold'!A66,\"\")","v":""},{"$f":"IF($C32=1,'Sjekkliste formelle forhold'!B66,\"\")","v":""},null,{"$f":"IF($C32=1,'Sjekkliste formelle forhold'!H66,\"\")","v":""}]
[{"$f":"+'Sjekkliste formelle forhold'!A68","v":36},{"$f":"IF('Sjekkliste formelle forhold'!E68<>\"\",1,0)","v":0},0,{"$f":"IF($C33=1,'Sjekkliste formelle forhold'!A68,\"\")","v":""},{"$f":"IF($C33=1,'Sjekkliste formelle forhold'!B68,\"\")","v":""},null,{"$f":"IF($C33=1,'Sjekkliste formelle forhold'!H68,\"\")","v":""}]
[{"$f":"+'Sjekkliste formelle forhold'!A69","v":37},{"$f":"IF('Sjekkliste formelle forhold'!E69<>\"\",1,0)","v":0},0,{"$f":"IF($C34=1,'Sjekkliste formelle forhold'!A69,\"\")","v":""},{"$f":"IF($C34=1,'Sjekkliste formelle forhold'!B69,\"\")","v":""},null,{"$f":"IF($C34=1,'Sjekkliste formelle forhold'!H69,\"\")","v":""}]
[{"$f":"+'Sjekkliste formelle forhold'!A70","v":38},{"$f":"IF('Sjekkliste formelle forhold'!E70<>\"\",1,0)","v":0},0,{"$f":"IF($C35=1,'Sjekkliste formelle forhold'!A70,\"\")","v":""},{"$f":"IF($C35=1,'Sjekkliste formelle forhold'!B70,\"\")","v":""},null,{"$f":"IF($C35=1,'Sjekkliste formelle forhold'!H70,\"\")","v":""}]
[{"$f":"+'Sjekkliste formelle forhold'!A71","v":39},{"$f":"IF('Sjekkliste formelle forhold'!E71<>\"\",1,0)","v":0},0,{"$f":"IF($C36=1,'Sjekkliste formelle forhold'!A71,\"\")","v":""},{"$f":"IF($C36=1,'Sjekkliste formelle forhold'!B71,\"\")","v":""},null,{"$f":"IF($C36=1,'Sjekkliste formelle forhold'!H71,\"\")","v":""}]
[{"$f":"+'Sjekkliste formelle forhold'!A72","v":40},{"$f":"IF('Sjekkliste formelle forhold'!E72<>\"\",1,0)","v":0},0,{"$f":"IF($C37=1,'Sjekkliste formelle forhold'!A72,\"\")","v":""},{"$f":"IF($C37=1,'Sjekkliste formelle forhold'!B72,\"\")","v":""},null,{"$f":"IF($C37=1,'Sjekkliste formelle forhold'!H72,\"\")","v":""}]

{"sheet":"F_Nei","index":12,"n_rows":37,"n_cols":7,"rows_kept":37,"cut":false,"hidden":true,"merged":[]}
[null,null,{"$f":"COUNTIF(C2:C111,\"=1\")","v":0},"Nei-svar",{"$f":"+FrontPage!B2","v":0},{"$f":"+FrontPage!B3","v":2024},"Kommentarer"]
[{"$f":"+'Sjekkliste formelle forhold'!A9","v":1},{"$f":"IF('Sjekkliste formelle forhold'!F9<>\"\",1,0)","v":0},{"$f":"SUM(B2:B2)","v":0},{"$f":"IF($C2=1,'Sjekkliste formelle forhold'!A9,\"\")","v":""},{"$f":"IF($C2=1,'Sjekkliste formelle forhold'!B9,\"\")","v":""},null,{"$f":"IF($C2=1,'Sjekkliste formelle forhold'!H9,\"\")","v":""}]
[{"$f":"+'Sjekkliste formelle forhold'!A10","v":2},{"$f":"IF('Sjekkliste formelle forhold'!F10<>\"\",1,0)","v":0},0,{"$f":"IF($C3=1,'Sjekkliste formelle forhold'!A10,\"\")","v":""},{"$f":"IF($C3=1,'Sjekkliste formelle forhold'!B10,\"\")","v":""},null,{"$f":"IF($C3=1,'Sjekkliste formelle forhold'!H10,\"\")","v":""}]
[{"$f":"+'Sjekkliste formelle forhold'!A11","v":3},{"$f":"IF('Sjekkliste formelle forhold'!F11<>\"\",1,0)","v":0},0,{"$f":"IF($C4=1,'Sjekkliste formelle forhold'!A11,\"\")","v":""},{"$f":"IF($C4=1,'Sjekkliste formelle forhold'!B11,\"\")","v":""},null,{"$f":"IF($C4=1,'Sjekkliste formelle forhold'!H11,\"\")","v":""}]
[{"$f":"+'Sjekkliste formelle forhold'!A12","v":4},{"$f":"IF('Sjekkliste formelle forhold'!F12<>\"\",1,0)","v":0},0,{"$f":"IF($C5=1,'Sjekkliste formelle forhold'!A12,\"\")","v":""},{"$f":"IF($C5=1,'Sjekkliste formelle forhold'!B12,\"\")","v":""},null,{"$f":"IF($C5=1,'Sjekkliste formelle forhold'!H12,\"\")","v":""}]
[{"$f":"+'Sjekkliste formelle forhold'!A13","v":5},{"$f":"IF('Sjekkliste formelle forhold'!F13<>\"\",1,0)","v":0},0,{"$f":"IF($C6=1,'Sjekkliste formelle forhold'!A13,\"\")","v":""},{"$f":"IF($C6=1,'Sjekkliste formelle forhold'!B13,\"\")","v":""},null,{"$f":"IF($C6=1,'Sjekkliste formelle forhold'!H13,\"\")","v":""}]
[{"$f":"+'Sjekkliste formelle forhold'!A15","v":6},{"$f":"IF('Sjekkliste formelle forhold'!F15<>\"\",1,0)","v":0},0,{"$f":"IF($C7=1,'Sjekkliste formelle forhold'!A15,\"\")","v":""},{"$f":"IF($C7=1,'Sjekkliste formelle forhold'!B15,\"\")","v":""},null,{"$f":"IF($C7=1,'Sjekkliste formelle forhold'!H15,\"\")","v":""}]
[{"$f":"+'Sjekkliste formelle forhold'!A16","v":7},{"$f":"IF('Sjekkliste formelle forhold'!F16<>\"\",1,0)","v":0},0,{"$f":"IF($C8=1,'Sjekkliste formelle forhold'!A16,\"\")","v":""},{"$f":"IF($C8=1,'Sjekkliste formelle forhold'!B16,\"\")","v":""},null,{"$f":"IF($C8=1,'Sjekkliste formelle forhold'!H16,\"\")","v":""}]
[{"$f":"+'Sjekkliste formelle forhold'!A17","v":8},{"$f":"IF('Sjekkliste formelle forhold'!F17<>\"\",1,0)","v":0},0,{"$f":"IF($C9=1,'Sjekkliste formelle forhold'!A17,\"\")","v":""},{"$f":"IF($C9=1,'Sjekkliste formelle forhold'!B17,\"\")","v":""},null,{"$f":"IF($C9=1,'Sjekkliste formelle forhold'!H17,\"\")","v":""}]
[{"$f":"+'Sjekkliste formelle forhold'!A21","v":9},{"$f":"IF('Sjekkliste formelle forhold'!F21<>\"\",1,0)","v":0},0,{"$f":"IF($C10=1,'Sjekkliste formelle forhold'!A21,\"\")","v":""},{"$f":"IF($C10=1,'Sjekkliste formelle forhold'!B21,\"\")","v":""},null,{"$f":"IF($C10=1,'Sjekkliste formelle forhold'!H21,\"\")","v":""}]
[{"$f":"+'Sjekkliste formelle forhold'!A25","v":10},{"$f":"IF('Sjekkliste formelle forhold'!F25<>\"\",1,0)","v":0},0,{"$f":"IF($C11=1,'Sjekkliste formelle forhold'!A25,\"\")","v":""},{"$f":"IF($C11=1,'Sjekkliste formelle forhold'!B25,\"\")","v":""},null,{"$f":"IF($C11=1,'Sjekkliste formelle forhold'!H25,\"\")","v":""}]
[{"$f":"+'Sjekkliste formelle forhold'!A27","v":11},{"$f":"IF('Sjekkliste formelle forhold'!F27<>\"\",1,0)","v":0},0,{"$f":"IF($C12=1,'Sjekkliste formelle forhold'!A27,\"\")","v":""},{"$f":"IF($C12=1,'Sjekkliste formelle forhold'!B27,\"\")","v":""},null,{"$f":"IF($C12=1,'Sjekkliste formelle forhold'!H27,\"\")","v":""}]
[{"$f":"+'Sjekkliste formelle forhold'!A28","v":12},{"$f":"IF('Sjekkliste formelle forhold'!F28<>\"\",1,0)","v":0},0,{"$f":"IF($C13=1,'Sjekkliste formelle forhold'!A28,\"\")","v":""},{"$f":"IF($C13=1,'Sjekkliste formelle forhold'!B28,\"\")","v":""},null,{"$f":"IF($C13=1,'Sjekkliste formelle forhold'!H28,\"\")","v":""}]
[{"$f":"+'Sjekkliste formelle forhold'!A30","v":13},{"$f":"IF('Sjekkliste formelle forhold'!F30<>\"\",1,0)","v":0},0,{"$f":"IF($C14=1,'Sjekkliste formelle forhold'!A30,\"\")","v":""},{"$f":"IF($C14=1,'Sjekkliste formelle forhold'!B30,\"\")","v":""},null,{"$f":"IF($C14=1,'Sjekkliste formelle forhold'!H30,\"\")","v":""}]
[{"$f":"+'Sjekkliste formelle forhold'!A31","v":14},{"$f":"IF('Sjekkliste formelle forhold'!F31<>\"\",1,0)","v":0},0,{"$f":"IF($C15=1,'Sjekkliste formelle forhold'!A31,\"\")","v":""},{"$f":"IF($C15=1,'Sjekkliste formelle forhold'!B31,\"\")","v":""},null,{"$f":"IF($C15=1,'Sjekkliste formelle forhold'!H31,\"\")","v":""}]
[{"$f":"+'Sjekkliste formelle forhold'!A32","v":15},{"$f":"IF('Sjekkliste formelle forhold'!F32<>\"\",1,0)","v":0},0,{"$f":"IF($C16=1,'Sjekkliste formelle forhold'!A32,\"\")","v":""},{"$f":"IF($C16=1,'Sjekkliste formelle forhold'!B32,\"\")","v":""},null,{"$f":"IF($C16=1,'Sjekkliste formelle forhold'!H32,\"\")","v":""}]
[{"$f":"+'Sjekkliste formelle forhold'!A34","v":16},{"$f":"IF('Sjekkliste formelle forhold'!F34<>\"\",1,0)","v":0},0,{"$f":"IF($C17=1,'Sjekkliste formelle forhold'!A34,\"\")","v":""},{"$f":"IF($C17=1,'Sjekkliste formelle forhold'!B34,\"\")","v":""},null,{"$f":"IF($C17=1,'Sjekkliste formelle forhold'!H34,\"\")","v":""}]
[{"$f":"+'Sjekkliste formelle forhold'!A37","v":17},{"$f":"IF('Sjekkliste formelle forhold'!F37<>\"\",1,0)","v":0},0,{"$f":"IF($C18=1,'Sjekkliste formelle forhold'!A37,\"\")","v":""},{"$f":"IF($C18=1,'Sjekkliste formelle forhold'!B37,\"\")","v":""},null,{"$f":"IF($C18=1,'Sjekkliste formelle forhold'!H37,\"\")","v":""}]
[{"$f":"+'Sjekkliste formelle forhold'!A40","v":18},{"$f":"IF('Sjekkliste formelle forhold'!F40<>\"\",1,0)","v":0},0,{"$f":"IF($C19=1,'Sjekkliste formelle forhold'!A40,\"\")","v":""},{"$f":"IF($C19=1,'Sjekkliste formelle forhold'!B40,\"\")","v":""},null,{"$f":"IF($C19=1,'Sjekkliste formelle forhold'!H40,\"\")","v":""}]
[{"$f":"+'Sjekkliste formelle forhold'!A41","v":19},{"$f":"IF('Sjekkliste formelle forhold'!F41<>\"\",1,0)","v":0},0,{"$f":"IF($C20=1,'Sjekkliste formelle forhold'!A41,\"\")","v":""},{"$f":"IF($C20=1,'Sjekkliste formelle forhold'!B41,\"\")","v":""},null,{"$f":"IF($C20=1,'Sjekkliste formelle forhold'!H41,\"\")","v":""}]
[{"$f":"+'Sjekkliste formelle forhold'!A42","v":20},{"$f":"IF('Sjekkliste formelle forhold'!F42<>\"\",1,0)","v":0},0,{"$f":"IF($C21=1,'Sjekkliste formelle forhold'!A42,\"\")","v":""},{"$f":"IF($C21=1,'Sjekkliste formelle forhold'!B42,\"\")","v":""},null,{"$f":"IF($C21=1,'Sjekkliste formelle forhold'!H42,\"\")","v":""}]
[{"$f":"+'Sjekkliste formelle forhold'!A45","v":21},{"$f":"IF('Sjekkliste formelle forhold'!F45<>\"\",1,0)","v":0},0,{"$f":"IF($C22=1,'Sjekkliste formelle forhold'!A45,\"\")","v":""},{"$f":"IF($C22=1,'Sjekkliste formelle forhold'!B45,\"\")","v":""},null,{"$f":"IF($C22=1,'Sjekkliste formelle forhold'!H45,\"\")","v":""}]
[{"$f":"+'Sjekkliste formelle forhold'!A46","v":22},{"$f":"IF('Sjekkliste formelle forhold'!F46<>\"\",1,0)","v":0},0,{"$f":"IF($C23=1,'Sjekkliste formelle forhold'!A46,\"\")","v":""},{"$f":"IF($C23=1,'Sjekkliste formelle forhold'!B46,\"\")","v":""},null,{"$f":"IF($C23=1,'Sjekkliste formelle forhold'!H46,\"\")","v":""}]
[{"$f":"+'Sjekkliste formelle forhold'!A48","v":23},{"$f":"IF('Sjekkliste formelle forhold'!F48<>\"\",1,0)","v":0},0,{"$f":"IF($C24=1,'Sjekkliste formelle forhold'!A48,\"\")","v":""},{"$f":"IF($C24=1,'Sjekkliste formelle forhold'!B48,\"\")","v":""},null,{"$f":"IF($C24=1,'Sjekkliste formelle forhold'!H48,\"\")","v":""}]
[{"$f":"+'Sjekkliste formelle forhold'!A49","v":24},{"$f":"IF('Sjekkliste formelle forhold'!F49<>\"\",1,0)","v":0},0,{"$f":"IF($C25=1,'Sjekkliste formelle forhold'!A49,\"\")","v":""},{"$f":"IF($C25=1,'Sjekkliste formelle forhold'!B49,\"\")","v":""},null,{"$f":"IF($C25=1,'Sjekkliste formelle forhold'!H49,\"\")","v":""}]
[{"$f":"+'Sjekkliste formelle forhold'!A55","v":25},{"$f":"IF('Sjekkliste formelle forhold'!F55<>\"\",1,0)","v":0},0,{"$f":"IF($C26=1,'Sjekkliste formelle forhold'!A55,\"\")","v":""},{"$f":"IF($C26=1,'Sjekkliste formelle forhold'!B55,\"\")","v":""},null,{"$f":"IF($C26=1,'Sjekkliste formelle forhold'!H55,\"\")","v":""}]
[{"$f":"+'Sjekkliste formelle forhold'!A56","v":26},{"$f":"IF('Sjekkliste formelle forhold'!F56<>\"\",1,0)","v":0},0,{"$f":"IF($C27=1,'Sjekkliste formelle forhold'!A56,\"\")","v":""},{"$f":"IF($C27=1,'Sjekkliste formelle forhold'!B56,\"\")","v":""},null,{"$f":"IF($C27=1,'Sjekkliste formelle forhold'!H56,\"\")","v":""}]
[{"$f":"+'Sjekkliste formelle forhold'!A57","v":27},{"$f":"IF('Sjekkliste formelle forhold'!F57<>\"\",1,0)","v":0},0,{"$f":"IF($C28=1,'Sjekkliste formelle forhold'!A57,\"\")","v":""},{"$f":"IF($C28=1,'Sjekkliste formelle forhold'!B57,\"\")","v":""},null,{"$f":"IF($C28=1,'Sjekkliste formelle forhold'!H57,\"\")","v":""}]
[{"$f":"+'Sjekkliste formelle forhold'!A60","v":28},{"$f":"IF('Sjekkliste formelle forhold'!F60<>\"\",1,0)","v":0},0,{"$f":"IF($C29=1,'Sjekkliste formelle forhold'!A60,\"\")","v":""},{"$f":"IF($C29=1,'Sjekkliste formelle forhold'!B60,\"\")","v":""},null,{"$f":"IF($C29=1,'Sjekkliste formelle forhold'!H60,\"\")","v":""}]
[{"$f":"+'Sjekkliste formelle forhold'!A62","v":29},{"$f":"IF('Sjekkliste formelle forhold'!F62<>\"\",1,0)","v":0},0,{"$f":"IF($C30=1,'Sjekkliste formelle forhold'!A62,\"\")","v":""},{"$f":"IF($C30=1,'Sjekkliste formelle forhold'!B62,\"\")","v":""},null,{"$f":"IF($C30=1,'Sjekkliste formelle forhold'!H62,\"\")","v":""}]
[{"$f":"+'Sjekkliste formelle forhold'!A64","v":30},{"$f":"IF('Sjekkliste formelle forhold'!F64<>\"\",1,0)","v":0},0,{"$f":"IF($C31=1,'Sjekkliste formelle forhold'!A64,\"\")","v":""},{"$f":"IF($C31=1,'Sjekkliste formelle forhold'!B64,\"\")","v":""},null,{"$f":"IF($C31=1,'Sjekkliste formelle forhold'!H64,\"\")","v":""}]
[{"$f":"+'Sjekkliste formelle forhold'!A66","v":31},{"$f":"IF('Sjekkliste formelle forhold'!F66<>\"\",1,0)","v":0},0,{"$f":"IF($C32=1,'Sjekkliste formelle forhold'!A66,\"\")","v":""},{"$f":"IF($C32=1,'Sjekkliste formelle forhold'!B66,\"\")","v":""},null,{"$f":"IF($C32=1,'Sjekkliste formelle forhold'!H66,\"\")","v":""}]
[{"$f":"+'Sjekkliste formelle forhold'!A68","v":36},{"$f":"IF('Sjekkliste formelle forhold'!F68<>\"\",1,0)","v":0},0,{"$f":"IF($C33=1,'Sjekkliste formelle forhold'!A68,\"\")","v":""},{"$f":"IF($C33=1,'Sjekkliste formelle forhold'!B68,\"\")","v":""},null,{"$f":"IF($C33=1,'Sjekkliste formelle forhold'!H68,\"\")","v":""}]
[{"$f":"+'Sjekkliste formelle forhold'!A69","v":37},{"$f":"IF('Sjekkliste formelle forhold'!F69<>\"\",1,0)","v":0},0,{"$f":"IF($C34=1,'Sjekkliste formelle forhold'!A69,\"\")","v":""},{"$f":"IF($C34=1,'Sjekkliste formelle forhold'!B69,\"\")","v":""},null,{"$f":"IF($C34=1,'Sjekkliste formelle forhold'!H69,\"\")","v":""}]
[{"$f":"+'Sjekkliste formelle forhold'!A70","v":38},{"$f":"IF('Sjekkliste formelle forhold'!F70<>\"\",1,0)","v":0},0,{"$f":"IF($C35=1,'Sjekkliste formelle forhold'!A70,\"\")","v":""},{"$f":"IF($C35=1,'Sjekkliste formelle forhold'!B70,\"\")","v":""},null,{"$f":"IF($C35=1,'Sjekkliste formelle forhold'!H70,\"\")","v":""}]
[{"$f":"+'Sjekkliste formelle forhold'!A71","v":39},{"$f":"IF('Sjekkliste formelle forhold'!F71<>\"\",1,0)","v":0},0,{"$f":"IF($C36=1,'Sjekkliste formelle forhold'!A71,\"\")","v":""},{"$f":"IF($C36=1,'Sjekkliste formelle forhold'!B71,\"\")","v":""},null,{"$f":"IF($C36=1,'Sjekkliste formelle forhold'!H71,\"\")","v":""}]
[{"$f":"+'Sjekkliste formelle forhold'!A72","v":40},{"$f":"IF('Sjekkliste formelle forhold'!F72<>\"\",1,0)","v":0},0,{"$f":"IF($C37=1,'Sjekkliste formelle forhold'!A72,\"\")","v":""},{"$f":"IF($C37=1,'Sjekkliste formelle forhold'!B72,\"\")","v":""},null,{"$f":"IF($C37=1,'Sjekkliste formelle forhold'!H72,\"\")","v":""}]

{"sheet":"F_IA","index":13,"n_rows":37,"n_cols":7,"rows_kept":37,"cut":false,"hidden":true,"merged":[]}
[null,null,{"$f":"COUNTIF(C2:C459,\"=1\")","v":0},"IA-svar",{"$f":"+FrontPage!B2","v":0},{"$f":"+FrontPage!B3","v":2024},"Kommentarer"]
[{"$f":"+'Sjekkliste formelle forhold'!A9","v":1},{"$f":"IF('Sjekkliste formelle forhold'!G9<>\"\",1,0)","v":0},{"$f":"SUM(B2:B2)","v":0},{"$f":"IF($C2=1,'Sjekkliste formelle forhold'!A9,\"\")","v":""},{"$f":"IF($C2=1,'Sjekkliste formelle forhold'!B9,\"\")","v":""},null,{"$f":"IF($C2=1,'Sjekkliste formelle forhold'!H9,\"\")","v":""}]
[{"$f":"+'Sjekkliste formelle forhold'!A10","v":2},{"$f":"IF('Sjekkliste formelle forhold'!G10<>\"\",1,0)","v":0},0,{"$f":"IF($C3=1,'Sjekkliste formelle forhold'!A10,\"\")","v":""},{"$f":"IF($C3=1,'Sjekkliste formelle forhold'!B10,\"\")","v":""},null,{"$f":"IF($C3=1,'Sjekkliste formelle forhold'!H10,\"\")","v":""}]
[{"$f":"+'Sjekkliste formelle forhold'!A11","v":3},{"$f":"IF('Sjekkliste formelle forhold'!G11<>\"\",1,0)","v":0},0,{"$f":"IF($C4=1,'Sjekkliste formelle forhold'!A11,\"\")","v":""},{"$f":"IF($C4=1,'Sjekkliste formelle forhold'!B11,\"\")","v":""},null,{"$f":"IF($C4=1,'Sjekkliste formelle forhold'!H11,\"\")","v":""}]
[{"$f":"+'Sjekkliste formelle forhold'!A12","v":4},{"$f":"IF('Sjekkliste formelle forhold'!G12<>\"\",1,0)","v":0},0,{"$f":"IF($C5=1,'Sjekkliste formelle forhold'!A12,\"\")","v":""},{"$f":"IF($C5=1,'Sjekkliste formelle forhold'!B12,\"\")","v":""},null,{"$f":"IF($C5=1,'Sjekkliste formelle forhold'!H12,\"\")","v":""}]
[{"$f":"+'Sjekkliste formelle forhold'!A13","v":5},{"$f":"IF('Sjekkliste formelle forhold'!G13<>\"\",1,0)","v":0},0,{"$f":"IF($C6=1,'Sjekkliste formelle forhold'!A13,\"\")","v":""},{"$f":"IF($C6=1,'Sjekkliste formelle forhold'!B13,\"\")","v":""},null,{"$f":"IF($C6=1,'Sjekkliste formelle forhold'!H13,\"\")","v":""}]
[{"$f":"+'Sjekkliste formelle forhold'!A15","v":6},{"$f":"IF('Sjekkliste formelle forhold'!G15<>\"\",1,0)","v":0},0,{"$f":"IF($C7=1,'Sjekkliste formelle forhold'!A15,\"\")","v":""},{"$f":"IF($C7=1,'Sjekkliste formelle forhold'!B15,\"\")","v":""},null,{"$f":"IF($C7=1,'Sjekkliste formelle forhold'!H15,\"\")","v":""}]
[{"$f":"+'Sjekkliste formelle forhold'!A16","v":7},{"$f":"IF('Sjekkliste formelle forhold'!G16<>\"\",1,0)","v":0},0,{"$f":"IF($C8=1,'Sjekkliste formelle forhold'!A16,\"\")","v":""},{"$f":"IF($C8=1,'Sjekkliste formelle forhold'!B16,\"\")","v":""},null,{"$f":"IF($C8=1,'Sjekkliste formelle forhold'!H16,\"\")","v":""}]
[{"$f":"+'Sjekkliste formelle forhold'!A17","v":8},{"$f":"IF('Sjekkliste formelle forhold'!G17<>\"\",1,0)","v":0},0,{"$f":"IF($C9=1,'Sjekkliste formelle forhold'!A17,\"\")","v":""},{"$f":"IF($C9=1,'Sjekkliste formelle forhold'!B17,\"\")","v":""},null,{"$f":"IF($C9=1,'Sjekkliste formelle forhold'!H17,\"\")","v":""}]
[{"$f":"+'Sjekkliste formelle forhold'!A21","v":9},{"$f":"IF('Sjekkliste formelle forhold'!G21<>\"\",1,0)","v":0},0,{"$f":"IF($C10=1,'Sjekkliste formelle forhold'!A21,\"\")","v":""},{"$f":"IF($C10=1,'Sjekkliste formelle forhold'!B21,\"\")","v":""},null,{"$f":"IF($C10=1,'Sjekkliste formelle forhold'!H21,\"\")","v":""}]
[{"$f":"+'Sjekkliste formelle forhold'!A25","v":10},{"$f":"IF('Sjekkliste formelle forhold'!G25<>\"\",1,0)","v":0},0,{"$f":"IF($C11=1,'Sjekkliste formelle forhold'!A25,\"\")","v":""},{"$f":"IF($C11=1,'Sjekkliste formelle forhold'!B25,\"\")","v":""},null,{"$f":"IF($C11=1,'Sjekkliste formelle forhold'!H25,\"\")","v":""}]
[{"$f":"+'Sjekkliste formelle forhold'!A27","v":11},{"$f":"IF('Sjekkliste formelle forhold'!G27<>\"\",1,0)","v":0},0,{"$f":"IF($C12=1,'Sjekkliste formelle forhold'!A27,\"\")","v":""},{"$f":"IF($C12=1,'Sjekkliste formelle forhold'!B27,\"\")","v":""},null,{"$f":"IF($C12=1,'Sjekkliste formelle forhold'!H27,\"\")","v":""}]
[{"$f":"+'Sjekkliste formelle forhold'!A28","v":12},{"$f":"IF('Sjekkliste formelle forhold'!G28<>\"\",1,0)","v":0},0,{"$f":"IF($C13=1,'Sjekkliste formelle forhold'!A28,\"\")","v":""},{"$f":"IF($C13=1,'Sjekkliste formelle forhold'!B28,\"\")","v":""},null,{"$f":"IF($C13=1,'Sjekkliste formelle forhold'!H28,\"\")","v":""}]
[{"$f":"+'Sjekkliste formelle forhold'!A30","v":13},{"$f":"IF('Sjekkliste formelle forhold'!G30<>\"\",1,0)","v":0},0,{"$f":"IF($C14=1,'Sjekkliste formelle forhold'!A30,\"\")","v":""},{"$f":"IF($C14=1,'Sjekkliste formelle forhold'!B30,\"\")","v":""},null,{"$f":"IF($C14=1,'Sjekkliste formelle forhold'!H30,\"\")","v":""}]
[{"$f":"+'Sjekkliste formelle forhold'!A31","v":14},{"$f":"IF('Sjekkliste formelle forhold'!G31<>\"\",1,0)","v":0},0,{"$f":"IF($C15=1,'Sjekkliste formelle forhold'!A31,\"\")","v":""},{"$f":"IF($C15=1,'Sjekkliste formelle forhold'!B31,\"\")","v":""},null,{"$f":"IF($C15=1,'Sjekkliste formelle forhold'!H31,\"\")","v":""}]
[{"$f":"+'Sjekkliste formelle forhold'!A32","v":15},{"$f":"IF('Sjekkliste formelle forhold'!G32<>\"\",1,0)","v":0},0,{"$f":"IF($C16=1,'Sjekkliste formelle forhold'!A32,\"\")","v":""},{"$f":"IF($C16=1,'Sjekkliste formelle forhold'!B32,\"\")","v":""},null,{"$f":"IF($C16=1,'Sjekkliste formelle forhold'!H32,\"\")","v":""}]
[{"$f":"+'Sjekkliste formelle forhold'!A34","v":16},{"$f":"IF('Sjekkliste formelle forhold'!G34<>\"\",1,0)","v":0},0,{"$f":"IF($C17=1,'Sjekkliste formelle forhold'!A34,\"\")","v":""},{"$f":"IF($C17=1,'Sjekkliste formelle forhold'!B34,\"\")","v":""},null,{"$f":"IF($C17=1,'Sjekkliste formelle forhold'!H34,\"\")","v":""}]
[{"$f":"+'Sjekkliste formelle forhold'!A37","v":17},{"$f":"IF('Sjekkliste formelle forhold'!G37<>\"\",1,0)","v":0},0,{"$f":"IF($C18=1,'Sjekkliste formelle forhold'!A37,\"\")","v":""},{"$f":"IF($C18=1,'Sjekkliste formelle forhold'!B37,\"\")","v":""},null,{"$f":"IF($C18=1,'Sjekkliste formelle forhold'!H37,\"\")","v":""}]
[{"$f":"+'Sjekkliste formelle forhold'!A40","v":18},{"$f":"IF('Sjekkliste formelle forhold'!G40<>\"\",1,0)","v":0},0,{"$f":"IF($C19=1,'Sjekkliste formelle forhold'!A40,\"\")","v":""},{"$f":"IF($C19=1,'Sjekkliste formelle forhold'!B40,\"\")","v":""},null,{"$f":"IF($C19=1,'Sjekkliste formelle forhold'!H40,\"\")","v":""}]
[{"$f":"+'Sjekkliste formelle forhold'!A41","v":19},{"$f":"IF('Sjekkliste formelle forhold'!G41<>\"\",1,0)","v":0},0,{"$f":"IF($C20=1,'Sjekkliste formelle forhold'!A41,\"\")","v":""},{"$f":"IF($C20=1,'Sjekkliste formelle forhold'!B41,\"\")","v":""},null,{"$f":"IF($C20=1,'Sjekkliste formelle forhold'!H41,\"\")","v":""}]
[{"$f":"+'Sjekkliste formelle forhold'!A42","v":20},{"$f":"IF('Sjekkliste formelle forhold'!G42<>\"\",1,0)","v":0},0,{"$f":"IF($C21=1,'Sjekkliste formelle forhold'!A42,\"\")","v":""},{"$f":"IF($C21=1,'Sjekkliste formelle forhold'!B42,\"\")","v":""},null,{"$f":"IF($C21=1,'Sjekkliste formelle forhold'!H42,\"\")","v":""}]
[{"$f":"+'Sjekkliste formelle forhold'!A45","v":21},{"$f":"IF('Sjekkliste formelle forhold'!G45<>\"\",1,0)","v":0},0,{"$f":"IF($C22=1,'Sjekkliste formelle forhold'!A45,\"\")","v":""},{"$f":"IF($C22=1,'Sjekkliste formelle forhold'!B45,\"\")","v":""},null,{"$f":"IF($C22=1,'Sjekkliste formelle forhold'!H45,\"\")","v":""}]
[{"$f":"+'Sjekkliste formelle forhold'!A46","v":22},{"$f":"IF('Sjekkliste formelle forhold'!G46<>\"\",1,0)","v":0},0,{"$f":"IF($C23=1,'Sjekkliste formelle forhold'!A46,\"\")","v":""},{"$f":"IF($C23=1,'Sjekkliste formelle forhold'!B46,\"\")","v":""},null,{"$f":"IF($C23=1,'Sjekkliste formelle forhold'!H46,\"\")","v":""}]
[{"$f":"+'Sjekkliste formelle forhold'!A48","v":23},{"$f":"IF('Sjekkliste formelle forhold'!G48<>\"\",1,0)","v":0},0,{"$f":"IF($C24=1,'Sjekkliste formelle forhold'!A48,\"\")","v":""},{"$f":"IF($C24=1,'Sjekkliste formelle forhold'!B48,\"\")","v":""},null,{"$f":"IF($C24=1,'Sjekkliste formelle forhold'!H48,\"\")","v":""}]
[{"$f":"+'Sjekkliste formelle forhold'!A49","v":24},{"$f":"IF('Sjekkliste formelle forhold'!G49<>\"\",1,0)","v":0},0,{"$f":"IF($C25=1,'Sjekkliste formelle forhold'!A49,\"\")","v":""},{"$f":"IF($C25=1,'Sjekkliste formelle forhold'!B49,\"\")","v":""},null,{"$f":"IF($C25=1,'Sjekkliste formelle forhold'!H49,\"\")","v":""}]
[{"$f":"+'Sjekkliste formelle forhold'!A55","v":25},{"$f":"IF('Sjekkliste formelle forhold'!G55<>\"\",1,0)","v":0},0,{"$f":"IF($C26=1,'Sjekkliste formelle forhold'!A55,\"\")","v":""},{"$f":"IF($C26=1,'Sjekkliste formelle forhold'!B55,\"\")","v":""},null,{"$f":"IF($C26=1,'Sjekkliste formelle forhold'!H55,\"\")","v":""}]
[{"$f":"+'Sjekkliste formelle forhold'!A56","v":26},{"$f":"IF('Sjekkliste formelle forhold'!G56<>\"\",1,0)","v":0},0,{"$f":"IF($C27=1,'Sjekkliste formelle forhold'!A56,\"\")","v":""},{"$f":"IF($C27=1,'Sjekkliste formelle forhold'!B56,\"\")","v":""},null,{"$f":"IF($C27=1,'Sjekkliste formelle forhold'!H56,\"\")","v":""}]
[{"$f":"+'Sjekkliste formelle forhold'!A57","v":27},{"$f":"IF('Sjekkliste formelle forhold'!G57<>\"\",1,0)","v":0},0,{"$f":"IF($C28=1,'Sjekkliste formelle forhold'!A57,\"\")","v":""},{"$f":"IF($C28=1,'Sjekkliste formelle forhold'!B57,\"\")","v":""},null,{"$f":"IF($C28=1,'Sjekkliste formelle forhold'!H57,\"\")","v":""}]
[{"$f":"+'Sjekkliste formelle forhold'!A60","v":28},{"$f":"IF('Sjekkliste formelle forhold'!G60<>\"\",1,0)","v":0},0,{"$f":"IF($C29=1,'Sjekkliste formelle forhold'!A60,\"\")","v":""},{"$f":"IF($C29=1,'Sjekkliste formelle forhold'!B60,\"\")","v":""},null,{"$f":"IF($C29=1,'Sjekkliste formelle forhold'!H60,\"\")","v":""}]
[{"$f":"+'Sjekkliste formelle forhold'!A62","v":29},{"$f":"IF('Sjekkliste formelle forhold'!G62<>\"\",1,0)","v":0},0,{"$f":"IF($C30=1,'Sjekkliste formelle forhold'!A62,\"\")","v":""},{"$f":"IF($C30=1,'Sjekkliste formelle forhold'!B62,\"\")","v":""},null,{"$f":"IF($C30=1,'Sjekkliste formelle forhold'!H62,\"\")","v":""}]
[{"$f":"+'Sjekkliste formelle forhold'!A64","v":30},{"$f":"IF('Sjekkliste formelle forhold'!G64<>\"\",1,0)","v":0},0,{"$f":"IF($C31=1,'Sjekkliste formelle forhold'!A64,\"\")","v":""},{"$f":"IF($C31=1,'Sjekkliste formelle forhold'!B64,\"\")","v":""},null,{"$f":"IF($C31=1,'Sjekkliste formelle forhold'!H64,\"\")","v":""}]
[{"$f":"+'Sjekkliste formelle forhold'!A66","v":31},{"$f":"IF('Sjekkliste formelle forhold'!G66<>\"\",1,0)","v":0},0,{"$f":"IF($C32=1,'Sjekkliste formelle forhold'!A66,\"\")","v":""},{"$f":"IF($C32=1,'Sjekkliste formelle forhold'!B66,\"\")","v":""},null,{"$f":"IF($C32=1,'Sjekkliste formelle forhold'!H66,\"\")","v":""}]
[{"$f":"+'Sjekkliste formelle forhold'!A68","v":36},{"$f":"IF('Sjekkliste formelle forhold'!G68<>\"\",1,0)","v":0},0,{"$f":"IF($C33=1,'Sjekkliste formelle forhold'!A68,\"\")","v":""},{"$f":"IF($C33=1,'Sjekkliste formelle forhold'!B68,\"\")","v":""},null,{"$f":"IF($C33=1,'Sjekkliste formelle forhold'!H68,\"\")","v":""}]
[{"$f":"+'Sjekkliste formelle forhold'!A69","v":37},{"$f":"IF('Sjekkliste formelle forhold'!G69<>\"\",1,0)","v":0},0,{"$f":"IF($C34=1,'Sjekkliste formelle forhold'!A69,\"\")","v":""},{"$f":"IF($C34=1,'Sjekkliste formelle forhold'!B69,\"\")","v":""},null,{"$f":"IF($C34=1,'Sjekkliste formelle forhold'!H69,\"\")","v":""}]
[{"$f":"+'Sjekkliste formelle forhold'!A70","v":38},{"$f":"IF('Sjekkliste formelle forhold'!G70<>\"\",1,0)","v":0},0,{"$f":"IF($C35=1,'Sjekkliste formelle forhold'!A70,\"\")","v":""},{"$f":"IF($C35=1,'Sjekkliste formelle forhold'!B70,\"\")","v":""},null,{"$f":"IF($C35=1,'Sjekkliste formelle forhold'!H70,\"\")","v":""}]
[{"$f":"+'Sjekkliste formelle forhold'!A71","v":39},{"$f":"IF('Sjekkliste formelle forhold'!G71<>\"\",1,0)","v":0},0,{"$f":"IF($C36=1,'Sjekkliste formelle forhold'!A71,\"\")","v":""},{"$f":"IF($C36=1,'Sjekkliste formelle forhold'!B71,\"\")","v":""},null,{"$f":"IF($C36=1,'Sjekkliste formelle forhold'!H71,\"\")","v":""}]
[{"$f":"+'Sjekkliste formelle forhold'!A72","v":40},{"$f":"IF('Sjekkliste formelle forhold'!G72<>\"\",1,0)","v":0},0,{"$f":"IF($C37=1,'Sjekkliste formelle forhold'!A72,\"\")","v":""},{"$f":"IF($C37=1,'Sjekkliste formelle forhold'!B72,\"\")","v":""},null,{"$f":"IF($C37=1,'Sjekkliste formelle forhold'!H72,\"\")","v":""}]